Workbook

Sheet Dashboard1
C2: Price-Value Dashboard - Relationships
E4: =Data1!E11 -> Financial Score | H4: =Data1!F11 -> ROE | K4: =Data1!G11 -> ROA | N4: =Data1!H11 -> EPS growth 5 Yr. | Q4: =Data1!I11 -> EPS growth 10 Yr. | T4: =Data1!J11 -> NP margin | W4: =Data1!K11 -> Sales growth 5 Yr. | Z4: =Data1!L11 -> Debt/Net Profit
D5: Sort order → | E5: 1 | G5: 5 | H5: 2 | J5: 5 | K5: 3 | M5: 5 | N5: 4 | P5: 5 | Q5: 5 | S5: 5 | T5: 6 | V5: 5 | W5: 7 | Y5: 5 | Z5: 8 | AB5: 5
E6: =IF(mySortCriteria =E5,CHOOSE(Calculation1!$E$8,"È","Ç"),"") -> È | H6: =IF(mySortCriteria =H5,CHOOSE(Calculation1!$E$8,"È","Ç"),"") ->  | K6: =IF(mySortCriteria =K5,CHOOSE(Calculation1!$E$8,"È","Ç"),"") ->  | N6: =IF(mySortCriteria =N5,CHOOSE(Calculation1!$E$8,"È","Ç"),"") ->  | Q6: =IF(mySortCriteria =Q5,CHOOSE(Calculation1!$E$8,"È","Ç"),"") ->  | T6: =IF(mySortCriteria =T5,CHOOSE(Calculation1!$E$8,"È","Ç"),"") ->  | W6: =IF(mySortCriteria =W5,CHOOSE(Calculation1!$E$8,"È","Ç"),"") ->  | Z6: =IF(mySortCriteria =Z5,CHOOSE(Calculation1!$E$8,"È","Ç"),"") -> 
C7: =OFFSET(Calculation1!C26,Calculation1!$E$5,0,1,1) -> 1 | D7: =OFFSET(Calculation1!J26,Calculation1!$E$5,0,1,1) -> Amara Raja Batt | E7: =OFFSET(Calculation1!K26,Calculation1!$E$5,0,1,1) -> 49 | H7: =OFFSET(Calculation1!L26,Calculation1!$E$5,0,1,1) -> 0.2328847947 | K7: =OFFSET(Calculation1!M26,Calculation1!$E$5,0,1,1) -> 0.1679477325 | N7: =OFFSET(Calculation1!N26,Calculation1!$E$5,0,1,1) -> 0.2700787648 | Q7: =OFFSET(Calculation1!O26,Calculation1!$E$5,0,1,1) -> 0.2719228628 | T7: =OFFSET(Calculation1!P26,Calculation1!$E$5,0,1,1) -> 0.1043433028 | W7: =OFFSET(Calculation1!Q26,Calculation1!$E$5,0,1,1) -> 0.2164454512 | Z7: =OFFSET(Calculation1!R26,Calculation1!$E$5,0,1,1) -> 0.1514792416
C8: =OFFSET(Calculation1!C27,Calculation1!$E$5,0,1,1) -> 2 | D8: =OFFSET(Calculation1!J27,Calculation1!$E$5,0,1,1) -> Tasty Bite | E8: =OFFSET(Calculation1!K27,Calculation1!$E$5,0,1,1) -> 48 | H8: =OFFSET(Calculation1!L27,Calculation1!$E$5,0,1,1) -> 0.2675518672 | K8: =OFFSET(Calculation1!M27,Calculation1!$E$5,0,1,1) -> 0.1220102937 | N8: =OFFSET(Calculation1!N27,Calculation1!$E$5,0,1,1) -> 0.5352554461 | Q8: =OFFSET(Calculation1!O27,Calculation1!$E$5,0,1,1) -> 0.3831578754 | T8: =OFFSET(Calculation1!P27,Calculation1!$E$5,0,1,1) -> 0.08228688106 | W8: =OFFSET(Calculation1!Q27,Calculation1!$E$5,0,1,1) -> 0.2054316492 | Z8: =OFFSET(Calculation1!R27,Calculation1!$E$5,0,1,1) -> 2.506203474
C9: =OFFSET(Calculation1!C28,Calculation1!$E$5,0,1,1) -> 3 | D9: =OFFSET(Calculation1!J28,Calculation1!$E$5,0,1,1) -> Britannia | E9: =OFFSET(Calculation1!K28,Calculation1!$E$5,0,1,1) -> 46.5 | H9: =OFFSET(Calculation1!L28,Calculation1!$E$5,0,1,1) -> 0.4398597785 | K9: =OFFSET(Calculation1!M28,Calculation1!$E$5,0,1,1) -> 0.2419447567 | N9: =OFFSET(Calculation1!N28,Calculation1!$E$5,0,1,1) -> 0.3870072681 | Q9: =OFFSET(Calculation1!O28,Calculation1!$E$5,0,1,1) -> 0.239942963 | T9: =OFFSET(Calculation1!P28,Calculation1!$E$5,0,1,1) -> 0.09425005347 | W9: =OFFSET(Calculation1!Q28,Calculation1!$E$5,0,1,1) -> 0.1347901771 | Z9: =OFFSET(Calculation1!R28,Calculation1!$E$5,0,1,1) -> 0.000907768092
C10: =OFFSET(Calculation1!C29,Calculation1!$E$5,0,1,1) -> 4 | D10: =OFFSET(Calculation1!J29,Calculation1!$E$5,0,1,1) -> Marico | E10: =OFFSET(Calculation1!K29,Calculation1!$E$5,0,1,1) -> 46 | H10: =OFFSET(Calculation1!L29,Calculation1!$E$5,0,1,1) -> 0.3513000515 | K10: =OFFSET(Calculation1!M29,Calculation1!$E$5,0,1,1) -> 0.2126317005 | N10: =OFFSET(Calculation1!N29,Calculation1!$E$5,0,1,1) -> 0.1982395464 | Q10: =OFFSET(Calculation1!O29,Calculation1!$E$5,0,1,1) -> 0.2256287838 | T10: =OFFSET(Calculation1!P29,Calculation1!$E$5,0,1,1) -> 0.120126418 | W10: =OFFSET(Calculation1!Q29,Calculation1!$E$5,0,1,1) -> 0.1435989919 | Z10: =OFFSET(Calculation1!R29,Calculation1!$E$5,0,1,1) -> 0.4508023133
C11: =OFFSET(Calculation1!C30,Calculation1!$E$5,0,1,1) -> 5 | D11: =OFFSET(Calculation1!J30,Calculation1!$E$5,0,1,1) -> Heritage Foods | E11: =OFFSET(Calculation1!K30,Calculation1!$E$5,0,1,1) -> 44.5 | H11: =OFFSET(Calculation1!L30,Calculation1!$E$5,0,1,1) -> 0.230967957 | K11: =OFFSET(Calculation1!M30,Calculation1!$E$5,0,1,1) -> 0.09557555693 | N11: =OFFSET(Calculation1!N30,Calculation1!$E$5,0,1,1) -> 0.8974642972 | Q11: =OFFSET(Calculation1!O30,Calculation1!$E$5,0,1,1) -> 0.6146440313 | T11: =OFFSET(Calculation1!P30,Calculation1!$E$5,0,1,1) -> 0.02328424166 | W11: =OFFSET(Calculation1!Q30,Calculation1!$E$5,0,1,1) -> 0.1677968865 | Z11: =OFFSET(Calculation1!R30,Calculation1!$E$5,0,1,1) -> 2.273678513
C12: =OFFSET(Calculation1!C31,Calculation1!$E$5,0,1,1) -> 6 | D12: =OFFSET(Calculation1!J31,Calculation1!$E$5,0,1,1) -> Page Industries | E12: =OFFSET(Calculation1!K31,Calculation1!$E$5,0,1,1) -> 44 | H12: =OFFSET(Calculation1!L31,Calculation1!$E$5,0,1,1) -> 0.4605122521 | K12: =OFFSET(Calculation1!M31,Calculation1!$E$5,0,1,1) -> 0.2449181536 | N12: =OFFSET(Calculation1!N31,Calculation1!$E$5,0,1,1) -> 0.3177680234 | Q12: =OFFSET(Calculation1!O31,Calculation1!$E$5,0,1,1) -> 0.337110973 | T12: =OFFSET(Calculation1!P31,Calculation1!$E$5,0,1,1) -> 0.1304564799 | W12: =OFFSET(Calculation1!Q31,Calculation1!$E$5,0,1,1) -> 0.2940048571 | Z12: =OFFSET(Calculation1!R31,Calculation1!$E$5,0,1,1) -> 0.4078483624
C13: =OFFSET(Calculation1!C32,Calculation1!$E$5,0,1,1) -> 7 | D13: =OFFSET(Calculation1!J32,Calculation1!$E$5,0,1,1) -> Pidilite Ind | E13: =OFFSET(Calculation1!K32,Calculation1!$E$5,0,1,1) -> 44 | H13: =OFFSET(Calculation1!L32,Calculation1!$E$5,0,1,1) -> 0.2717946322 | K13: =OFFSET(Calculation1!M32,Calculation1!$E$5,0,1,1) -> 0.1925223797 | N13: =OFFSET(Calculation1!N32,Calculation1!$E$5,0,1,1) -> 0.1919307345 | Q13: =OFFSET(Calculation1!O32,Calculation1!$E$5,0,1,1) -> 0.1434874726 | T13: =OFFSET(Calculation1!P32,Calculation1!$E$5,0,1,1) -> 0.1408673142 | W13: =OFFSET(Calculation1!Q32,Calculation1!$E$5,0,1,1) -> 0.1510700805 | Z13: =OFFSET(Calculation1!R32,Calculation1!$E$5,0,1,1) -> 0.1120865174
C14: =OFFSET(Calculation1!C33,Calculation1!$E$5,0,1,1) -> 8 | D14: =OFFSET(Calculation1!J33,Calculation1!$E$5,0,1,1) -> Dabur India | E14: =OFFSET(Calculation1!K33,Calculation1!$E$5,0,1,1) -> 43.5 | H14: =OFFSET(Calculation1!L33,Calculation1!$E$5,0,1,1) -> 0.3017857873 | K14: =OFFSET(Calculation1!M33,Calculation1!$E$5,0,1,1) -> 0.1755118075 | N14: =OFFSET(Calculation1!N33,Calculation1!$E$5,0,1,1) -> 0.1686895358 | Q14: =OFFSET(Calculation1!O33,Calculation1!$E$5,0,1,1) -> 0.1777753572 | T14: =OFFSET(Calculation1!P33,Calculation1!$E$5,0,1,1) -> 0.1485033156 | W14: =OFFSET(Calculation1!Q33,Calculation1!$E$5,0,1,1) -> 0.1569706926 | Z14: =OFFSET(Calculation1!R33,Calculation1!$E$5,0,1,1) -> 0.6302043092
C15: =OFFSET(Calculation1!C34,Calculation1!$E$5,0,1,1) -> 9 | D15: =OFFSET(Calculation1!J34,Calculation1!$E$5,0,1,1) -> Titan Company | E15: =OFFSET(Calculation1!K34,Calculation1!$E$5,0,1,1) -> 42 | H15: =OFFSET(Calculation1!L34,Calculation1!$E$5,0,1,1) -> 0.2008052125 | K15: =OFFSET(Calculation1!M34,Calculation1!$E$5,0,1,1) -> 0.1100708384 | N15: =OFFSET(Calculation1!N34,Calculation1!$E$5,0,1,1) -> 0.1039922209 | Q15: =OFFSET(Calculation1!O34,Calculation1!$E$5,0,1,1) -> 0.2509086947 | T15: =OFFSET(Calculation1!P34,Calculation1!$E$5,0,1,1) -> 0.06265241426 | W15: =OFFSET(Calculation1!Q34,Calculation1!$E$5,0,1,1) -> 0.1155296221 | Z15: =OFFSET(Calculation1!R34,Calculation1!$E$5,0,1,1) -> 0.1601842012
C16: =OFFSET(Calculation1!C35,Calculation1!$E$5,0,1,1) -> 10 | D16: =OFFSET(Calculation1!J35,Calculation1!$E$5,0,1,1) -> Colgate | E16: =OFFSET(Calculation1!K35,Calculation1!$E$5,0,1,1) -> 41 | H16: =OFFSET(Calculation1!L35,Calculation1!$E$5,0,1,1) -> 0.5655095295 | K16: =OFFSET(Calculation1!M35,Calculation1!$E$5,0,1,1) -> 0.2921410944 | N16: =OFFSET(Calculation1!N35,Calculation1!$E$5,0,1,1) -> 0.07446167654 | Q16: =OFFSET(Calculation1!O35,Calculation1!$E$5,0,1,1) -> 0.3933665269 | T16: =OFFSET(Calculation1!P35,Calculation1!$E$5,0,1,1) -> 0.1385102912 | W16: =OFFSET(Calculation1!Q35,Calculation1!$E$5,0,1,1) -> 0.1273185737 | Z16: =OFFSET(Calculation1!R35,Calculation1!$E$5,0,1,1) -> 0
C17: =OFFSET(Calculation1!C36,Calculation1!$E$5,0,1,1) -> 11 | D17: =OFFSET(Calculation1!J36,Calculation1!$E$5,0,1,1) -> Mayur Uniquoter | E17: =OFFSET(Calculation1!K36,Calculation1!$E$5,0,1,1) -> 41 | H17: =OFFSET(Calculation1!L36,Calculation1!$E$5,0,1,1) -> 0.2411797375 | K17: =OFFSET(Calculation1!M36,Calculation1!$E$5,0,1,1) -> 0.1865855589 | N17: =OFFSET(Calculation1!N36,Calculation1!$E$5,0,1,1) -> 0.1803944753 | Q17: =OFFSET(Calculation1!O36,Calculation1!$E$5,0,1,1) -> 0.4047178891 | T17: =OFFSET(Calculation1!P36,Calculation1!$E$5,0,1,1) -> 0.1614613909 | W17: =OFFSET(Calculation1!Q36,Calculation1!$E$5,0,1,1) -> 0.1550514549 | Z17: =OFFSET(Calculation1!R36,Calculation1!$E$5,0,1,1) -> 0.313537753
C18: =OFFSET(Calculation1!C37,Calculation1!$E$5,0,1,1) -> 12 | D18: =OFFSET(Calculation1!J37,Calculation1!$E$5,0,1,1) -> Godrej Consumer | E18: =OFFSET(Calculation1!K37,Calculation1!$E$5,0,1,1) -> 38 | H18: =OFFSET(Calculation1!L37,Calculation1!$E$5,0,1,1) -> 0.2273367493 | K18: =OFFSET(Calculation1!M37,Calculation1!$E$5,0,1,1) -> 0.1137933811 | N18: =OFFSET(Calculation1!N37,Calculation1!$E$5,0,1,1) -> 0.1562526395 | Q18: =OFFSET(Calculation1!O37,Calculation1!$E$5,0,1,1) -> 0.1998507295 | T18: =OFFSET(Calculation1!P37,Calculation1!$E$5,0,1,1) -> 0.1292277602 | W18: =OFFSET(Calculation1!Q37,Calculation1!$E$5,0,1,1) -> 0.1941181717 | Z18: =OFFSET(Calculation1!R37,Calculation1!$E$5,0,1,1) -> 2.494732028
C19: =OFFSET(Calculation1!C38,Calculation1!$E$5,0,1,1) -> 13 | D19: =OFFSET(Calculation1!J38,Calculation1!$E$5,0,1,1) -> Nestle | E19: =OFFSET(Calculation1!K38,Calculation1!$E$5,0,1,1) -> 33 | H19: =OFFSET(Calculation1!L38,Calculation1!$E$5,0,1,1) -> 0.1998942452 | K19: =OFFSET(Calculation1!M38,Calculation1!$E$5,0,1,1) -> 0.09090146196 | N19: =OFFSET(Calculation1!N38,Calculation1!$E$5,0,1,1) -> -0.07205646789 | Q19: =OFFSET(Calculation1!O38,Calculation1!$E$5,0,1,1) -> 0.06666931531 | T19: =OFFSET(Calculation1!P38,Calculation1!$E$5,0,1,1) -> 0.06889891637 | W19: =OFFSET(Calculation1!Q38,Calculation1!$E$5,0,1,1) -> 0.05501587272 | Z19: =OFFSET(Calculation1!R38,Calculation1!$E$5,0,1,1) -> 0.03147691161
C20: =OFFSET(Calculation1!C39,Calculation1!$E$5,0,1,1) -> 14 | D20: =OFFSET(Calculation1!J39,Calculation1!$E$5,0,1,1) -> Emami | E20: =OFFSET(Calculation1!K39,Calculation1!$E$5,0,1,1) -> 32.5 | H20: =OFFSET(Calculation1!L39,Calculation1!$E$5,0,1,1) -> 0.2555839047 | K20: =OFFSET(Calculation1!M39,Calculation1!$E$5,0,1,1) -> 0.1345736737 | N20: =OFFSET(Calculation1!N39,Calculation1!$E$5,0,1,1) -> 0.009146748019 | Q20: =OFFSET(Calculation1!O39,Calculation1!$E$5,0,1,1) -> 0.1265549993 | T20: =OFFSET(Calculation1!P39,Calculation1!$E$5,0,1,1) -> 0.1366801459 | W20: =OFFSET(Calculation1!Q39,Calculation1!$E$5,0,1,1) -> 0.1603998077 | Z20: =OFFSET(Calculation1!R39,Calculation1!$E$5,0,1,1) -> 1.872288216
D21: =OFFSET(Calculation1!J40,Calculation1!$E$5,0,1,1) -> 0 | E21: =OFFSET(Calculation1!K40,Calculation1!$E$5,0,1,1) -> 0 | H21: =OFFSET(Calculation1!L40,Calculation1!$E$5,0,1,1) -> 0 | K21: =OFFSET(Calculation1!M40,Calculation1!$E$5,0,1,1) -> 0 | N21: =OFFSET(Calculation1!N40,Calculation1!$E$5,0,1,1) -> 0 | Q21: =OFFSET(Calculation1!O40,Calculation1!$E$5,0,1,1) -> 0 | T21: =OFFSET(Calculation1!P40,Calculation1!$E$5,0,1,1) -> 0 | W21: =OFFSET(Calculation1!Q40,Calculation1!$E$5,0,1,1) -> 0 | Z21: =OFFSET(Calculation1!R40,Calculation1!$E$5,0,1,1) -> 0
D22: =OFFSET(Calculation1!J41,Calculation1!$E$5,0,1,1) -> 0 | E22: =OFFSET(Calculation1!K41,Calculation1!$E$5,0,1,1) -> 0 | H22: =OFFSET(Calculation1!L41,Calculation1!$E$5,0,1,1) -> 0 | K22: =OFFSET(Calculation1!M41,Calculation1!$E$5,0,1,1) -> 0 | N22: =OFFSET(Calculation1!N41,Calculation1!$E$5,0,1,1) -> 0 | Q22: =OFFSET(Calculation1!O41,Calculation1!$E$5,0,1,1) -> 0 | T22: =OFFSET(Calculation1!P41,Calculation1!$E$5,0,1,1) -> 0 | W22: =OFFSET(Calculation1!Q41,Calculation1!$E$5,0,1,1) -> 0 | Z22: =OFFSET(Calculation1!R41,Calculation1!$E$5,0,1,1) -> 0
D23: =OFFSET(Calculation1!J42,Calculation1!$E$5,0,1,1) -> 0 | E23: =OFFSET(Calculation1!K42,Calculation1!$E$5,0,1,1) -> 0 | H23: =OFFSET(Calculation1!L42,Calculation1!$E$5,0,1,1) -> 0 | K23: =OFFSET(Calculation1!M42,Calculation1!$E$5,0,1,1) -> 0 | N23: =OFFSET(Calculation1!N42,Calculation1!$E$5,0,1,1) -> 0 | Q23: =OFFSET(Calculation1!O42,Calculation1!$E$5,0,1,1) -> 0 | T23: =OFFSET(Calculation1!P42,Calculation1!$E$5,0,1,1) -> 0 | W23: =OFFSET(Calculation1!Q42,Calculation1!$E$5,0,1,1) -> 0 | Z23: =OFFSET(Calculation1!R42,Calculation1!$E$5,0,1,1) -> 0
D24: =OFFSET(Calculation1!J43,Calculation1!$E$5,0,1,1) -> 0 | E24: =OFFSET(Calculation1!K43,Calculation1!$E$5,0,1,1) -> 0 | H24: =OFFSET(Calculation1!L43,Calculation1!$E$5,0,1,1) -> 0 | K24: =OFFSET(Calculation1!M43,Calculation1!$E$5,0,1,1) -> 0 | N24: =OFFSET(Calculation1!N43,Calculation1!$E$5,0,1,1) -> 0 | Q24: =OFFSET(Calculation1!O43,Calculation1!$E$5,0,1,1) -> 0 | T24: =OFFSET(Calculation1!P43,Calculation1!$E$5,0,1,1) -> 0 | W24: =OFFSET(Calculation1!Q43,Calculation1!$E$5,0,1,1) -> 0 | Z24: =OFFSET(Calculation1!R43,Calculation1!$E$5,0,1,1) -> 0
D25: =OFFSET(Calculation1!J44,Calculation1!$E$5,0,1,1) -> 0 | E25: =OFFSET(Calculation1!K44,Calculation1!$E$5,0,1,1) -> 0 | H25: =OFFSET(Calculation1!L44,Calculation1!$E$5,0,1,1) -> 0 | K25: =OFFSET(Calculation1!M44,Calculation1!$E$5,0,1,1) -> 0 | N25: =OFFSET(Calculation1!N44,Calculation1!$E$5,0,1,1) -> 0 | Q25: =OFFSET(Calculation1!O44,Calculation1!$E$5,0,1,1) -> 0 | T25: =OFFSET(Calculation1!P44,Calculation1!$E$5,0,1,1) -> 0 | W25: =OFFSET(Calculation1!Q44,Calculation1!$E$5,0,1,1) -> 0 | Z25: =OFFSET(Calculation1!R44,Calculation1!$E$5,0,1,1) -> 0
D26: =OFFSET(Calculation1!J45,Calculation1!$E$5,0,1,1) -> 0 | E26: =OFFSET(Calculation1!K45,Calculation1!$E$5,0,1,1) -> 0 | H26: =OFFSET(Calculation1!L45,Calculation1!$E$5,0,1,1) -> 0 | K26: =OFFSET(Calculation1!M45,Calculation1!$E$5,0,1,1) -> 0 | N26: =OFFSET(Calculation1!N45,Calculation1!$E$5,0,1,1) -> 0 | Q26: =OFFSET(Calculation1!O45,Calculation1!$E$5,0,1,1) -> 0 | T26: =OFFSET(Calculation1!P45,Calculation1!$E$5,0,1,1) -> 0 | W26: =OFFSET(Calculation1!Q45,Calculation1!$E$5,0,1,1) -> 0 | Z26: =OFFSET(Calculation1!R45,Calculation1!$E$5,0,1,1) -> 0
D27: =OFFSET(Calculation1!J46,Calculation1!$E$5,0,1,1) -> 0 | E27: =OFFSET(Calculation1!K46,Calculation1!$E$5,0,1,1) -> 0 | H27: =OFFSET(Calculation1!L46,Calculation1!$E$5,0,1,1) -> 0 | K27: =OFFSET(Calculation1!M46,Calculation1!$E$5,0,1,1) -> 0 | N27: =OFFSET(Calculation1!N46,Calculation1!$E$5,0,1,1) -> 0 | Q27: =OFFSET(Calculation1!O46,Calculation1!$E$5,0,1,1) -> 0 | T27: =OFFSET(Calculation1!P46,Calculation1!$E$5,0,1,1) -> 0 | W27: =OFFSET(Calculation1!Q46,Calculation1!$E$5,0,1,1) -> 0 | Z27: =OFFSET(Calculation1!R46,Calculation1!$E$5,0,1,1) -> 0
C28: ███ | D28: Above average | T28: =IF(Calculation1!$E$5<Calculation1!$E$6,"▼","") ->  | W28: =IF(Calculation1!$E$5<Calculation1!$E$6,"▼","") ->  | Z28: =IF(Calculation1!$E$5<Calculation1!$E$6,"▼","") -> 
C29: ███ | D29: Below average
C31: Compare two selected KPIs

Sheet Dashboard2
C2: Price-Value Dashboard - Relationships
E4: =Data2!E11 -> Total Score | H4: =Data2!F11 -> Promoter Pledge% | K4: =Data2!G11 -> Promoter Holding 5 Yr. | N4: =Data2!H11 -> CFO/PAT 5 Yr. | Q4: =Data2!I11 -> Current ratio | T4: =Data2!J11 -> Current Cash flow | W4: =Data2!K11 -> BVPS 5 Yr. | Z4: =Data2!L11 -> Receivables/ Sales
D5: Sort order → | E5: 1 | G5: 5 | H5: 2 | J5: 5 | K5: 3 | M5: 5 | N5: 4 | P5: 5 | Q5: 5 | S5: 5 | T5: 6 | V5: 5 | W5: 7 | Y5: 5 | Z5: 8 | AB5: 5
E6: =IF(mySortCriteria1 =E5,CHOOSE(Calculation2!$E$8,"È","Ç"),"") -> È | H6: =IF(mySortCriteria1 =H5,CHOOSE(Calculation2!$E$8,"È","Ç"),"") ->  | K6: =IF(mySortCriteria1 =K5,CHOOSE(Calculation2!$E$8,"È","Ç"),"") ->  | N6: =IF(mySortCriteria1 =N5,CHOOSE(Calculation2!$E$8,"È","Ç"),"") ->  | Q6: =IF(mySortCriteria1 =Q5,CHOOSE(Calculation2!$E$8,"È","Ç"),"") ->  | T6: =IF(mySortCriteria1 =T5,CHOOSE(Calculation2!$E$8,"È","Ç"),"") ->  | W6: =IF(mySortCriteria1 =W5,CHOOSE(Calculation2!$E$8,"È","Ç"),"") ->  | Z6: =IF(mySortCriteria1 =Z5,CHOOSE(Calculation2!$E$8,"È","Ç"),"") -> 
C7: =OFFSET(Calculation2!C26,Calculation2!$E$5,0,1,1) -> 1 | D7: =OFFSET(Calculation2!J26,Calculation2!$E$5,0,1,1) -> Tasty Bite | E7: =OFFSET(Calculation2!K26,Calculation2!$E$5,0,1,1) -> 87 | H7: =OFFSET(Calculation2!L26,Calculation2!$E$5,0,1,1) -> 0 | K7: =OFFSET(Calculation2!M26,Calculation2!$E$5,0,1,1) -> 0.00171345687 | N7: =OFFSET(Calculation2!N26,Calculation2!$E$5,0,1,1) -> 1.457419684 | Q7: =OFFSET(Calculation2!O26,Calculation2!$E$5,0,1,1) -> 2.185255799 | T7: =OFFSET(Calculation2!P26,Calculation2!$E$5,0,1,1) -> 1 | W7: =OFFSET(Calculation2!Q26,Calculation2!$E$5,0,1,1) -> 0.2177409387 | Z7: =OFFSET(Calculation2!R26,Calculation2!$E$5,0,1,1) -> 0.1190403267
C8: =OFFSET(Calculation2!C27,Calculation2!$E$5,0,1,1) -> 2 | D8: =OFFSET(Calculation2!J27,Calculation2!$E$5,0,1,1) -> Amara Raja Batt | E8: =OFFSET(Calculation2!K27,Calculation2!$E$5,0,1,1) -> 87 | H8: =OFFSET(Calculation2!L27,Calculation2!$E$5,0,1,1) -> 0 | K8: =OFFSET(Calculation2!M27,Calculation2!$E$5,0,1,1) -> 0 | N8: =OFFSET(Calculation2!N27,Calculation2!$E$5,0,1,1) -> 1.07196961 | Q8: =OFFSET(Calculation2!O27,Calculation2!$E$5,0,1,1) -> 1.979687458 | T8: =OFFSET(Calculation2!P27,Calculation2!$E$5,0,1,1) -> 1 | W8: =OFFSET(Calculation2!Q27,Calculation2!$E$5,0,1,1) -> 0.2661191397 | Z8: =OFFSET(Calculation2!R27,Calculation2!$E$5,0,1,1) -> 0.1262399615
C9: =OFFSET(Calculation2!C28,Calculation2!$E$5,0,1,1) -> 3 | D9: =OFFSET(Calculation2!J28,Calculation2!$E$5,0,1,1) -> Britannia | E9: =OFFSET(Calculation2!K28,Calculation2!$E$5,0,1,1) -> 84.5 | H9: =OFFSET(Calculation2!L28,Calculation2!$E$5,0,1,1) -> 0 | K9: =OFFSET(Calculation2!M28,Calculation2!$E$5,0,1,1) -> -0.001081029539 | N9: =OFFSET(Calculation2!N28,Calculation2!$E$5,0,1,1) -> 1.151835851 | Q9: =OFFSET(Calculation2!O28,Calculation2!$E$5,0,1,1) -> 1.068176269 | T9: =OFFSET(Calculation2!P28,Calculation2!$E$5,0,1,1) -> 1 | W9: =OFFSET(Calculation2!Q28,Calculation2!$E$5,0,1,1) -> 0.3030766559 | Z9: =OFFSET(Calculation2!R28,Calculation2!$E$5,0,1,1) -> 0.01342492986
C10: =OFFSET(Calculation2!C29,Calculation2!$E$5,0,1,1) -> 4 | D10: =OFFSET(Calculation2!J29,Calculation2!$E$5,0,1,1) -> Marico | E10: =OFFSET(Calculation2!K29,Calculation2!$E$5,0,1,1) -> 84 | H10: =OFFSET(Calculation2!L29,Calculation2!$E$5,0,1,1) -> 0 | K10: =OFFSET(Calculation2!M29,Calculation2!$E$5,0,1,1) -> -0.01106216917 | N10: =OFFSET(Calculation2!N29,Calculation2!$E$5,0,1,1) -> 1.169780876 | Q10: =OFFSET(Calculation2!O29,Calculation2!$E$5,0,1,1) -> 1.900143907 | T10: =OFFSET(Calculation2!P29,Calculation2!$E$5,0,1,1) -> 1 | W10: =OFFSET(Calculation2!Q29,Calculation2!$E$5,0,1,1) -> 0.1746065765 | Z10: =OFFSET(Calculation2!R29,Calculation2!$E$5,0,1,1) -> 0.04116411504
C11: =OFFSET(Calculation2!C30,Calculation2!$E$5,0,1,1) -> 5 | D11: =OFFSET(Calculation2!J30,Calculation2!$E$5,0,1,1) -> Page Industries | E11: =OFFSET(Calculation2!K30,Calculation2!$E$5,0,1,1) -> 82 | H11: =OFFSET(Calculation2!L30,Calculation2!$E$5,0,1,1) -> 0 | K11: =OFFSET(Calculation2!M30,Calculation2!$E$5,0,1,1) -> -0.03911850395 | N11: =OFFSET(Calculation2!N30,Calculation2!$E$5,0,1,1) -> 0.8508789809 | Q11: =OFFSET(Calculation2!O30,Calculation2!$E$5,0,1,1) -> 2.104962268 | T11: =OFFSET(Calculation2!P30,Calculation2!$E$5,0,1,1) -> 1 | W11: =OFFSET(Calculation2!Q30,Calculation2!$E$5,0,1,1) -> 0.3248692757 | Z11: =OFFSET(Calculation2!R30,Calculation2!$E$5,0,1,1) -> 0.05800059436
C12: =OFFSET(Calculation2!C31,Calculation2!$E$5,0,1,1) -> 6 | D12: =OFFSET(Calculation2!J31,Calculation2!$E$5,0,1,1) -> Pidilite Ind | E12: =OFFSET(Calculation2!K31,Calculation2!$E$5,0,1,1) -> 82 | H12: =OFFSET(Calculation2!L31,Calculation2!$E$5,0,1,1) -> 0 | K12: =OFFSET(Calculation2!M31,Calculation2!$E$5,0,1,1) -> -0.004124385679 | N12: =OFFSET(Calculation2!N31,Calculation2!$E$5,0,1,1) -> 1.078453165 | Q12: =OFFSET(Calculation2!O31,Calculation2!$E$5,0,1,1) -> 1.647742908 | T12: =OFFSET(Calculation2!P31,Calculation2!$E$5,0,1,1) -> 1 | W12: =OFFSET(Calculation2!Q31,Calculation2!$E$5,0,1,1) -> 0.2042665621 | Z12: =OFFSET(Calculation2!R31,Calculation2!$E$5,0,1,1) -> 0.135842591
C13: =OFFSET(Calculation2!C32,Calculation2!$E$5,0,1,1) -> 7 | D13: =OFFSET(Calculation2!J32,Calculation2!$E$5,0,1,1) -> Dabur India | E13: =OFFSET(Calculation2!K32,Calculation2!$E$5,0,1,1) -> 81.5 | H13: =OFFSET(Calculation2!L32,Calculation2!$E$5,0,1,1) -> 0 | K13: =OFFSET(Calculation2!M32,Calculation2!$E$5,0,1,1) -> -0.002302184059 | N13: =OFFSET(Calculation2!N32,Calculation2!$E$5,0,1,1) -> 1.009524178 | Q13: =OFFSET(Calculation2!O32,Calculation2!$E$5,0,1,1) -> 1.196532868 | T13: =OFFSET(Calculation2!P32,Calculation2!$E$5,0,1,1) -> 1 | W13: =OFFSET(Calculation2!Q32,Calculation2!$E$5,0,1,1) -> 0.2423205464 | Z13: =OFFSET(Calculation2!R32,Calculation2!$E$5,0,1,1) -> 0.09577692033
C14: =OFFSET(Calculation2!C33,Calculation2!$E$5,0,1,1) -> 8 | D14: =OFFSET(Calculation2!J33,Calculation2!$E$5,0,1,1) -> Titan Company | E14: =OFFSET(Calculation2!K33,Calculation2!$E$5,0,1,1) -> 80 | H14: =OFFSET(Calculation2!L33,Calculation2!$E$5,0,1,1) -> 0 | K14: =OFFSET(Calculation2!M33,Calculation2!$E$5,0,1,1) -> 0 | N14: =OFFSET(Calculation2!N33,Calculation2!$E$5,0,1,1) -> 0.3529662386 | Q14: =OFFSET(Calculation2!O33,Calculation2!$E$5,0,1,1) -> 1.962246734 | T14: =OFFSET(Calculation2!P33,Calculation2!$E$5,0,1,1) -> 1 | W14: =OFFSET(Calculation2!Q33,Calculation2!$E$5,0,1,1) -> 0.2793760383 | Z14: =OFFSET(Calculation2!R33,Calculation2!$E$5,0,1,1) -> 0.0173225159
C15: =OFFSET(Calculation2!C34,Calculation2!$E$5,0,1,1) -> 9 | D15: =OFFSET(Calculation2!J34,Calculation2!$E$5,0,1,1) -> Heritage Foods | E15: =OFFSET(Calculation2!K34,Calculation2!$E$5,0,1,1) -> 79.5 | H15: =OFFSET(Calculation2!L34,Calculation2!$E$5,0,1,1) -> 0 | K15: =OFFSET(Calculation2!M34,Calculation2!$E$5,0,1,1) -> 0 | N15: =OFFSET(Calculation2!N34,Calculation2!$E$5,0,1,1) -> 2.171111347 | Q15: =OFFSET(Calculation2!O34,Calculation2!$E$5,0,1,1) -> 1.202954099 | T15: =OFFSET(Calculation2!P34,Calculation2!$E$5,0,1,1) -> 1 | W15: =OFFSET(Calculation2!Q34,Calculation2!$E$5,0,1,1) -> 0.06626092183 | Z15: =OFFSET(Calculation2!R34,Calculation2!$E$5,0,1,1) -> 0.01209369145
C16: =OFFSET(Calculation2!C35,Calculation2!$E$5,0,1,1) -> 10 | D16: =OFFSET(Calculation2!J35,Calculation2!$E$5,0,1,1) -> Colgate | E16: =OFFSET(Calculation2!K35,Calculation2!$E$5,0,1,1) -> 79 | H16: =OFFSET(Calculation2!L35,Calculation2!$E$5,0,1,1) -> 0 | K16: =OFFSET(Calculation2!M35,Calculation2!$E$5,0,1,1) -> 0 | N16: =OFFSET(Calculation2!N35,Calculation2!$E$5,0,1,1) -> 1.064003666 | Q16: =OFFSET(Calculation2!O35,Calculation2!$E$5,0,1,1) -> 0.8981403832 | T16: =OFFSET(Calculation2!P35,Calculation2!$E$5,0,1,1) -> 1 | W16: =OFFSET(Calculation2!Q35,Calculation2!$E$5,0,1,1) -> 0.215618599 | Z16: =OFFSET(Calculation2!R35,Calculation2!$E$5,0,1,1) -> 0.02439522474
C17: =OFFSET(Calculation2!C36,Calculation2!$E$5,0,1,1) -> 11 | D17: =OFFSET(Calculation2!J36,Calculation2!$E$5,0,1,1) -> Mayur Uniquoter | E17: =OFFSET(Calculation2!K36,Calculation2!$E$5,0,1,1) -> 79 | H17: =OFFSET(Calculation2!L36,Calculation2!$E$5,0,1,1) -> 0 | K17: =OFFSET(Calculation2!M36,Calculation2!$E$5,0,1,1) -> -0.04974876672 | N17: =OFFSET(Calculation2!N36,Calculation2!$E$5,0,1,1) -> 0.7936142315 | Q17: =OFFSET(Calculation2!O36,Calculation2!$E$5,0,1,1) -> 2.730163007 | T17: =OFFSET(Calculation2!P36,Calculation2!$E$5,0,1,1) -> 1 | W17: =OFFSET(Calculation2!Q36,Calculation2!$E$5,0,1,1) -> 0.3152243716 | Z17: =OFFSET(Calculation2!R36,Calculation2!$E$5,0,1,1) -> 0.2422997143
C18: =OFFSET(Calculation2!C37,Calculation2!$E$5,0,1,1) -> 12 | D18: =OFFSET(Calculation2!J37,Calculation2!$E$5,0,1,1) -> Godrej Consumer | E18: =OFFSET(Calculation2!K37,Calculation2!$E$5,0,1,1) -> 76 | H18: =OFFSET(Calculation2!L37,Calculation2!$E$5,0,1,1) -> 0.002 | K18: =OFFSET(Calculation2!M37,Calculation2!$E$5,0,1,1) -> -0.002707552949 | N18: =OFFSET(Calculation2!N37,Calculation2!$E$5,0,1,1) -> 1.076688148 | Q18: =OFFSET(Calculation2!O37,Calculation2!$E$5,0,1,1) -> 1.659308724 | T18: =OFFSET(Calculation2!P37,Calculation2!$E$5,0,1,1) -> 1 | W18: =OFFSET(Calculation2!Q37,Calculation2!$E$5,0,1,1) -> 0.2293514558 | Z18: =OFFSET(Calculation2!R37,Calculation2!$E$5,0,1,1) -> 0.1246692336
C19: =OFFSET(Calculation2!C38,Calculation2!$E$5,0,1,1) -> 13 | D19: =OFFSET(Calculation2!J38,Calculation2!$E$5,0,1,1) -> Emami | E19: =OFFSET(Calculation2!K38,Calculation2!$E$5,0,1,1) -> 71.5 | H19: =OFFSET(Calculation2!L38,Calculation2!$E$5,0,1,1) -> 0.21 | K19: =OFFSET(Calculation2!M38,Calculation2!$E$5,0,1,1) -> 0 | N19: =OFFSET(Calculation2!N38,Calculation2!$E$5,0,1,1) -> 1.193278096 | Q19: =OFFSET(Calculation2!O38,Calculation2!$E$5,0,1,1) -> 1.023802263 | T19: =OFFSET(Calculation2!P38,Calculation2!$E$5,0,1,1) -> 1 | W19: =OFFSET(Calculation2!Q38,Calculation2!$E$5,0,1,1) -> 0.06279870254 | Z19: =OFFSET(Calculation2!R38,Calculation2!$E$5,0,1,1) -> 0.0496000061
C20: =OFFSET(Calculation2!C39,Calculation2!$E$5,0,1,1) -> 14 | D20: =OFFSET(Calculation2!J39,Calculation2!$E$5,0,1,1) -> Nestle | E20: =OFFSET(Calculation2!K39,Calculation2!$E$5,0,1,1) -> 71 | H20: =OFFSET(Calculation2!L39,Calculation2!$E$5,0,1,1) -> 0 | K20: =OFFSET(Calculation2!M39,Calculation2!$E$5,0,1,1) -> 0 | N20: =OFFSET(Calculation2!N39,Calculation2!$E$5,0,1,1) -> 1.509850712 | Q20: =OFFSET(Calculation2!O39,Calculation2!$E$5,0,1,1) -> 0.5185871726 | T20: =OFFSET(Calculation2!P39,Calculation2!$E$5,0,1,1) -> 1 | W20: =OFFSET(Calculation2!Q39,Calculation2!$E$5,0,1,1) -> 0.2692506251 | Z20: =OFFSET(Calculation2!R39,Calculation2!$E$5,0,1,1) -> 0.009592296806
D21: =OFFSET(Calculation2!J40,Calculation2!$E$5,0,1,1) -> 0 | E21: =OFFSET(Calculation2!K40,Calculation2!$E$5,0,1,1) -> 0 | H21: =OFFSET(Calculation2!L40,Calculation2!$E$5,0,1,1) -> 0 | K21: =OFFSET(Calculation2!M40,Calculation2!$E$5,0,1,1) -> 0 | N21: =OFFSET(Calculation2!N40,Calculation2!$E$5,0,1,1) -> 0 | Q21: =OFFSET(Calculation2!O40,Calculation2!$E$5,0,1,1) -> 0 | T21: =OFFSET(Calculation2!P40,Calculation2!$E$5,0,1,1) -> 0 | W21: =OFFSET(Calculation2!Q40,Calculation2!$E$5,0,1,1) -> 0 | Z21: =OFFSET(Calculation2!R40,Calculation2!$E$5,0,1,1) -> 0
D22: =OFFSET(Calculation2!J41,Calculation2!$E$5,0,1,1) -> 0 | E22: =OFFSET(Calculation2!K41,Calculation2!$E$5,0,1,1) -> 0 | H22: =OFFSET(Calculation2!L41,Calculation2!$E$5,0,1,1) -> 0 | K22: =OFFSET(Calculation2!M41,Calculation2!$E$5,0,1,1) -> 0 | N22: =OFFSET(Calculation2!N41,Calculation2!$E$5,0,1,1) -> 0 | Q22: =OFFSET(Calculation2!O41,Calculation2!$E$5,0,1,1) -> 0 | T22: =OFFSET(Calculation2!P41,Calculation2!$E$5,0,1,1) -> 0 | W22: =OFFSET(Calculation2!Q41,Calculation2!$E$5,0,1,1) -> 0 | Z22: =OFFSET(Calculation2!R41,Calculation2!$E$5,0,1,1) -> 0
D23: =OFFSET(Calculation2!J42,Calculation2!$E$5,0,1,1) -> 0 | E23: =OFFSET(Calculation2!K42,Calculation2!$E$5,0,1,1) -> 0 | H23: =OFFSET(Calculation2!L42,Calculation2!$E$5,0,1,1) -> 0 | K23: =OFFSET(Calculation2!M42,Calculation2!$E$5,0,1,1) -> 0 | N23: =OFFSET(Calculation2!N42,Calculation2!$E$5,0,1,1) -> 0 | Q23: =OFFSET(Calculation2!O42,Calculation2!$E$5,0,1,1) -> 0 | T23: =OFFSET(Calculation2!P42,Calculation2!$E$5,0,1,1) -> 0 | W23: =OFFSET(Calculation2!Q42,Calculation2!$E$5,0,1,1) -> 0 | Z23: =OFFSET(Calculation2!R42,Calculation2!$E$5,0,1,1) -> 0
D24: =OFFSET(Calculation2!J43,Calculation2!$E$5,0,1,1) -> 0 | E24: =OFFSET(Calculation2!K43,Calculation2!$E$5,0,1,1) -> 0 | H24: =OFFSET(Calculation2!L43,Calculation2!$E$5,0,1,1) -> 0 | K24: =OFFSET(Calculation2!M43,Calculation2!$E$5,0,1,1) -> 0 | N24: =OFFSET(Calculation2!N43,Calculation2!$E$5,0,1,1) -> 0 | Q24: =OFFSET(Calculation2!O43,Calculation2!$E$5,0,1,1) -> 0 | T24: =OFFSET(Calculation2!P43,Calculation2!$E$5,0,1,1) -> 0 | W24: =OFFSET(Calculation2!Q43,Calculation2!$E$5,0,1,1) -> 0 | Z24: =OFFSET(Calculation2!R43,Calculation2!$E$5,0,1,1) -> 0
D25: =OFFSET(Calculation2!J44,Calculation2!$E$5,0,1,1) -> 0 | E25: =OFFSET(Calculation2!K44,Calculation2!$E$5,0,1,1) -> 0 | H25: =OFFSET(Calculation2!L44,Calculation2!$E$5,0,1,1) -> 0 | K25: =OFFSET(Calculation2!M44,Calculation2!$E$5,0,1,1) -> 0 | N25: =OFFSET(Calculation2!N44,Calculation2!$E$5,0,1,1) -> 0 | Q25: =OFFSET(Calculation2!O44,Calculation2!$E$5,0,1,1) -> 0 | T25: =OFFSET(Calculation2!P44,Calculation2!$E$5,0,1,1) -> 0 | W25: =OFFSET(Calculation2!Q44,Calculation2!$E$5,0,1,1) -> 0 | Z25: =OFFSET(Calculation2!R44,Calculation2!$E$5,0,1,1) -> 0
D26: =OFFSET(Calculation2!J45,Calculation2!$E$5,0,1,1) -> 0 | E26: =OFFSET(Calculation2!K45,Calculation2!$E$5,0,1,1) -> 0 | H26: =OFFSET(Calculation2!L45,Calculation2!$E$5,0,1,1) -> 0 | K26: =OFFSET(Calculation2!M45,Calculation2!$E$5,0,1,1) -> 0 | N26: =OFFSET(Calculation2!N45,Calculation2!$E$5,0,1,1) -> 0 | Q26: =OFFSET(Calculation2!O45,Calculation2!$E$5,0,1,1) -> 0 | T26: =OFFSET(Calculation2!P45,Calculation2!$E$5,0,1,1) -> 0 | W26: =OFFSET(Calculation2!Q45,Calculation2!$E$5,0,1,1) -> 0 | Z26: =OFFSET(Calculation2!R45,Calculation2!$E$5,0,1,1) -> 0
D27: =OFFSET(Calculation2!J46,Calculation2!$E$5,0,1,1) -> 0 | E27: =OFFSET(Calculation2!K46,Calculation2!$E$5,0,1,1) -> 0 | H27: =OFFSET(Calculation2!L46,Calculation2!$E$5,0,1,1) -> 0 | K27: =OFFSET(Calculation2!M46,Calculation2!$E$5,0,1,1) -> 0 | N27: =OFFSET(Calculation2!N46,Calculation2!$E$5,0,1,1) -> 0 | Q27: =OFFSET(Calculation2!O46,Calculation2!$E$5,0,1,1) -> 0 | T27: =OFFSET(Calculation2!P46,Calculation2!$E$5,0,1,1) -> 0 | W27: =OFFSET(Calculation2!Q46,Calculation2!$E$5,0,1,1) -> 0 | Z27: =OFFSET(Calculation2!R46,Calculation2!$E$5,0,1,1) -> 0
C28: ███ | D28: Above average | T28: =IF(Calculation2!$E$5<Calculation2!$E$6,"▼","") ->  | W28: =IF(Calculation2!$E$5<Calculation2!$E$6,"▼","") ->  | Z28: =IF(Calculation2!$E$5<Calculation2!$E$6,"▼","") -> 
C29: ███ | D29: Below average
C31: Compare two selected KPIs

Sheet Calculation2
C3: Calculation
D5: Actual Position | E5: 1
D6: Maximum Position | E6: =$C$38-COUNTA(Dashboard2!$D$7:$D$18)+1 -> 1
D7: Sort by | E7: 1
D8: Sort Order | E8: 1
D10: Input List | E10: =TRANSPOSE(Data2!E11:L11) -> Total Score
E11: Promoter Pledge%
E12: Promoter Holding 5 Yr.
E13: CFO/PAT 5 Yr.
E14: Current ratio
E15: Current Cash flow
E16: BVPS 5 Yr.
E17: Receivables/ Sales
D20: Selected KPI X-Axis | E20: 3
D21: Selected KPI Y-Axis | E21: 2
C23: Sort Algorithm | J23: Sorted List | T23: Combined Bar / Line Charts | BL23: Direct Comparison (XY Scatter Chart)
T25: =Data2!E8 -> Total Score | Y25: =Data2!F11 -> Promoter Pledge% | AD25: =Data2!G8 -> Promoter Holding 5 Yr. | AI25: =Data2!H8 -> CFO/PAT 5 Yr. | AN25: =Data2!I8 -> Current ratio | AS25: =Data2!J8 -> Current Cash flow | AX25: =Data2!K8 -> BVPS 5 Yr. | BC25: =Data2!L8 -> Receivables/ Sales | BL25: All | BO25: Displayed 10
E26: Sort KPI | F26: Unique | G26: Sorted | H26: Position | K26: =Data2!E11 -> Total Score | L26: =Data2!F11 -> Promoter Pledge% | M26: =Data2!G11 -> Promoter Holding 5 Yr. | N26: =Data2!H11 -> CFO/PAT 5 Yr. | O26: =Data2!I11 -> Current ratio | P26: =Data2!J11 -> Current Cash flow | Q26: =Data2!K11 -> BVPS 5 Yr. | R26: =Data2!L11 -> Receivables/ Sales | T26: Black | U26: Red | V26: Average | W26: Min | X26: Max | Y26: Black | Z26: Red | AA26: Average | AB26: Min | AC26: Max | AD26: Black | AE26: Red | AF26: Average | AG26: Min | AH26: Max | AI26: Black | AJ26: Red | AK26: Average | AL26: Min | AM26: Max | AN26: Black | AO26: Red | AP26: Average | AQ26: Min | AR26: Max | AS26: Black | AT26: Red | AU26: Average | AV26: Min | AW26: Max | AX26: Black | AY26: Red | AZ26: Average | BA26: Min | BB26: Max | BC26: Black | BD26: Red | BE26: Average | BF26: Min | BG26: Max | BI26: Y Average | BL26: All X | BM26: All Y | BO26: Displayed X | BP26: Displayed Y
C27: 1 | D27: =Data2!D12 -> Britannia | E27: =OFFSET(Data2!$D12,0,mySortCriteria1) -> 84.5 | F27: =E27+$C27/1000000000 -> 84.5 | G27: =CHOOSE($E$8,LARGE($F$27:$F$126,$C27),SMALL($F$27:$F$126,$C27)) -> 87.00000001 | H27: =MATCH(G27,$F$27:$F$126,0) -> 14 | J27: =OFFSET(Data2!D$11,$H27,0) -> Tasty Bite | K27: =OFFSET(Data2!E$11,$H27,0) -> 87 | L27: =OFFSET(Data2!F$11,$H27,0) -> 0 | M27: =OFFSET(Data2!G$11,$H27,0) -> 0.00171345687 | N27: =OFFSET(Data2!H$11,$H27,0) -> 1.457419684 | O27: =OFFSET(Data2!I$11,$H27,0) -> 2.185255799 | P27: =OFFSET(Data2!J$11,$H27,0) -> 1 | Q27: =OFFSET(Data2!K$11,$H27,0) -> 0.2177409387 | R27: =OFFSET(Data2!L$11,$H27,0) -> 0.1190403267 | T27: =IF(Dashboard2!$E7>=Data2!$E$9,Dashboard2!$E7,NA()) -> 87 | U27: =IF(Dashboard2!$E7<Data2!$E$9,Dashboard2!$E7,NA()) ->  | V27: =AVERAGE(K27:K126) -> 53.52380952 | W27: =MIN(K27:K126) -> 0 | X27: =MAX(K27:K126) -> 87 | Y27: =IF(Dashboard2!$H7>=Data2!$F$9,Dashboard2!$H7,NA()) ->  | Z27: =IF(Dashboard2!$H7<Data2!$F$9,Dashboard2!$H7,NA()) -> 0 | AA27: =AVERAGE(L27:L126) -> 0.0100952381 | AB27: =MIN(L27:L126) -> 0 | AC27: =MAX(L27:L126) -> 0.21 | AD27: =IF(Dashboard2!$K7>=Data2!$G$9,Dashboard2!$K7,NA()) -> 0.00171345687 | AE27: =IF(Dashboard2!$K7<Data2!$G$9,Dashboard2!$K7,NA()) ->  | AF27: =AVERAGE(M27:M126) -> -0.00516338739 | AG27: =MIN(M27:M126) -> -0.04974876672 | AH27: =MAX(M27:M126) -> 0.00171345687 | AI27: =IF(Dashboard2!$N7>=Data2!$H$9,Dashboard2!$N7,NA()) -> 1.457419684 | AJ27: =IF(Dashboard2!$N7<Data2!$H$9,Dashboard2!$N7,NA()) ->  | AK27: =AVERAGE(N27:N126) -> 0.7595892754 | AL27: =MIN(N27:N126) -> 0 | AM27: =MAX(N27:N126) -> 2.171111347 | AN27: =IF(Dashboard2!$Q7>=Data2!$I$9,Dashboard2!$Q7,NA()) -> 2.185255799 | AO27: =IF(Dashboard2!$Q7<Data2!$I$9,Dashboard2!$Q7,NA()) ->  | AP27: =AVERAGE(O27:O126) -> 1.051319231 | AQ27: =MIN(O27:O126) -> 0 | AR27: =MAX(O27:O126) -> 2.730163007 | AS27: =IF(Dashboard2!$T7>=Data2!$J$9,Dashboard2!$T7,NA()) -> 1 | AT27: =IF(Dashboard2!$T7<Data2!$J$9,Dashboard2!$T7,NA()) ->  | AU27: =AVERAGE(P27:P126) -> 0.6666666667 | AV27: =MIN(P27:P126) -> 0 | AW27: =MAX(P27:P126) -> 1 | AX27: =IF(Dashboard2!$W7>=Data2!$K$9,Dashboard2!$W7,NA()) ->  | AY27: =IF(Dashboard2!$W7<Data2!$K$9,Dashboard2!$W7,NA()) -> 0.2177409387 | AZ27: =AVERAGE(Q27:Q126) -> 0.1509943052 | BA27: =MIN(Q27:Q126) -> 0 | BB27: =MAX(Q27:Q126) -> 0.3248692757 | BC27: =IF(Dashboard2!$Z7>=Data2!$L$9,Dashboard2!$Z7,NA()) -> 0.1190403267 | BD27: =IF(Dashboard2!$Z7<Data2!$L$9,Dashboard2!$Z7,NA()) ->  | BE27: =AVERAGE(R27:R126) -> 0.0509267677 | BF27: =MIN(R27:R126) -> 0 | BG27: =MAX(R27:R126) -> 0.2422997143 | BI27: 1 | BL27: =OFFSET(Data2!$D12,0,$E$20) -> -0.001081029539 | BM27: =OFFSET(Data2!$D12,0,$E$21) -> 0 | BO27: =OFFSET($J26,$E$5,$E$20) -> 0.00171345687 | BP27: =OFFSET($J26,$E$5,$E$21) -> 0
C28: =C27+1 -> 2 | D28: =Data2!D13 -> Marico | E28: =OFFSET(Data2!$D13,0,mySortCriteria1) -> 84 | F28: 84 | G28: 87.00000001 | H28: 6 | J28: =OFFSET(Data2!D$11,$H28,0) -> Amara Raja Batt | K28: =OFFSET(Data2!E$11,$H28,0) -> 87 | L28: =OFFSET(Data2!F$11,$H28,0) -> 0 | M28: =OFFSET(Data2!G$11,$H28,0) -> 0 | N28: =OFFSET(Data2!H$11,$H28,0) -> 1.07196961 | O28: =OFFSET(Data2!I$11,$H28,0) -> 1.979687458 | P28: =OFFSET(Data2!J$11,$H28,0) -> 1 | Q28: =OFFSET(Data2!K$11,$H28,0) -> 0.2661191397 | R28: =OFFSET(Data2!L$11,$H28,0) -> 0.1262399615 | T28: =IF(Dashboard2!$E8>=Data2!$E$9,Dashboard2!$E8,NA()) -> 87 | U28: =IF(Dashboard2!$E8<Data2!$E$9,Dashboard2!$E8,NA()) ->  | V28: =V27 -> 53.52380952 | W28: =W27 -> 0 | X28: =X27 -> 87 | Y28: =IF(Dashboard2!$H8>=Data2!$F$9,Dashboard2!$H8,NA()) ->  | Z28: =IF(Dashboard2!$H8<Data2!$F$9,Dashboard2!$H8,NA()) -> 0 | AA28: =AA27 -> 0.0100952381 | AB28: =AB27 -> 0 | AC28: =AC27 -> 0.21 | AD28: =IF(Dashboard2!$K8>=$AF28,Dashboard2!$K8,NA()) -> 0 | AE28: =IF(Dashboard2!$K8<$AF28,Dashboard2!$K8,NA()) ->  | AF28: =AF27 -> -0.00516338739 | AG28: =AG27 -> -0.04974876672 | AH28: =AH27 -> 0.00171345687 | AI28: =IF(Dashboard2!$N8>=Data2!$H$9,Dashboard2!$N8,NA()) ->  | AJ28: =IF(Dashboard2!$N8<Data2!$H$9,Dashboard2!$N8,NA()) -> 1.07196961 | AK28: =AK27 -> 0.7595892754 | AL28: =AL27 -> 0 | AM28: =AM27 -> 2.171111347 | AN28: =IF(Dashboard2!$Q8>=Data2!$I$9,Dashboard2!$Q8,NA()) -> 1.979687458 | AO28: =IF(Dashboard2!$Q8<Data2!$I$9,Dashboard2!$Q8,NA()) ->  | AP28: =AP27 -> 1.051319231 | AQ28: 0 | AR28: 2.730163007 | AS28: =IF(Dashboard2!$T8>=Data2!$J$9,Dashboard2!$T8,NA()) -> 1 | AT28: =IF(Dashboard2!$T8<Data2!$J$9,Dashboard2!$T8,NA()) ->  | AU28: =AU27 -> 0.6666666667 | AV28: =AV27 -> 0 | AW28: =AW27 -> 1 | AX28: =IF(Dashboard2!$W8>=Data2!$K$9,Dashboard2!$W8,NA()) -> 0.2661191397 | AY28: =IF(Dashboard2!$W8<Data2!$K$9,Dashboard2!$W8,NA()) ->  | AZ28: =AZ27 -> 0.1509943052 | BA28: =BA27 -> 0 | BB28: =BB27 -> 0.3248692757 | BC28: =IF(Dashboard2!$Z8>=Data2!$L$9,Dashboard2!$Z8,NA()) -> 0.1262399615 | BD28: =IF(Dashboard2!$Z8<Data2!$L$9,Dashboard2!$Z8,NA()) ->  | BE28: =BE27 -> 0.0509267677 | BF28: =BF27 -> 0 | BG28: =BG27 -> 0.2422997143 | BI28: 2 | BL28: =OFFSET(Data2!$D13,0,$E$20) -> -0.01106216917 | BM28: =OFFSET(Data2!$D13,0,$E$21) -> 0 | BO28: 0 | BP28: 0
C29: =C28+1 -> 3 | D29: =Data2!D14 -> Dabur India | E29: =OFFSET(Data2!$D14,0,mySortCriteria1) -> 81.5 | F29: 81.5 | G29: 84.5 | H29: 1 | J29: =OFFSET(Data2!D$11,$H29,0) -> Britannia | K29: =OFFSET(Data2!E$11,$H29,0) -> 84.5 | L29: =OFFSET(Data2!F$11,$H29,0) -> 0 | M29: =OFFSET(Data2!G$11,$H29,0) -> -0.001081029539 | N29: =OFFSET(Data2!H$11,$H29,0) -> 1.151835851 | O29: =OFFSET(Data2!I$11,$H29,0) -> 1.068176269 | P29: =OFFSET(Data2!J$11,$H29,0) -> 1 | Q29: =OFFSET(Data2!K$11,$H29,0) -> 0.3030766559 | R29: =OFFSET(Data2!L$11,$H29,0) -> 0.01342492986 | T29: =IF(Dashboard2!$E9>=Data2!$E$9,Dashboard2!$E9,NA()) -> 84.5 | U29: =IF(Dashboard2!$E9<Data2!$E$9,Dashboard2!$E9,NA()) ->  | V29: =V28 -> 53.52380952 | W29: 0 | X29: 87 | Y29: =IF(Dashboard2!$H9>=Data2!$F$9,Dashboard2!$H9,NA()) ->  | Z29: =IF(Dashboard2!$H9<Data2!$F$9,Dashboard2!$H9,NA()) -> 0 | AA29: =AA28 -> 0.0100952381 | AB29: 0 | AC29: 0.21 | AD29: =IF(Dashboard2!$K9>=$AF29,Dashboard2!$K9,NA()) -> -0.001081029539 | AE29: =IF(Dashboard2!$K9<$AF29,Dashboard2!$K9,NA()) ->  | AF29: =AF28 -> -0.00516338739 | AG29: -0.04974876672 | AH29: 0.00171345687 | AI29: =IF(Dashboard2!$N9>=Data2!$H$9,Dashboard2!$N9,NA()) -> 1.151835851 | AJ29: =IF(Dashboard2!$N9<Data2!$H$9,Dashboard2!$N9,NA()) ->  | AK29: =AK28 -> 0.7595892754 | AL29: 0 | AM29: 2.171111347 | AN29: =IF(Dashboard2!$Q9>=Data2!$I$9,Dashboard2!$Q9,NA()) ->  | AO29: =IF(Dashboard2!$Q9<Data2!$I$9,Dashboard2!$Q9,NA()) -> 1.068176269 | AP29: 1.051319231 | AQ29: 0 | AR29: 2.730163007 | AS29: =IF(Dashboard2!$T9>=Data2!$J$9,Dashboard2!$T9,NA()) -> 1 | AT29: =IF(Dashboard2!$T9<Data2!$J$9,Dashboard2!$T9,NA()) ->  | AU29: =AU28 -> 0.6666666667 | AV29: 0 | AW29: 1 | AX29: =IF(Dashboard2!$W9>=Data2!$K$9,Dashboard2!$W9,NA()) -> 0.3030766559 | AY29: =IF(Dashboard2!$W9<Data2!$K$9,Dashboard2!$W9,NA()) ->  | AZ29: =AZ28 -> 0.1509943052 | BA29: 0 | BB29: 0.3248692757 | BC29: =IF(Dashboard2!$Z9>=Data2!$L$9,Dashboard2!$Z9,NA()) ->  | BD29: =IF(Dashboard2!$Z9<Data2!$L$9,Dashboard2!$Z9,NA()) -> 0.01342492986 | BE29: =BE28 -> 0.0509267677 | BF29: 0 | BG29: 0.2422997143 | BI29: 3 | BL29: =OFFSET(Data2!$D14,0,$E$20) -> -0.002302184059 | BM29: =OFFSET(Data2!$D14,0,$E$21) -> 0 | BO29: -0.001081029539 | BP29: 0
C30: 4 | D30: =Data2!D15 -> Mayur Uniquoter | E30: =OFFSET(Data2!$D15,0,mySortCriteria1) -> 79 | F30: 79 | G30: 84 | H30: 2 | J30: =OFFSET(Data2!D$11,$H30,0) -> Marico | K30: =OFFSET(Data2!E$11,$H30,0) -> 84 | L30: =OFFSET(Data2!F$11,$H30,0) -> 0 | M30: =OFFSET(Data2!G$11,$H30,0) -> -0.01106216917 | N30: =OFFSET(Data2!H$11,$H30,0) -> 1.169780876 | O30: =OFFSET(Data2!I$11,$H30,0) -> 1.900143907 | P30: =OFFSET(Data2!J$11,$H30,0) -> 1 | Q30: =OFFSET(Data2!K$11,$H30,0) -> 0.1746065765 | R30: =OFFSET(Data2!L$11,$H30,0) -> 0.04116411504 | T30: =IF(Dashboard2!$E10>=Data2!$E$9,Dashboard2!$E10,NA()) -> 84 | U30: =IF(Dashboard2!$E10<Data2!$E$9,Dashboard2!$E10,NA()) ->  | V30: 53.52380952 | W30: 0 | X30: 87 | Y30: =IF(Dashboard2!$H10>=Data2!$F$9,Dashboard2!$H10,NA()) ->  | Z30: =IF(Dashboard2!$H10<Data2!$F$9,Dashboard2!$H10,NA()) -> 0 | AA30: 0.0100952381 | AB30: 0 | AC30: 0.21 | AD30: =IF(Dashboard2!$K10>=$AF30,Dashboard2!$K10,NA()) ->  | AE30: =IF(Dashboard2!$K10<$AF30,Dashboard2!$K10,NA()) -> -0.01106216917 | AF30: -0.00516338739 | AG30: -0.04974876672 | AH30: 0.00171345687 | AI30: =IF(Dashboard2!$N10>=Data2!$H$9,Dashboard2!$N10,NA()) -> 1.169780876 | AJ30: =IF(Dashboard2!$N10<Data2!$H$9,Dashboard2!$N10,NA()) ->  | AK30: 0.7595892754 | AL30: 0 | AM30: 2.171111347 | AN30: =IF(Dashboard2!$Q10>=Data2!$I$9,Dashboard2!$Q10,NA()) -> 1.900143907 | AO30: =IF(Dashboard2!$Q10<Data2!$I$9,Dashboard2!$Q10,NA()) ->  | AP30: 1.051319231 | AQ30: 0 | AR30: 2.730163007 | AS30: =IF(Dashboard2!$T10>=Data2!$J$9,Dashboard2!$T10,NA()) -> 1 | AT30: =IF(Dashboard2!$T10<Data2!$J$9,Dashboard2!$T10,NA()) ->  | AU30: 0.6666666667 | AV30: 0 | AW30: 1 | AX30: =IF(Dashboard2!$W10>=Data2!$K$9,Dashboard2!$W10,NA()) ->  | AY30: =IF(Dashboard2!$W10<Data2!$K$9,Dashboard2!$W10,NA()) -> 0.1746065765 | AZ30: 0.1509943052 | BA30: 0 | BB30: 0.3248692757 | BC30: =IF(Dashboard2!$Z10>=Data2!$L$9,Dashboard2!$Z10,NA()) ->  | BD30: =IF(Dashboard2!$Z10<Data2!$L$9,Dashboard2!$Z10,NA()) -> 0.04116411504 | BE30: 0.0509267677 | BF30: 0 | BG30: 0.2422997143 | BI30: 4 | BL30: =OFFSET(Data2!$D15,0,$E$20) -> -0.04974876672 | BM30: =OFFSET(Data2!$D15,0,$E$21) -> 0 | BO30: -0.01106216917 | BP30: 0
C31: 5 | D31: =Data2!D16 -> Titan Company | E31: =OFFSET(Data2!$D16,0,mySortCriteria1) -> 80 | F31: 80.00000001 | G31: 82.00000001 | H31: 12 | J31: =OFFSET(Data2!D$11,$H31,0) -> Page Industries | K31: =OFFSET(Data2!E$11,$H31,0) -> 82 | L31: =OFFSET(Data2!F$11,$H31,0) -> 0 | M31: =OFFSET(Data2!G$11,$H31,0) -> -0.03911850395 | N31: =OFFSET(Data2!H$11,$H31,0) -> 0.8508789809 | O31: =OFFSET(Data2!I$11,$H31,0) -> 2.104962268 | P31: =OFFSET(Data2!J$11,$H31,0) -> 1 | Q31: =OFFSET(Data2!K$11,$H31,0) -> 0.3248692757 | R31: =OFFSET(Data2!L$11,$H31,0) -> 0.05800059436 | T31: =IF(Dashboard2!$E11>=Data2!$E$9,Dashboard2!$E11,NA()) -> 82 | U31: =IF(Dashboard2!$E11<Data2!$E$9,Dashboard2!$E11,NA()) ->  | V31: 53.52380952 | W31: 0 | X31: 87 | Y31: =IF(Dashboard2!$H11>=Data2!$F$9,Dashboard2!$H11,NA()) ->  | Z31: =IF(Dashboard2!$H11<Data2!$F$9,Dashboard2!$H11,NA()) -> 0 | AA31: 0.0100952381 | AB31: 0 | AC31: 0.21 | AD31: =IF(Dashboard2!$K11>=$AF31,Dashboard2!$K11,NA()) ->  | AE31: =IF(Dashboard2!$K11<$AF31,Dashboard2!$K11,NA()) -> -0.03911850395 | AF31: -0.00516338739 | AG31: -0.04974876672 | AH31: 0.00171345687 | AI31: =IF(Dashboard2!$N11>=Data2!$H$9,Dashboard2!$N11,NA()) ->  | AJ31: =IF(Dashboard2!$N11<Data2!$H$9,Dashboard2!$N11,NA()) -> 0.8508789809 | AK31: 0.7595892754 | AL31: 0 | AM31: 2.171111347 | AN31: =IF(Dashboard2!$Q11>=Data2!$I$9,Dashboard2!$Q11,NA()) -> 2.104962268 | AO31: =IF(Dashboard2!$Q11<Data2!$I$9,Dashboard2!$Q11,NA()) ->  | AP31: 1.051319231 | AQ31: 0 | AR31: 2.730163007 | AS31: =IF(Dashboard2!$T11>=Data2!$J$9,Dashboard2!$T11,NA()) -> 1 | AT31: =IF(Dashboard2!$T11<Data2!$J$9,Dashboard2!$T11,NA()) ->  | AU31: 0.6666666667 | AV31: 0 | AW31: 1 | AX31: =IF(Dashboard2!$W11>=Data2!$K$9,Dashboard2!$W11,NA()) -> 0.3248692757 | AY31: =IF(Dashboard2!$W11<Data2!$K$9,Dashboard2!$W11,NA()) ->  | AZ31: 0.1509943052 | BA31: 0 | BB31: 0.3248692757 | BC31: =IF(Dashboard2!$Z11>=Data2!$L$9,Dashboard2!$Z11,NA()) ->  | BD31: =IF(Dashboard2!$Z11<Data2!$L$9,Dashboard2!$Z11,NA()) -> 0.05800059436 | BE31: 0.0509267677 | BF31: 0 | BG31: 0.2422997143 | BI31: 5 | BL31: =OFFSET(Data2!$D16,0,$E$20) -> 0 | BM31: =OFFSET(Data2!$D16,0,$E$21) -> 0 | BO31: -0.03911850395 | BP31: 0
C32: 6 | D32: =Data2!D17 -> Amara Raja Batt | E32: =OFFSET(Data2!$D17,0,mySortCriteria1) -> 87 | F32: 87.00000001 | G32: 82.00000001 | H32: 7 | J32: =OFFSET(Data2!D$11,$H32,0) -> Pidilite Ind | K32: =OFFSET(Data2!E$11,$H32,0) -> 82 | L32: =OFFSET(Data2!F$11,$H32,0) -> 0 | M32: =OFFSET(Data2!G$11,$H32,0) -> -0.004124385679 | N32: =OFFSET(Data2!H$11,$H32,0) -> 1.078453165 | O32: =OFFSET(Data2!I$11,$H32,0) -> 1.647742908 | P32: =OFFSET(Data2!J$11,$H32,0) -> 1 | Q32: =OFFSET(Data2!K$11,$H32,0) -> 0.2042665621 | R32: =OFFSET(Data2!L$11,$H32,0) -> 0.135842591 | T32: =IF(Dashboard2!$E12>=Data2!$E$9,Dashboard2!$E12,NA()) -> 82 | U32: =IF(Dashboard2!$E12<Data2!$E$9,Dashboard2!$E12,NA()) ->  | V32: 53.52380952 | W32: 0 | X32: 87 | Y32: =IF(Dashboard2!$H12>=Data2!$F$9,Dashboard2!$H12,NA()) ->  | Z32: =IF(Dashboard2!$H12<Data2!$F$9,Dashboard2!$H12,NA()) -> 0 | AA32: 0.0100952381 | AB32: 0 | AC32: 0.21 | AD32: =IF(Dashboard2!$K12>=$AF32,Dashboard2!$K12,NA()) -> -0.004124385679 | AE32: =IF(Dashboard2!$K12<$AF32,Dashboard2!$K12,NA()) ->  | AF32: -0.00516338739 | AG32: -0.04974876672 | AH32: 0.00171345687 | AI32: =IF(Dashboard2!$N12>=Data2!$H$9,Dashboard2!$N12,NA()) ->  | AJ32: =IF(Dashboard2!$N12<Data2!$H$9,Dashboard2!$N12,NA()) -> 1.078453165 | AK32: 0.7595892754 | AL32: 0 | AM32: 2.171111347 | AN32: =IF(Dashboard2!$Q12>=Data2!$I$9,Dashboard2!$Q12,NA()) -> 1.647742908 | AO32: =IF(Dashboard2!$Q12<Data2!$I$9,Dashboard2!$Q12,NA()) ->  | AP32: 1.051319231 | AQ32: 0 | AR32: 2.730163007 | AS32: =IF(Dashboard2!$T12>=Data2!$J$9,Dashboard2!$T12,NA()) -> 1 | AT32: =IF(Dashboard2!$T12<Data2!$J$9,Dashboard2!$T12,NA()) ->  | AU32: 0.6666666667 | AV32: 0 | AW32: 1 | AX32: =IF(Dashboard2!$W12>=Data2!$K$9,Dashboard2!$W12,NA()) ->  | AY32: =IF(Dashboard2!$W12<Data2!$K$9,Dashboard2!$W12,NA()) -> 0.2042665621 | AZ32: 0.1509943052 | BA32: 0 | BB32: 0.3248692757 | BC32: =IF(Dashboard2!$Z12>=Data2!$L$9,Dashboard2!$Z12,NA()) -> 0.135842591 | BD32: =IF(Dashboard2!$Z12<Data2!$L$9,Dashboard2!$Z12,NA()) ->  | BE32: 0.0509267677 | BF32: 0 | BG32: 0.2422997143 | BI32: 6 | BL32: =OFFSET(Data2!$D17,0,$E$20) -> 0 | BM32: =OFFSET(Data2!$D17,0,$E$21) -> 0 | BO32: -0.004124385679 | BP32: 0
C33: 7 | D33: =Data2!D18 -> Pidilite Ind | E33: =OFFSET(Data2!$D18,0,mySortCriteria1) -> 82 | F33: 82.00000001 | G33: 81.5 | H33: 3 | J33: =OFFSET(Data2!D$11,$H33,0) -> Dabur India | K33: =OFFSET(Data2!E$11,$H33,0) -> 81.5 | L33: =OFFSET(Data2!F$11,$H33,0) -> 0 | M33: =OFFSET(Data2!G$11,$H33,0) -> -0.002302184059 | N33: =OFFSET(Data2!H$11,$H33,0) -> 1.009524178 | O33: =OFFSET(Data2!I$11,$H33,0) -> 1.196532868 | P33: =OFFSET(Data2!J$11,$H33,0) -> 1 | Q33: =OFFSET(Data2!K$11,$H33,0) -> 0.2423205464 | R33: =OFFSET(Data2!L$11,$H33,0) -> 0.09577692033 | T33: =IF(Dashboard2!$E13>=Data2!$E$9,Dashboard2!$E13,NA()) -> 81.5 | U33: =IF(Dashboard2!$E13<Data2!$E$9,Dashboard2!$E13,NA()) ->  | V33: 53.52380952 | W33: 0 | X33: 87 | Y33: =IF(Dashboard2!$H13>=Data2!$F$9,Dashboard2!$H13,NA()) ->  | Z33: =IF(Dashboard2!$H13<Data2!$F$9,Dashboard2!$H13,NA()) -> 0 | AA33: 0.0100952381 | AB33: 0 | AC33: 0.21 | AD33: =IF(Dashboard2!$K13>=$AF33,Dashboard2!$K13,NA()) -> -0.002302184059 | AE33: =IF(Dashboard2!$K13<$AF33,Dashboard2!$K13,NA()) ->  | AF33: -0.00516338739 | AG33: -0.04974876672 | AH33: 0.00171345687 | AI33: =IF(Dashboard2!$N13>=Data2!$H$9,Dashboard2!$N13,NA()) ->  | AJ33: =IF(Dashboard2!$N13<Data2!$H$9,Dashboard2!$N13,NA()) -> 1.009524178 | AK33: 0.7595892754 | AL33: 0 | AM33: 2.171111347 | AN33: =IF(Dashboard2!$Q13>=Data2!$I$9,Dashboard2!$Q13,NA()) ->  | AO33: =IF(Dashboard2!$Q13<Data2!$I$9,Dashboard2!$Q13,NA()) -> 1.196532868 | AP33: 1.051319231 | AQ33: 0 | AR33: 2.730163007 | AS33: =IF(Dashboard2!$T13>=Data2!$J$9,Dashboard2!$T13,NA()) -> 1 | AT33: =IF(Dashboard2!$T13<Data2!$J$9,Dashboard2!$T13,NA()) ->  | AU33: 0.6666666667 | AV33: 0 | AW33: 1 | AX33: =IF(Dashboard2!$W13>=Data2!$K$9,Dashboard2!$W13,NA()) -> 0.2423205464 | AY33: =IF(Dashboard2!$W13<Data2!$K$9,Dashboard2!$W13,NA()) ->  | AZ33: 0.1509943052 | BA33: 0 | BB33: 0.3248692757 | BC33: =IF(Dashboard2!$Z13>=Data2!$L$9,Dashboard2!$Z13,NA()) -> 0.09577692033 | BD33: =IF(Dashboard2!$Z13<Data2!$L$9,Dashboard2!$Z13,NA()) ->  | BE33: 0.0509267677 | BF33: 0 | BG33: 0.2422997143 | BI33: 7 | BL33: =OFFSET(Data2!$D18,0,$E$20) -> -0.004124385679 | BM33: =OFFSET(Data2!$D18,0,$E$21) -> 0 | BO33: -0.002302184059 | BP33: 0
C34: 8 | D34: =Data2!D19 -> Colgate | E34: =OFFSET(Data2!$D19,0,mySortCriteria1) -> 79 | F34: 79.00000001 | G34: 80.00000001 | H34: 5 | J34: =OFFSET(Data2!D$11,$H34,0) -> Titan Company | K34: =OFFSET(Data2!E$11,$H34,0) -> 80 | L34: =OFFSET(Data2!F$11,$H34,0) -> 0 | M34: =OFFSET(Data2!G$11,$H34,0) -> 0 | N34: =OFFSET(Data2!H$11,$H34,0) -> 0.3529662386 | O34: =OFFSET(Data2!I$11,$H34,0) -> 1.962246734 | P34: =OFFSET(Data2!J$11,$H34,0) -> 1 | Q34: =OFFSET(Data2!K$11,$H34,0) -> 0.2793760383 | R34: =OFFSET(Data2!L$11,$H34,0) -> 0.0173225159 | T34: =IF(Dashboard2!$E14>=Data2!$E$9,Dashboard2!$E14,NA()) ->  | U34: =IF(Dashboard2!$E14<Data2!$E$9,Dashboard2!$E14,NA()) -> 80 | V34: 53.52380952 | W34: 0 | X34: 87 | Y34: =IF(Dashboard2!$H14>=Data2!$F$9,Dashboard2!$H14,NA()) ->  | Z34: =IF(Dashboard2!$H14<Data2!$F$9,Dashboard2!$H14,NA()) -> 0 | AA34: 0.0100952381 | AB34: 0 | AC34: 0.21 | AD34: =IF(Dashboard2!$K14>=$AF34,Dashboard2!$K14,NA()) -> 0 | AE34: =IF(Dashboard2!$K14<$AF34,Dashboard2!$K14,NA()) ->  | AF34: -0.00516338739 | AG34: -0.04974876672 | AH34: 0.00171345687 | AI34: =IF(Dashboard2!$N14>=Data2!$H$9,Dashboard2!$N14,NA()) ->  | AJ34: =IF(Dashboard2!$N14<Data2!$H$9,Dashboard2!$N14,NA()) -> 0.3529662386 | AK34: 0.7595892754 | AL34: 0 | AM34: 2.171111347 | AN34: =IF(Dashboard2!$Q14>=Data2!$I$9,Dashboard2!$Q14,NA()) -> 1.962246734 | AO34: =IF(Dashboard2!$Q14<Data2!$I$9,Dashboard2!$Q14,NA()) ->  | AP34: 1.051319231 | AQ34: 0 | AR34: 2.730163007 | AS34: =IF(Dashboard2!$T14>=Data2!$J$9,Dashboard2!$T14,NA()) -> 1 | AT34: =IF(Dashboard2!$T14<Data2!$J$9,Dashboard2!$T14,NA()) ->  | AU34: 0.6666666667 | AV34: 0 | AW34: 1 | AX34: =IF(Dashboard2!$W14>=Data2!$K$9,Dashboard2!$W14,NA()) -> 0.2793760383 | AY34: =IF(Dashboard2!$W14<Data2!$K$9,Dashboard2!$W14,NA()) ->  | AZ34: 0.1509943052 | BA34: 0 | BB34: 0.3248692757 | BC34: =IF(Dashboard2!$Z14>=Data2!$L$9,Dashboard2!$Z14,NA()) ->  | BD34: =IF(Dashboard2!$Z14<Data2!$L$9,Dashboard2!$Z14,NA()) -> 0.0173225159 | BE34: 0.0509267677 | BF34: 0 | BG34: 0.2422997143 | BI34: 8 | BL34: =OFFSET(Data2!$D19,0,$E$20) -> 0 | BM34: =OFFSET(Data2!$D19,0,$E$21) -> 0 | BO34: 0 | BP34: 0
C35: 9 | D35: =Data2!D20 -> Emami | E35: =OFFSET(Data2!$D20,0,mySortCriteria1) -> 71.5 | F35: 71.50000001 | G35: 79.50000001 | H35: 11 | J35: =OFFSET(Data2!D$11,$H35,0) -> Heritage Foods | K35: =OFFSET(Data2!E$11,$H35,0) -> 79.5 | L35: =OFFSET(Data2!F$11,$H35,0) -> 0 | M35: =OFFSET(Data2!G$11,$H35,0) -> 0 | N35: =OFFSET(Data2!H$11,$H35,0) -> 2.171111347 | O35: =OFFSET(Data2!I$11,$H35,0) -> 1.202954099 | P35: =OFFSET(Data2!J$11,$H35,0) -> 1 | Q35: =OFFSET(Data2!K$11,$H35,0) -> 0.06626092183 | R35: =OFFSET(Data2!L$11,$H35,0) -> 0.01209369145 | T35: =IF(Dashboard2!$E15>=Data2!$E$9,Dashboard2!$E15,NA()) ->  | U35: =IF(Dashboard2!$E15<Data2!$E$9,Dashboard2!$E15,NA()) -> 79.5 | V35: 53.52380952 | W35: 0 | X35: 87 | Y35: =IF(Dashboard2!$H15>=Data2!$F$9,Dashboard2!$H15,NA()) ->  | Z35: =IF(Dashboard2!$H15<Data2!$F$9,Dashboard2!$H15,NA()) -> 0 | AA35: 0.0100952381 | AB35: 0 | AC35: 0.21 | AD35: =IF(Dashboard2!$K15>=$AF35,Dashboard2!$K15,NA()) -> 0 | AE35: =IF(Dashboard2!$K15<$AF35,Dashboard2!$K15,NA()) ->  | AF35: -0.00516338739 | AG35: -0.04974876672 | AH35: 0.00171345687 | AI35: =IF(Dashboard2!$N15>=Data2!$H$9,Dashboard2!$N15,NA()) -> 2.171111347 | AJ35: =IF(Dashboard2!$N15<Data2!$H$9,Dashboard2!$N15,NA()) ->  | AK35: 0.7595892754 | AL35: 0 | AM35: 2.171111347 | AN35: =IF(Dashboard2!$Q15>=Data2!$I$9,Dashboard2!$Q15,NA()) ->  | AO35: =IF(Dashboard2!$Q15<Data2!$I$9,Dashboard2!$Q15,NA()) -> 1.202954099 | AP35: 1.051319231 | AQ35: 0 | AR35: 2.730163007 | AS35: =IF(Dashboard2!$T15>=Data2!$J$9,Dashboard2!$T15,NA()) -> 1 | AT35: =IF(Dashboard2!$T15<Data2!$J$9,Dashboard2!$T15,NA()) ->  | AU35: 0.6666666667 | AV35: 0 | AW35: 1 | AX35: =IF(Dashboard2!$W15>=Data2!$K$9,Dashboard2!$W15,NA()) ->  | AY35: =IF(Dashboard2!$W15<Data2!$K$9,Dashboard2!$W15,NA()) -> 0.06626092183 | AZ35: 0.1509943052 | BA35: 0 | BB35: 0.3248692757 | BC35: =IF(Dashboard2!$Z15>=Data2!$L$9,Dashboard2!$Z15,NA()) ->  | BD35: =IF(Dashboard2!$Z15<Data2!$L$9,Dashboard2!$Z15,NA()) -> 0.01209369145 | BE35: 0.0509267677 | BF35: 0 | BG35: 0.2422997143 | BI35: 9 | BL35: =OFFSET(Data2!$D20,0,$E$20) -> 0 | BM35: =OFFSET(Data2!$D20,0,$E$21) -> 0.21 | BO35: 0 | BP35: 0
C36: 10 | D36: =Data2!D21 -> Godrej Consumer | E36: =OFFSET(Data2!$D21,0,mySortCriteria1) -> 76 | F36: 76.00000001 | G36: 79.00000001 | H36: 8 | J36: =OFFSET(Data2!D$11,$H36,0) -> Colgate | K36: =OFFSET(Data2!E$11,$H36,0) -> 79 | L36: =OFFSET(Data2!F$11,$H36,0) -> 0 | M36: =OFFSET(Data2!G$11,$H36,0) -> 0 | N36: =OFFSET(Data2!H$11,$H36,0) -> 1.064003666 | O36: =OFFSET(Data2!I$11,$H36,0) -> 0.8981403832 | P36: =OFFSET(Data2!J$11,$H36,0) -> 1 | Q36: =OFFSET(Data2!K$11,$H36,0) -> 0.215618599 | R36: =OFFSET(Data2!L$11,$H36,0) -> 0.02439522474 | T36: =IF(Dashboard2!$E16>=Data2!$E$9,Dashboard2!$E16,NA()) ->  | U36: =IF(Dashboard2!$E16<Data2!$E$9,Dashboard2!$E16,NA()) -> 79 | V36: 53.52380952 | W36: 0 | X36: 87 | Y36: =IF(Dashboard2!$H16>=Data2!$F$9,Dashboard2!$H16,NA()) ->  | Z36: =IF(Dashboard2!$H16<Data2!$F$9,Dashboard2!$H16,NA()) -> 0 | AA36: 0.0100952381 | AB36: 0 | AC36: 0.21 | AD36: =IF(Dashboard2!$K16>=$AF36,Dashboard2!$K16,NA()) -> 0 | AE36: =IF(Dashboard2!$K16<$AF36,Dashboard2!$K16,NA()) ->  | AF36: -0.00516338739 | AG36: -0.04974876672 | AH36: 0.00171345687 | AI36: =IF(Dashboard2!$N16>=Data2!$H$9,Dashboard2!$N16,NA()) ->  | AJ36: =IF(Dashboard2!$N16<Data2!$H$9,Dashboard2!$N16,NA()) -> 1.064003666 | AK36: 0.7595892754 | AL36: 0 | AM36: 2.171111347 | AN36: =IF(Dashboard2!$Q16>=Data2!$I$9,Dashboard2!$Q16,NA()) ->  | AO36: =IF(Dashboard2!$Q16<Data2!$I$9,Dashboard2!$Q16,NA()) -> 0.8981403832 | AP36: 1.051319231 | AQ36: 0 | AR36: 2.730163007 | AS36: =IF(Dashboard2!$T16>=Data2!$J$9,Dashboard2!$T16,NA()) -> 1 | AT36: =IF(Dashboard2!$T16<Data2!$J$9,Dashboard2!$T16,NA()) ->  | AU36: 0.6666666667 | AV36: 0 | AW36: 1 | AX36: =IF(Dashboard2!$W16>=Data2!$K$9,Dashboard2!$W16,NA()) ->  | AY36: =IF(Dashboard2!$W16<Data2!$K$9,Dashboard2!$W16,NA()) -> 0.215618599 | AZ36: 0.1509943052 | BA36: 0 | BB36: 0.3248692757 | BC36: =IF(Dashboard2!$Z16>=Data2!$L$9,Dashboard2!$Z16,NA()) ->  | BD36: =IF(Dashboard2!$Z16<Data2!$L$9,Dashboard2!$Z16,NA()) -> 0.02439522474 | BE36: 0.0509267677 | BF36: 0 | BG36: 0.2422997143 | BI36: 10 | BL36: =OFFSET(Data2!$D21,0,$E$20) -> -0.002707552949 | BM36: =OFFSET(Data2!$D21,0,$E$21) -> 0.002 | BO36: 0 | BP36: 0
C37: 11 | D37: =Data2!D22 -> Heritage Foods | E37: =OFFSET(Data2!$D22,0,mySortCriteria1) -> 79.5 | F37: 79.50000001 | G37: 79 | H37: 4 | J37: =OFFSET(Data2!D$11,$H37,0) -> Mayur Uniquoter | K37: =OFFSET(Data2!E$11,$H37,0) -> 79 | L37: =OFFSET(Data2!F$11,$H37,0) -> 0 | M37: =OFFSET(Data2!G$11,$H37,0) -> -0.04974876672 | N37: =OFFSET(Data2!H$11,$H37,0) -> 0.7936142315 | O37: =OFFSET(Data2!I$11,$H37,0) -> 2.730163007 | P37: =OFFSET(Data2!J$11,$H37,0) -> 1 | Q37: =OFFSET(Data2!K$11,$H37,0) -> 0.3152243716 | R37: =OFFSET(Data2!L$11,$H37,0) -> 0.2422997143 | T37: =IF(Dashboard2!$E17>=Data2!$E$9,Dashboard2!$E17,NA()) ->  | U37: =IF(Dashboard2!$E17<Data2!$E$9,Dashboard2!$E17,NA()) -> 79 | V37: 53.52380952 | W37: 0 | X37: 87 | Y37: =IF(Dashboard2!$H17>=Data2!$F$9,Dashboard2!$H17,NA()) ->  | Z37: =IF(Dashboard2!$H17<Data2!$F$9,Dashboard2!$H17,NA()) -> 0 | AA37: 0.0100952381 | AB37: 0 | AC37: 0.21 | AD37: =IF(Dashboard2!$K17>=$AF37,Dashboard2!$K17,NA()) ->  | AE37: =IF(Dashboard2!$K17<$AF37,Dashboard2!$K17,NA()) -> -0.04974876672 | AF37: -0.00516338739 | AG37: -0.04974876672 | AH37: 0.00171345687 | AI37: =IF(Dashboard2!$N17>=Data2!$H$9,Dashboard2!$N17,NA()) ->  | AJ37: =IF(Dashboard2!$N17<Data2!$H$9,Dashboard2!$N17,NA()) -> 0.7936142315 | AK37: 0.7595892754 | AL37: 0 | AM37: 2.171111347 | AN37: =IF(Dashboard2!$Q17>=Data2!$I$9,Dashboard2!$Q17,NA()) -> 2.730163007 | AO37: =IF(Dashboard2!$Q17<Data2!$I$9,Dashboard2!$Q17,NA()) ->  | AP37: 1.051319231 | AQ37: 0 | AR37: 2.730163007 | AS37: =IF(Dashboard2!$T17>=Data2!$J$9,Dashboard2!$T17,NA()) -> 1 | AT37: =IF(Dashboard2!$T17<Data2!$J$9,Dashboard2!$T17,NA()) ->  | AU37: 0.6666666667 | AV37: 0 | AW37: 1 | AX37: =IF(Dashboard2!$W17>=Data2!$K$9,Dashboard2!$W17,NA()) -> 0.3152243716 | AY37: =IF(Dashboard2!$W17<Data2!$K$9,Dashboard2!$W17,NA()) ->  | AZ37: 0.1509943052 | BA37: 0 | BB37: 0.3248692757 | BC37: =IF(Dashboard2!$Z17>=Data2!$L$9,Dashboard2!$Z17,NA()) -> 0.2422997143 | BD37: =IF(Dashboard2!$Z17<Data2!$L$9,Dashboard2!$Z17,NA()) ->  | BE37: 0.0509267677 | BF37: 0 | BG37: 0.2422997143 | BI37: 11 | BL37: =OFFSET(Data2!$D22,0,$E$20) -> 0 | BM37: =OFFSET(Data2!$D22,0,$E$21) -> 0
C38: 12 | D38: =Data2!D23 -> Page Industries | E38: =OFFSET(Data2!$D23,0,mySortCriteria1) -> 82 | F38: 82.00000001 | G38: 76.00000001 | H38: 10 | J38: =OFFSET(Data2!D$11,$H38,0) -> Godrej Consumer | K38: =OFFSET(Data2!E$11,$H38,0) -> 76 | L38: =OFFSET(Data2!F$11,$H38,0) -> 0.002 | M38: =OFFSET(Data2!G$11,$H38,0) -> -0.002707552949 | N38: =OFFSET(Data2!H$11,$H38,0) -> 1.076688148 | O38: =OFFSET(Data2!I$11,$H38,0) -> 1.659308724 | P38: =OFFSET(Data2!J$11,$H38,0) -> 1 | Q38: =OFFSET(Data2!K$11,$H38,0) -> 0.2293514558 | R38: =OFFSET(Data2!L$11,$H38,0) -> 0.1246692336 | T38: =IF(Dashboard2!$E18>=Data2!$E$9,Dashboard2!$E18,NA()) ->  | U38: =IF(Dashboard2!$E18<Data2!$E$9,Dashboard2!$E18,NA()) -> 76 | V38: 53.52380952 | W38: 0 | X38: 87 | Y38: =IF(Dashboard2!$H18>=Data2!$F$9,Dashboard2!$H18,NA()) ->  | Z38: =IF(Dashboard2!$H18<Data2!$F$9,Dashboard2!$H18,NA()) -> 0.002 | AA38: 0.0100952381 | AB38: 0 | AC38: 0.21 | AD38: =IF(Dashboard2!$K18>=$AF38,Dashboard2!$K18,NA()) -> -0.002707552949 | AE38: =IF(Dashboard2!$K18<$AF38,Dashboard2!$K18,NA()) ->  | AF38: -0.00516338739 | AG38: -0.04974876672 | AH38: 0.00171345687 | AI38: =IF(Dashboard2!$N18>=Data2!$H$9,Dashboard2!$N18,NA()) ->  | AJ38: =IF(Dashboard2!$N18<Data2!$H$9,Dashboard2!$N18,NA()) -> 1.076688148 | AK38: 0.7595892754 | AL38: 0 | AM38: 2.171111347 | AN38: =IF(Dashboard2!$Q18>=Data2!$I$9,Dashboard2!$Q18,NA()) -> 1.659308724 | AO38: =IF(Dashboard2!$Q18<Data2!$I$9,Dashboard2!$Q18,NA()) ->  | AP38: 1.051319231 | AQ38: 0 | AR38: 2.730163007 | AS38: =IF(Dashboard2!$T18>=Data2!$J$9,Dashboard2!$T18,NA()) -> 1 | AT38: =IF(Dashboard2!$T18<Data2!$J$9,Dashboard2!$T18,NA()) ->  | AU38: 0.6666666667 | AV38: 0 | AW38: 1 | AX38: =IF(Dashboard2!$W18>=Data2!$K$9,Dashboard2!$W18,NA()) -> 0.2293514558 | AY38: =IF(Dashboard2!$W18<Data2!$K$9,Dashboard2!$W18,NA()) ->  | AZ38: 0.1509943052 | BA38: 0 | BB38: 0.3248692757 | BC38: =IF(Dashboard2!$Z18>=Data2!$L$9,Dashboard2!$Z18,NA()) -> 0.1246692336 | BD38: =IF(Dashboard2!$Z18<Data2!$L$9,Dashboard2!$Z18,NA()) ->  | BE38: 0.0509267677 | BF38: 0 | BG38: 0.2422997143 | BI38: 12 | BL38: =OFFSET(Data2!$D23,0,$E$20) -> -0.03911850395 | BM38: =OFFSET(Data2!$D23,0,$E$21) -> 0
C39: 13 | D39: =Data2!D24 -> Nestle | E39: =OFFSET(Data2!$D24,0,mySortCriteria1) -> 71 | F39: =E39+$C39/1000000000 -> 71.00000001 | G39: 71.50000001 | H39: =MATCH(G39,$F$27:$F$126,0) -> 9 | J39: =OFFSET(Data2!D$11,$H39,0) -> Emami | K39: =OFFSET(Data2!E$11,$H39,0) -> 71.5 | L39: =OFFSET(Data2!F$11,$H39,0) -> 0.21 | M39: =OFFSET(Data2!G$11,$H39,0) -> 0 | N39: =OFFSET(Data2!H$11,$H39,0) -> 1.193278096 | O39: =OFFSET(Data2!I$11,$H39,0) -> 1.023802263 | P39: =OFFSET(Data2!J$11,$H39,0) -> 1 | Q39: =OFFSET(Data2!K$11,$H39,0) -> 0.06279870254 | R39: =OFFSET(Data2!L$11,$H39,0) -> 0.0496000061 | T39: =IF(Dashboard2!$E19>=Data2!$E$9,Dashboard2!$E19,NA()) ->  | U39: =IF(Dashboard2!$E19<Data2!$E$9,Dashboard2!$E19,NA()) -> 71.5 | V39: 53.52380952 | W39: 0 | X39: 87 | Y39: =IF(Dashboard2!$H19>=Data2!$F$9,Dashboard2!$H19,NA()) -> 0.21 | Z39: =IF(Dashboard2!$H19<Data2!$F$9,Dashboard2!$H19,NA()) ->  | AA39: 0.0100952381 | AB39: 0 | AC39: 0.21 | AD39: =IF(Dashboard2!$K19>=$AF39,Dashboard2!$K19,NA()) -> 0 | AE39: =IF(Dashboard2!$K19<$AF39,Dashboard2!$K19,NA()) ->  | AF39: -0.00516338739 | AG39: -0.04974876672 | AH39: 0.00171345687 | AI39: =IF(Dashboard2!$N19>=Data2!$H$9,Dashboard2!$N19,NA()) -> 1.193278096 | AJ39: =IF(Dashboard2!$N19<Data2!$H$9,Dashboard2!$N19,NA()) ->  | AK39: 0.7595892754 | AL39: 0 | AM39: 2.171111347 | AN39: =IF(Dashboard2!$Q19>=Data2!$I$9,Dashboard2!$Q19,NA()) ->  | AO39: =IF(Dashboard2!$Q19<Data2!$I$9,Dashboard2!$Q19,NA()) -> 1.023802263 | AP39: 1.051319231 | AQ39: 0 | AR39: 2.730163007 | AS39: =IF(Dashboard2!$T19>=Data2!$J$9,Dashboard2!$T19,NA()) -> 1 | AT39: =IF(Dashboard2!$T19<Data2!$J$9,Dashboard2!$T19,NA()) ->  | AU39: 0.6666666667 | AV39: 0 | AW39: 1 | AX39: =IF(Dashboard2!$W19>=Data2!$K$9,Dashboard2!$W19,NA()) ->  | AY39: =IF(Dashboard2!$W19<Data2!$K$9,Dashboard2!$W19,NA()) -> 0.06279870254 | AZ39: 0.1509943052 | BA39: 0 | BB39: 0.3248692757 | BC39: =IF(Dashboard2!$Z19>=Data2!$L$9,Dashboard2!$Z19,NA()) ->  | BD39: =IF(Dashboard2!$Z19<Data2!$L$9,Dashboard2!$Z19,NA()) -> 0.0496000061 | BE39: 0.0509267677 | BF39: 0 | BG39: 0.2422997143 | BI39: 13 | BL39: =OFFSET(Data2!$D24,0,$E$20) -> 0 | BM39: =OFFSET(Data2!$D24,0,$E$21) -> 0
C40: 14 | D40: =Data2!D25 -> Tasty Bite | E40: =OFFSET(Data2!$D25,0,mySortCriteria1) -> 87 | F40: =E40+$C40/1000000000 -> 87.00000001 | G40: 71.00000001 | H40: =MATCH(G40,$F$27:$F$126,0) -> 13 | J40: =OFFSET(Data2!D$11,$H40,0) -> Nestle | K40: =OFFSET(Data2!E$11,$H40,0) -> 71 | L40: =OFFSET(Data2!F$11,$H40,0) -> 0 | M40: =OFFSET(Data2!G$11,$H40,0) -> 0 | N40: =OFFSET(Data2!H$11,$H40,0) -> 1.509850712 | O40: =OFFSET(Data2!I$11,$H40,0) -> 0.5185871726 | P40: =OFFSET(Data2!J$11,$H40,0) -> 1 | Q40: =OFFSET(Data2!K$11,$H40,0) -> 0.2692506251 | R40: =OFFSET(Data2!L$11,$H40,0) -> 0.009592296806 | T40: =IF(Dashboard2!$E20>=Data2!$E$9,Dashboard2!$E20,NA()) ->  | U40: =IF(Dashboard2!$E20<Data2!$E$9,Dashboard2!$E20,NA()) -> 71 | V40: 53.52380952 | W40: 0 | X40: 87 | Y40: =IF(Dashboard2!$H20>=Data2!$F$9,Dashboard2!$H20,NA()) ->  | Z40: =IF(Dashboard2!$H20<Data2!$F$9,Dashboard2!$H20,NA()) -> 0 | AA40: 0.0100952381 | AB40: 0 | AC40: 0.21 | AD40: =IF(Dashboard2!$K20>=$AF40,Dashboard2!$K20,NA()) -> 0 | AE40: =IF(Dashboard2!$K20<$AF40,Dashboard2!$K20,NA()) ->  | AF40: -0.00516338739 | AG40: -0.04974876672 | AH40: 0.00171345687 | AI40: =IF(Dashboard2!$N20>=Data2!$H$9,Dashboard2!$N20,NA()) -> 1.509850712 | AJ40: =IF(Dashboard2!$N20<Data2!$H$9,Dashboard2!$N20,NA()) ->  | AK40: 0.7595892754 | AL40: 0 | AM40: 2.171111347 | AN40: =IF(Dashboard2!$Q20>=Data2!$I$9,Dashboard2!$Q20,NA()) ->  | AO40: =IF(Dashboard2!$Q20<Data2!$I$9,Dashboard2!$Q20,NA()) -> 0.5185871726 | AP40: 1.051319231 | AQ40: 0 | AR40: 2.730163007 | AS40: =IF(Dashboard2!$T20>=Data2!$J$9,Dashboard2!$T20,NA()) -> 1 | AT40: =IF(Dashboard2!$T20<Data2!$J$9,Dashboard2!$T20,NA()) ->  | AU40: 0.6666666667 | AV40: 0 | AW40: 1 | AX40: =IF(Dashboard2!$W20>=Data2!$K$9,Dashboard2!$W20,NA()) -> 0.2692506251 | AY40: =IF(Dashboard2!$W20<Data2!$K$9,Dashboard2!$W20,NA()) ->  | AZ40: 0.1509943052 | BA40: 0 | BB40: 0.3248692757 | BC40: =IF(Dashboard2!$Z20>=Data2!$L$9,Dashboard2!$Z20,NA()) ->  | BD40: =IF(Dashboard2!$Z20<Data2!$L$9,Dashboard2!$Z20,NA()) -> 0.009592296806 | BE40: 0.0509267677 | BF40: 0 | BG40: 0.2422997143 | BI40: 14 | BL40: =OFFSET(Data2!$D25,0,$E$20) -> 0.00171345687 | BM40: =OFFSET(Data2!$D25,0,$E$21) -> 0
C41: 15 | D41: =Data2!D26 -> 0 | E41: =OFFSET(Data2!$D26,0,mySortCriteria1) -> 0 | F41: =E41+$C41/1000000000 -> 1.5e-08 | G41: 2.1e-08 | H41: =MATCH(G41,$F$27:$F$126,0) -> 21 | J41: =OFFSET(Data2!D$11,$H41,0) -> 0 | K41: =OFFSET(Data2!E$11,$H41,0) -> 0 | L41: =OFFSET(Data2!F$11,$H41,0) -> 0 | M41: =OFFSET(Data2!G$11,$H41,0) -> 0 | N41: =OFFSET(Data2!H$11,$H41,0) -> 0 | O41: =OFFSET(Data2!I$11,$H41,0) -> 0 | P41: =OFFSET(Data2!J$11,$H41,0) -> 0 | Q41: =OFFSET(Data2!K$11,$H41,0) -> 0 | R41: =OFFSET(Data2!L$11,$H41,0) -> 0 | T41: =IF(Dashboard2!$E21>=Data2!$E$9,Dashboard2!$E21,NA()) ->  | U41: =IF(Dashboard2!$E21<Data2!$E$9,Dashboard2!$E21,NA()) -> 0 | V41: 53.52380952 | W41: 0 | X41: 87 | Y41: =IF(Dashboard2!$H21>=Data2!$F$9,Dashboard2!$H21,NA()) ->  | Z41: =IF(Dashboard2!$H21<Data2!$F$9,Dashboard2!$H21,NA()) -> 0 | AA41: 0.0100952381 | AB41: 0 | AC41: 0.21 | AD41: =IF(Dashboard2!$K21>=$AF41,Dashboard2!$K21,NA()) -> 0 | AE41: =IF(Dashboard2!$K21<$AF41,Dashboard2!$K21,NA()) ->  | AF41: -0.00516338739 | AG41: -0.04974876672 | AH41: 0.00171345687 | AI41: =IF(Dashboard2!$N21>=Data2!$H$9,Dashboard2!$N21,NA()) ->  | AJ41: =IF(Dashboard2!$N21<Data2!$H$9,Dashboard2!$N21,NA()) -> 0 | AK41: 0.7595892754 | AL41: 0 | AM41: 2.171111347 | AN41: =IF(Dashboard2!$Q21>=Data2!$I$9,Dashboard2!$Q21,NA()) ->  | AO41: =IF(Dashboard2!$Q21<Data2!$I$9,Dashboard2!$Q21,NA()) -> 0 | AP41: 1.051319231 | AQ41: 0 | AR41: 2.730163007 | AS41: =IF(Dashboard2!$T21>=Data2!$J$9,Dashboard2!$T21,NA()) ->  | AT41: =IF(Dashboard2!$T21<Data2!$J$9,Dashboard2!$T21,NA()) -> 0 | AU41: 0.6666666667 | AV41: 0 | AW41: 1 | AX41: =IF(Dashboard2!$W21>=Data2!$K$9,Dashboard2!$W21,NA()) ->  | AY41: =IF(Dashboard2!$W21<Data2!$K$9,Dashboard2!$W21,NA()) -> 0 | AZ41: 0.1509943052 | BA41: 0 | BB41: 0.3248692757 | BC41: =IF(Dashboard2!$Z21>=Data2!$L$9,Dashboard2!$Z21,NA()) ->  | BD41: =IF(Dashboard2!$Z21<Data2!$L$9,Dashboard2!$Z21,NA()) -> 0 | BE41: 0.0509267677 | BF41: 0 | BG41: 0.2422997143 | BI41: 15 | BL41: =OFFSET(Data2!$D26,0,$E$20) -> 0 | BM41: =OFFSET(Data2!$D26,0,$E$21) -> 0
C42: 16 | D42: =Data2!D27 -> 0 | E42: =OFFSET(Data2!$D27,0,mySortCriteria1) -> 0 | F42: 1.6e-08 | G42: 2e-08 | H42: 20 | J42: =OFFSET(Data2!D$11,$H42,0) -> 0 | K42: =OFFSET(Data2!E$11,$H42,0) -> 0 | L42: =OFFSET(Data2!F$11,$H42,0) -> 0 | M42: =OFFSET(Data2!G$11,$H42,0) -> 0 | N42: =OFFSET(Data2!H$11,$H42,0) -> 0 | O42: =OFFSET(Data2!I$11,$H42,0) -> 0 | P42: =OFFSET(Data2!J$11,$H42,0) -> 0 | Q42: =OFFSET(Data2!K$11,$H42,0) -> 0 | R42: =OFFSET(Data2!L$11,$H42,0) -> 0 | T42: =IF(Dashboard2!$E22>=Data2!$E$9,Dashboard2!$E22,NA()) ->  | U42: =IF(Dashboard2!$E22<Data2!$E$9,Dashboard2!$E22,NA()) -> 0 | V42: 53.52380952 | W42: 0 | X42: 87 | Y42: =IF(Dashboard2!$H22>=Data2!$F$9,Dashboard2!$H22,NA()) ->  | Z42: =IF(Dashboard2!$H22<Data2!$F$9,Dashboard2!$H22,NA()) -> 0 | AA42: 0.0100952381 | AB42: 0 | AC42: 0.21 | AD42: =IF(Dashboard2!$K22>=$AF42,Dashboard2!$K22,NA()) -> 0 | AE42: =IF(Dashboard2!$K22<$AF42,Dashboard2!$K22,NA()) ->  | AF42: -0.00516338739 | AG42: -0.04974876672 | AH42: 0.00171345687 | AI42: =IF(Dashboard2!$N22>=Data2!$H$9,Dashboard2!$N22,NA()) ->  | AJ42: =IF(Dashboard2!$N22<Data2!$H$9,Dashboard2!$N22,NA()) -> 0 | AK42: 0.7595892754 | AL42: 0 | AM42: 2.171111347 | AN42: =IF(Dashboard2!$Q22>=Data2!$I$9,Dashboard2!$Q22,NA()) ->  | AO42: =IF(Dashboard2!$Q22<Data2!$I$9,Dashboard2!$Q22,NA()) -> 0 | AP42: 1.051319231 | AQ42: 0 | AR42: 2.730163007 | AS42: =IF(Dashboard2!$T22>=Data2!$J$9,Dashboard2!$T22,NA()) ->  | AT42: =IF(Dashboard2!$T22<Data2!$J$9,Dashboard2!$T22,NA()) -> 0 | AU42: 0.6666666667 | AV42: 0 | AW42: 1 | AX42: =IF(Dashboard2!$W22>=Data2!$K$9,Dashboard2!$W22,NA()) ->  | AY42: =IF(Dashboard2!$W22<Data2!$K$9,Dashboard2!$W22,NA()) -> 0 | AZ42: 0.1509943052 | BA42: 0 | BB42: 0.3248692757 | BC42: =IF(Dashboard2!$Z22>=Data2!$L$9,Dashboard2!$Z22,NA()) ->  | BD42: =IF(Dashboard2!$Z22<Data2!$L$9,Dashboard2!$Z22,NA()) -> 0 | BE42: 0.0509267677 | BF42: 0 | BG42: 0.2422997143 | BI42: 16 | BL42: =OFFSET(Data2!$D27,0,$E$20) -> 0 | BM42: =OFFSET(Data2!$D27,0,$E$21) -> 0
C43: 17 | D43: =Data2!D28 -> 0 | E43: =OFFSET(Data2!$D28,0,mySortCriteria1) -> 0 | F43: 1.7e-08 | G43: 1.9e-08 | H43: 19 | J43: =OFFSET(Data2!D$11,$H43,0) -> 0 | K43: =OFFSET(Data2!E$11,$H43,0) -> 0 | L43: =OFFSET(Data2!F$11,$H43,0) -> 0 | M43: =OFFSET(Data2!G$11,$H43,0) -> 0 | N43: =OFFSET(Data2!H$11,$H43,0) -> 0 | O43: =OFFSET(Data2!I$11,$H43,0) -> 0 | P43: =OFFSET(Data2!J$11,$H43,0) -> 0 | Q43: =OFFSET(Data2!K$11,$H43,0) -> 0 | R43: =OFFSET(Data2!L$11,$H43,0) -> 0 | T43: =IF(Dashboard2!$E23>=Data2!$E$9,Dashboard2!$E23,NA()) ->  | U43: =IF(Dashboard2!$E23<Data2!$E$9,Dashboard2!$E23,NA()) -> 0 | V43: 53.52380952 | W43: 0 | X43: 87 | Y43: =IF(Dashboard2!$H23>=Data2!$F$9,Dashboard2!$H23,NA()) ->  | Z43: =IF(Dashboard2!$H23<Data2!$F$9,Dashboard2!$H23,NA()) -> 0 | AA43: 0.0100952381 | AB43: 0 | AC43: 0.21 | AD43: =IF(Dashboard2!$K23>=$AF43,Dashboard2!$K23,NA()) -> 0 | AE43: =IF(Dashboard2!$K23<$AF43,Dashboard2!$K23,NA()) ->  | AF43: -0.00516338739 | AG43: -0.04974876672 | AH43: 0.00171345687 | AI43: =IF(Dashboard2!$N23>=Data2!$H$9,Dashboard2!$N23,NA()) ->  | AJ43: =IF(Dashboard2!$N23<Data2!$H$9,Dashboard2!$N23,NA()) -> 0 | AK43: 0.7595892754 | AL43: 0 | AM43: 2.171111347 | AN43: =IF(Dashboard2!$Q23>=Data2!$I$9,Dashboard2!$Q23,NA()) ->  | AO43: =IF(Dashboard2!$Q23<Data2!$I$9,Dashboard2!$Q23,NA()) -> 0 | AP43: 1.051319231 | AQ43: 0 | AR43: 2.730163007 | AS43: =IF(Dashboard2!$T23>=Data2!$J$9,Dashboard2!$T23,NA()) ->  | AT43: =IF(Dashboard2!$T23<Data2!$J$9,Dashboard2!$T23,NA()) -> 0 | AU43: 0.6666666667 | AV43: 0 | AW43: 1 | AX43: =IF(Dashboard2!$W23>=Data2!$K$9,Dashboard2!$W23,NA()) ->  | AY43: =IF(Dashboard2!$W23<Data2!$K$9,Dashboard2!$W23,NA()) -> 0 | AZ43: 0.1509943052 | BA43: 0 | BB43: 0.3248692757 | BC43: =IF(Dashboard2!$Z23>=Data2!$L$9,Dashboard2!$Z23,NA()) ->  | BD43: =IF(Dashboard2!$Z23<Data2!$L$9,Dashboard2!$Z23,NA()) -> 0 | BE43: 0.0509267677 | BF43: 0 | BG43: 0.2422997143 | BI43: 17 | BL43: =OFFSET(Data2!$D28,0,$E$20) -> 0 | BM43: =OFFSET(Data2!$D28,0,$E$21) -> 0
C44: 18 | D44: =Data2!D29 -> 0 | E44: =OFFSET(Data2!$D29,0,mySortCriteria1) -> 0 | F44: 1.8e-08 | G44: 1.8e-08 | H44: 18 | J44: =OFFSET(Data2!D$11,$H44,0) -> 0 | K44: =OFFSET(Data2!E$11,$H44,0) -> 0 | L44: =OFFSET(Data2!F$11,$H44,0) -> 0 | M44: =OFFSET(Data2!G$11,$H44,0) -> 0 | N44: =OFFSET(Data2!H$11,$H44,0) -> 0 | O44: =OFFSET(Data2!I$11,$H44,0) -> 0 | P44: =OFFSET(Data2!J$11,$H44,0) -> 0 | Q44: =OFFSET(Data2!K$11,$H44,0) -> 0 | R44: =OFFSET(Data2!L$11,$H44,0) -> 0 | T44: =IF(Dashboard2!$E24>=Data2!$E$9,Dashboard2!$E24,NA()) ->  | U44: =IF(Dashboard2!$E24<Data2!$E$9,Dashboard2!$E24,NA()) -> 0 | V44: 53.52380952 | W44: 0 | X44: 87 | Y44: =IF(Dashboard2!$H24>=Data2!$F$9,Dashboard2!$H24,NA()) ->  | Z44: =IF(Dashboard2!$H24<Data2!$F$9,Dashboard2!$H24,NA()) -> 0 | AA44: 0.0100952381 | AB44: 0 | AC44: 0.21 | AD44: =IF(Dashboard2!$K24>=$AF44,Dashboard2!$K24,NA()) -> 0 | AE44: =IF(Dashboard2!$K24<$AF44,Dashboard2!$K24,NA()) ->  | AF44: -0.00516338739 | AG44: -0.04974876672 | AH44: 0.00171345687 | AI44: =IF(Dashboard2!$N24>=Data2!$H$9,Dashboard2!$N24,NA()) ->  | AJ44: =IF(Dashboard2!$N24<Data2!$H$9,Dashboard2!$N24,NA()) -> 0 | AK44: 0.7595892754 | AL44: 0 | AM44: 2.171111347 | AN44: =IF(Dashboard2!$Q24>=Data2!$I$9,Dashboard2!$Q24,NA()) ->  | AO44: =IF(Dashboard2!$Q24<Data2!$I$9,Dashboard2!$Q24,NA()) -> 0 | AP44: =AP43 -> 1.051319231 | AQ44: 0 | AR44: 2.730163007 | AS44: =IF(Dashboard2!$T24>=Data2!$J$9,Dashboard2!$T24,NA()) ->  | AT44: =IF(Dashboard2!$T24<Data2!$J$9,Dashboard2!$T24,NA()) -> 0 | AU44: 0.6666666667 | AV44: 0 | AW44: 1 | AX44: =IF(Dashboard2!$W24>=Data2!$K$9,Dashboard2!$W24,NA()) ->  | AY44: =IF(Dashboard2!$W24<Data2!$K$9,Dashboard2!$W24,NA()) -> 0 | AZ44: 0.1509943052 | BA44: 0 | BB44: 0.3248692757 | BC44: =IF(Dashboard2!$Z24>=Data2!$L$9,Dashboard2!$Z24,NA()) ->  | BD44: =IF(Dashboard2!$Z24<Data2!$L$9,Dashboard2!$Z24,NA()) -> 0 | BE44: 0.0509267677 | BF44: 0 | BG44: 0.2422997143 | BI44: 18 | BL44: =OFFSET(Data2!$D29,0,$E$20) -> 0 | BM44: =OFFSET(Data2!$D29,0,$E$21) -> 0
C45: 19 | D45: =Data2!D30 -> 0 | E45: =OFFSET(Data2!$D30,0,mySortCriteria1) -> 0 | F45: 1.9e-08 | G45: 1.7e-08 | H45: 17 | J45: =OFFSET(Data2!D$11,$H45,0) -> 0 | K45: =OFFSET(Data2!E$11,$H45,0) -> 0 | L45: =OFFSET(Data2!F$11,$H45,0) -> 0 | M45: =OFFSET(Data2!G$11,$H45,0) -> 0 | N45: =OFFSET(Data2!H$11,$H45,0) -> 0 | O45: =OFFSET(Data2!I$11,$H45,0) -> 0 | P45: =OFFSET(Data2!J$11,$H45,0) -> 0 | Q45: =OFFSET(Data2!K$11,$H45,0) -> 0 | R45: =OFFSET(Data2!L$11,$H45,0) -> 0 | T45: =IF(Dashboard2!$E25>=Data2!$E$9,Dashboard2!$E25,NA()) ->  | U45: =IF(Dashboard2!$E25<Data2!$E$9,Dashboard2!$E25,NA()) -> 0 | V45: =V44 -> 53.52380952 | W45: 0 | X45: 87 | Y45: =IF(Dashboard2!$H25>=Data2!$F$9,Dashboard2!$H25,NA()) ->  | Z45: =IF(Dashboard2!$H25<Data2!$F$9,Dashboard2!$H25,NA()) -> 0 | AA45: =AA44 -> 0.0100952381 | AB45: 0 | AC45: 0.21 | AD45: =IF(Dashboard2!$K25>=$AF45,Dashboard2!$K25,NA()) -> 0 | AE45: =IF(Dashboard2!$K25<$AF45,Dashboard2!$K25,NA()) ->  | AF45: =AF44 -> -0.00516338739 | AG45: -0.04974876672 | AH45: 0.00171345687 | AI45: =IF(Dashboard2!$N25>=Data2!$H$9,Dashboard2!$N25,NA()) ->  | AJ45: =IF(Dashboard2!$N25<Data2!$H$9,Dashboard2!$N25,NA()) -> 0 | AK45: =AK44 -> 0.7595892754 | AL45: 0 | AM45: 2.171111347 | AN45: =IF(Dashboard2!$Q25>=Data2!$I$9,Dashboard2!$Q25,NA()) ->  | AO45: =IF(Dashboard2!$Q25<Data2!$I$9,Dashboard2!$Q25,NA()) -> 0 | AP45: 1.051319231 | AQ45: 0 | AR45: 2.730163007 | AS45: =IF(Dashboard2!$T25>=Data2!$J$9,Dashboard2!$T25,NA()) ->  | AT45: =IF(Dashboard2!$T25<Data2!$J$9,Dashboard2!$T25,NA()) -> 0 | AU45: =AU44 -> 0.6666666667 | AV45: 0 | AW45: 1 | AX45: =IF(Dashboard2!$W25>=Data2!$K$9,Dashboard2!$W25,NA()) ->  | AY45: =IF(Dashboard2!$W25<Data2!$K$9,Dashboard2!$W25,NA()) -> 0 | AZ45: =AZ44 -> 0.1509943052 | BA45: 0 | BB45: 0.3248692757 | BC45: =IF(Dashboard2!$Z25>=Data2!$L$9,Dashboard2!$Z25,NA()) ->  | BD45: =IF(Dashboard2!$Z25<Data2!$L$9,Dashboard2!$Z25,NA()) -> 0 | BE45: =BE44 -> 0.0509267677 | BF45: 0 | BG45: 0.2422997143 | BI45: 19 | BL45: =OFFSET(Data2!$D30,0,$E$20) -> 0 | BM45: =OFFSET(Data2!$D30,0,$E$21) -> 0
C46: 20 | D46: =Data2!D31 -> 0 | E46: =OFFSET(Data2!$D31,0,mySortCriteria1) -> 0 | F46: 2e-08 | G46: 1.6e-08 | H46: 16 | J46: =OFFSET(Data2!D$11,$H46,0) -> 0 | K46: =OFFSET(Data2!E$11,$H46,0) -> 0 | L46: =OFFSET(Data2!F$11,$H46,0) -> 0 | M46: =OFFSET(Data2!G$11,$H46,0) -> 0 | N46: =OFFSET(Data2!H$11,$H46,0) -> 0 | O46: =OFFSET(Data2!I$11,$H46,0) -> 0 | P46: =OFFSET(Data2!J$11,$H46,0) -> 0 | Q46: =OFFSET(Data2!K$11,$H46,0) -> 0 | R46: =OFFSET(Data2!L$11,$H46,0) -> 0 | T46: =IF(Dashboard2!$E26>=Data2!$E$9,Dashboard2!$E26,NA()) ->  | U46: =IF(Dashboard2!$E26<Data2!$E$9,Dashboard2!$E26,NA()) -> 0 | V46: 53.52380952 | W46: 0 | X46: 87 | Y46: =IF(Dashboard2!$H26>=Data2!$F$9,Dashboard2!$H26,NA()) ->  | Z46: =IF(Dashboard2!$H26<Data2!$F$9,Dashboard2!$H26,NA()) -> 0 | AA46: 0.0100952381 | AB46: 0 | AC46: 0.21 | AD46: =IF(Dashboard2!$K26>=$AF46,Dashboard2!$K26,NA()) -> 0 | AE46: =IF(Dashboard2!$K26<$AF46,Dashboard2!$K26,NA()) ->  | AF46: -0.00516338739 | AG46: -0.04974876672 | AH46: 0.00171345687 | AI46: =IF(Dashboard2!$N26>=Data2!$H$9,Dashboard2!$N26,NA()) ->  | AJ46: =IF(Dashboard2!$N26<Data2!$H$9,Dashboard2!$N26,NA()) -> 0 | AK46: 0.7595892754 | AL46: 0 | AM46: 2.171111347 | AN46: =IF(Dashboard2!$Q26>=Data2!$I$9,Dashboard2!$Q26,NA()) ->  | AO46: =IF(Dashboard2!$Q26<Data2!$I$9,Dashboard2!$Q26,NA()) -> 0 | AP46: 1.051319231 | AQ46: 0 | AR46: 2.730163007 | AS46: =IF(Dashboard2!$T26>=Data2!$J$9,Dashboard2!$T26,NA()) ->  | AT46: =IF(Dashboard2!$T26<Data2!$J$9,Dashboard2!$T26,NA()) -> 0 | AU46: 0.6666666667 | AV46: 0 | AW46: 1 | AX46: =IF(Dashboard2!$W26>=Data2!$K$9,Dashboard2!$W26,NA()) ->  | AY46: =IF(Dashboard2!$W26<Data2!$K$9,Dashboard2!$W26,NA()) -> 0 | AZ46: 0.1509943052 | BA46: 0 | BB46: 0.3248692757 | BC46: =IF(Dashboard2!$Z26>=Data2!$L$9,Dashboard2!$Z26,NA()) ->  | BD46: =IF(Dashboard2!$Z26<Data2!$L$9,Dashboard2!$Z26,NA()) -> 0 | BE46: 0.0509267677 | BF46: 0 | BG46: 0.2422997143 | BI46: 20 | BL46: =OFFSET(Data2!$D31,0,$E$20) -> 0 | BM46: =OFFSET(Data2!$D31,0,$E$21) -> 0
C47: 21 | D47: =Data2!D32 -> 0 | E47: =OFFSET(Data2!$D32,0,mySortCriteria1) -> 0 | F47: =E47+$C47/1000000000 -> 2.1e-08 | G47: 1.5e-08 | H47: =MATCH(G47,$F$27:$F$126,0) -> 15 | J47: =OFFSET(Data2!D$11,$H47,0) -> 0 | K47: =OFFSET(Data2!E$11,$H47,0) -> 0 | L47: =OFFSET(Data2!F$11,$H47,0) -> 0 | M47: =OFFSET(Data2!G$11,$H47,0) -> 0 | N47: =OFFSET(Data2!H$11,$H47,0) -> 0 | O47: =OFFSET(Data2!I$11,$H47,0) -> 0 | P47: =OFFSET(Data2!J$11,$H47,0) -> 0 | Q47: =OFFSET(Data2!K$11,$H47,0) -> 0 | R47: =OFFSET(Data2!L$11,$H47,0) -> 0 | T47: =IF(Dashboard2!$E27>=Data2!$E$9,Dashboard2!$E27,NA()) ->  | U47: =IF(Dashboard2!$E27<Data2!$E$9,Dashboard2!$E27,NA()) -> 0 | V47: 53.52380952 | W47: 0 | X47: 87 | Y47: =IF(Dashboard2!$H27>=Data2!$F$9,Dashboard2!$H27,NA()) ->  | Z47: =IF(Dashboard2!$H27<Data2!$F$9,Dashboard2!$H27,NA()) -> 0 | AA47: 0.0100952381 | AB47: 0 | AC47: 0.21 | AD47: =IF(Dashboard2!$K27>=$AF47,Dashboard2!$K27,NA()) -> 0 | AE47: =IF(Dashboard2!$K27<$AF47,Dashboard2!$K27,NA()) ->  | AF47: -0.00516338739 | AG47: -0.04974876672 | AH47: 0.00171345687 | AI47: =IF(Dashboard2!$N27>=Data2!$H$9,Dashboard2!$N27,NA()) ->  | AJ47: =IF(Dashboard2!$N27<Data2!$H$9,Dashboard2!$N27,NA()) -> 0 | AK47: 0.7595892754 | AL47: 0 | AM47: 2.171111347 | AN47: =IF(Dashboard2!$Q27>=Data2!$I$9,Dashboard2!$Q27,NA()) ->  | AO47: =IF(Dashboard2!$Q27<Data2!$I$9,Dashboard2!$Q27,NA()) -> 0 | AP47: 1.051319231 | AQ47: 0 | AR47: 2.730163007 | AS47: =IF(Dashboard2!$T27>=Data2!$J$9,Dashboard2!$T27,NA()) ->  | AT47: =IF(Dashboard2!$T27<Data2!$J$9,Dashboard2!$T27,NA()) -> 0 | AU47: 0.6666666667 | AV47: 0 | AW47: 1 | AX47: =IF(Dashboard2!$W27>=Data2!$K$9,Dashboard2!$W27,NA()) ->  | AY47: =IF(Dashboard2!$W27<Data2!$K$9,Dashboard2!$W27,NA()) -> 0 | AZ47: 0.1509943052 | BA47: 0 | BB47: 0.3248692757 | BC47: =IF(Dashboard2!$Z27>=Data2!$L$9,Dashboard2!$Z27,NA()) ->  | BD47: =IF(Dashboard2!$Z27<Data2!$L$9,Dashboard2!$Z27,NA()) -> 0 | BE47: 0.0509267677 | BF47: 0 | BG47: 0.2422997143 | BI47: 21 | BL47: =OFFSET(Data2!$D32,0,$E$20) -> 0 | BM47: =OFFSET(Data2!$D32,0,$E$21) -> 0
BL48: =OFFSET(Data2!$D33,0,$E$20) -> 0 | BM48: =OFFSET(Data2!$D33,0,$E$21) -> 0
BL49: =OFFSET(Data2!$D34,0,$E$20) -> 0 | BM49: =OFFSET(Data2!$D34,0,$E$21) -> 0
BL50: =OFFSET(Data2!$D35,0,$E$20) -> 0 | BM50: =OFFSET(Data2!$D35,0,$E$21) -> 0
BL51: =OFFSET(Data2!$D36,0,$E$20) -> 0 | BM51: =OFFSET(Data2!$D36,0,$E$21) -> 0
BL52: =OFFSET(Data2!$D37,0,$E$20) -> 0 | BM52: =OFFSET(Data2!$D37,0,$E$21) -> 0
BL53: =OFFSET(Data2!$D38,0,$E$20) -> 0 | BM53: =OFFSET(Data2!$D38,0,$E$21) -> 0
BL54: =OFFSET(Data2!$D39,0,$E$20) -> 0 | BM54: =OFFSET(Data2!$D39,0,$E$21) -> 0
BL55: =OFFSET(Data2!$D40,0,$E$20) -> 0 | BM55: =OFFSET(Data2!$D40,0,$E$21) -> 0
BL56: =OFFSET(Data2!$D41,0,$E$20) -> 0 | BM56: =OFFSET(Data2!$D41,0,$E$21) -> 0
BL57: =OFFSET(Data2!$D42,0,$E$20) -> 0 | BM57: =OFFSET(Data2!$D42,0,$E$21) -> 0
BL58: =OFFSET(Data2!$D43,0,$E$20) -> 0 | BM58: =OFFSET(Data2!$D43,0,$E$21) -> 0
BL59: =OFFSET(Data2!$D44,0,$E$20) -> 0 | BM59: =OFFSET(Data2!$D44,0,$E$21) -> 0
BL60: =OFFSET(Data2!$D45,0,$E$20) -> 0 | BM60: =OFFSET(Data2!$D45,0,$E$21) -> 0
BL61: =OFFSET(Data2!$D46,0,$E$20) -> 0 | BM61: =OFFSET(Data2!$D46,0,$E$21) -> 0
BL62: =OFFSET(Data2!$D47,0,$E$20) -> 0 | BM62: =OFFSET(Data2!$D47,0,$E$21) -> 0
BL63: =OFFSET(Data2!$D48,0,$E$20) -> 0 | BM63: =OFFSET(Data2!$D48,0,$E$21) -> 0
BL64: =OFFSET(Data2!$D49,0,$E$20) -> 0 | BM64: =OFFSET(Data2!$D49,0,$E$21) -> 0
BL65: =OFFSET(Data2!$D50,0,$E$20) -> 0 | BM65: =OFFSET(Data2!$D50,0,$E$21) -> 0
BL66: =OFFSET(Data2!$D51,0,$E$20) -> 0 | BM66: =OFFSET(Data2!$D51,0,$E$21) -> 0
BL67: =OFFSET(Data2!$D52,0,$E$20) -> 0 | BM67: =OFFSET(Data2!$D52,0,$E$21) -> 0
BL68: =OFFSET(Data2!$D53,0,$E$20) -> 0 | BM68: =OFFSET(Data2!$D53,0,$E$21) -> 0
BL69: =OFFSET(Data2!$D54,0,$E$20) -> 0 | BM69: =OFFSET(Data2!$D54,0,$E$21) -> 0
BL70: =OFFSET(Data2!$D55,0,$E$20) -> 0 | BM70: =OFFSET(Data2!$D55,0,$E$21) -> 0
BL71: =OFFSET(Data2!$D56,0,$E$20) -> 0 | BM71: =OFFSET(Data2!$D56,0,$E$21) -> 0
BL72: =OFFSET(Data2!$D57,0,$E$20) -> 0 | BM72: =OFFSET(Data2!$D57,0,$E$21) -> 0
BL73: =OFFSET(Data2!$D58,0,$E$20) -> 0 | BM73: =OFFSET(Data2!$D58,0,$E$21) -> 0
BL74: =OFFSET(Data2!$D59,0,$E$20) -> 0 | BM74: =OFFSET(Data2!$D59,0,$E$21) -> 0
BL75: =OFFSET(Data2!$D60,0,$E$20) -> 0 | BM75: =OFFSET(Data2!$D60,0,$E$21) -> 0
BL76: =OFFSET(Data2!$D61,0,$E$20) -> 0 | BM76: =OFFSET(Data2!$D61,0,$E$21) -> 0
BL77: =OFFSET(Data2!$D62,0,$E$20) -> 0 | BM77: =OFFSET(Data2!$D62,0,$E$21) -> 0
BL78: =OFFSET(Data2!$D63,0,$E$20) -> 0 | BM78: =OFFSET(Data2!$D63,0,$E$21) -> 0
BL79: =OFFSET(Data2!$D64,0,$E$20) -> 0 | BM79: =OFFSET(Data2!$D64,0,$E$21) -> 0
BL80: =OFFSET(Data2!$D65,0,$E$20) -> 0 | BM80: =OFFSET(Data2!$D65,0,$E$21) -> 0
BL81: =OFFSET(Data2!$D66,0,$E$20) -> 0 | BM81: =OFFSET(Data2!$D66,0,$E$21) -> 0
BL82: =OFFSET(Data2!$D67,0,$E$20) -> 0 | BM82: =OFFSET(Data2!$D67,0,$E$21) -> 0
BL83: =OFFSET(Data2!$D68,0,$E$20) -> 0 | BM83: =OFFSET(Data2!$D68,0,$E$21) -> 0
BL84: =OFFSET(Data2!$D69,0,$E$20) -> 0 | BM84: =OFFSET(Data2!$D69,0,$E$21) -> 0
BL85: =OFFSET(Data2!$D70,0,$E$20) -> 0 | BM85: =OFFSET(Data2!$D70,0,$E$21) -> 0
BL86: =OFFSET(Data2!$D71,0,$E$20) -> 0 | BM86: =OFFSET(Data2!$D71,0,$E$21) -> 0
BL87: =OFFSET(Data2!$D72,0,$E$20) -> 0 | BM87: =OFFSET(Data2!$D72,0,$E$21) -> 0
BL88: =OFFSET(Data2!$D73,0,$E$20) -> 0 | BM88: =OFFSET(Data2!$D73,0,$E$21) -> 0
BL89: =OFFSET(Data2!$D74,0,$E$20) -> 0 | BM89: =OFFSET(Data2!$D74,0,$E$21) -> 0
BL90: =OFFSET(Data2!$D75,0,$E$20) -> 0 | BM90: =OFFSET(Data2!$D75,0,$E$21) -> 0
BL91: =OFFSET(Data2!$D76,0,$E$20) -> 0 | BM91: =OFFSET(Data2!$D76,0,$E$21) -> 0
BL92: =OFFSET(Data2!$D77,0,$E$20) -> 0 | BM92: =OFFSET(Data2!$D77,0,$E$21) -> 0
BL93: =OFFSET(Data2!$D78,0,$E$20) -> 0 | BM93: =OFFSET(Data2!$D78,0,$E$21) -> 0
BL94: =OFFSET(Data2!$D79,0,$E$20) -> 0 | BM94: =OFFSET(Data2!$D79,0,$E$21) -> 0
BL95: =OFFSET(Data2!$D80,0,$E$20) -> 0 | BM95: =OFFSET(Data2!$D80,0,$E$21) -> 0
BL96: =OFFSET(Data2!$D81,0,$E$20) -> 0 | BM96: =OFFSET(Data2!$D81,0,$E$21) -> 0
BL97: =OFFSET(Data2!$D82,0,$E$20) -> 0 | BM97: =OFFSET(Data2!$D82,0,$E$21) -> 0
BL98: =OFFSET(Data2!$D83,0,$E$20) -> 0 | BM98: =OFFSET(Data2!$D83,0,$E$21) -> 0
BL99: =OFFSET(Data2!$D84,0,$E$20) -> 0 | BM99: =OFFSET(Data2!$D84,0,$E$21) -> 0
BL100: =OFFSET(Data2!$D85,0,$E$20) -> 0 | BM100: =OFFSET(Data2!$D85,0,$E$21) -> 0
BL101: =OFFSET(Data2!$D86,0,$E$20) -> 0 | BM101: =OFFSET(Data2!$D86,0,$E$21) -> 0
BL102: =OFFSET(Data2!$D87,0,$E$20) -> 0 | BM102: =OFFSET(Data2!$D87,0,$E$21) -> 0
BL103: =OFFSET(Data2!$D88,0,$E$20) -> 0 | BM103: =OFFSET(Data2!$D88,0,$E$21) -> 0
BL104: =OFFSET(Data2!$D89,0,$E$20) -> 0 | BM104: =OFFSET(Data2!$D89,0,$E$21) -> 0
BL105: =OFFSET(Data2!$D90,0,$E$20) -> 0 | BM105: =OFFSET(Data2!$D90,0,$E$21) -> 0
BL106: =OFFSET(Data2!$D91,0,$E$20) -> 0 | BM106: =OFFSET(Data2!$D91,0,$E$21) -> 0
BL107: =OFFSET(Data2!$D92,0,$E$20) -> 0 | BM107: =OFFSET(Data2!$D92,0,$E$21) -> 0
BL108: =OFFSET(Data2!$D93,0,$E$20) -> 0 | BM108: =OFFSET(Data2!$D93,0,$E$21) -> 0
BL109: =OFFSET(Data2!$D94,0,$E$20) -> 0 | BM109: =OFFSET(Data2!$D94,0,$E$21) -> 0
BL110: =OFFSET(Data2!$D95,0,$E$20) -> 0 | BM110: =OFFSET(Data2!$D95,0,$E$21) -> 0
BL111: =OFFSET(Data2!$D96,0,$E$20) -> 0 | BM111: =OFFSET(Data2!$D96,0,$E$21) -> 0
BL112: =OFFSET(Data2!$D97,0,$E$20) -> 0 | BM112: =OFFSET(Data2!$D97,0,$E$21) -> 0
BL113: =OFFSET(Data2!$D98,0,$E$20) -> 0 | BM113: =OFFSET(Data2!$D98,0,$E$21) -> 0
BL114: =OFFSET(Data2!$D99,0,$E$20) -> 0 | BM114: =OFFSET(Data2!$D99,0,$E$21) -> 0
BL115: =OFFSET(Data2!$D100,0,$E$20) -> 0 | BM115: =OFFSET(Data2!$D100,0,$E$21) -> 0
BL116: =OFFSET(Data2!$D101,0,$E$20) -> 0 | BM116: =OFFSET(Data2!$D101,0,$E$21) -> 0
BL117: =OFFSET(Data2!$D102,0,$E$20) -> 0 | BM117: =OFFSET(Data2!$D102,0,$E$21) -> 0
BL118: =OFFSET(Data2!$D103,0,$E$20) -> 0 | BM118: =OFFSET(Data2!$D103,0,$E$21) -> 0
BL119: =OFFSET(Data2!$D104,0,$E$20) -> 0 | BM119: =OFFSET(Data2!$D104,0,$E$21) -> 0
BL120: =OFFSET(Data2!$D105,0,$E$20) -> 0 | BM120: =OFFSET(Data2!$D105,0,$E$21) -> 0
BL121: =OFFSET(Data2!$D106,0,$E$20) -> 0 | BM121: =OFFSET(Data2!$D106,0,$E$21) -> 0
BL122: =OFFSET(Data2!$D107,0,$E$20) -> 0 | BM122: =OFFSET(Data2!$D107,0,$E$21) -> 0
BL123: =OFFSET(Data2!$D108,0,$E$20) -> 0 | BM123: =OFFSET(Data2!$D108,0,$E$21) -> 0
BL124: =OFFSET(Data2!$D109,0,$E$20) -> 0 | BM124: =OFFSET(Data2!$D109,0,$E$21) -> 0
BL125: =OFFSET(Data2!$D110,0,$E$20) -> 0 | BM125: =OFFSET(Data2!$D110,0,$E$21) -> 0
BL126: =OFFSET(Data2!$D111,0,$E$20) -> 0 | BM126: =OFFSET(Data2!$D111,0,$E$21) -> 0

Sheet Calculation1
C3: Calculation
D5: Actual Position | E5: 1
D6: Maximum Position | E6: =$C$38-COUNTA(Dashboard1!$D$7:$D$18)+1 -> 1
D7: Sort by | E7: 1
D8: Sort Order | E8: 1
D10: Input List | E10: =TRANSPOSE(Data1!E11:L11) -> Financial Score
E11: ROE
E12: ROA
E13: EPS growth 5 Yr.
E14: EPS growth 10 Yr.
E15: NP margin
E16: Sales growth 5 Yr.
E17: Debt/Net Profit
D20: Selected KPI X-Axis | E20: 3
D21: Selected KPI Y-Axis | E21: 2
C23: Sort Algorithm | J23: Sorted List | T23: Combined Bar / Line Charts | BL23: Direct Comparison (XY Scatter Chart)
T25: =Data1!E8 -> Financial Score | Y25: =Data1!F11 -> ROE | AD25: =Data1!G8 -> ROA | AI25: =Data1!H8 -> EPS growth 5 Yr. | AN25: =Data1!I8 -> EPS growth 10 Yr. | AS25: =Data1!J8 -> NP margin | AX25: =Data1!K8 -> Sales growth 5 Yr. | BC25: =Data1!L8 -> Debt/Net Profit | BL25: All | BO25: Displayed 10
E26: Sort KPI | F26: Unique | G26: Sorted | H26: Position | K26: =Data1!E11 -> Financial Score | L26: =Data1!F11 -> ROE | M26: =Data1!G11 -> ROA | N26: =Data1!H11 -> EPS growth 5 Yr. | O26: =Data1!I11 -> EPS growth 10 Yr. | P26: =Data1!J11 -> NP margin | Q26: =Data1!K11 -> Sales growth 5 Yr. | R26: =Data1!L11 -> Debt/Net Profit | T26: Black | U26: Red | V26: Average | W26: Min | X26: Max | Y26: Black | Z26: Red | AA26: Average | AB26: Min | AC26: Max | AD26: Black | AE26: Red | AF26: Average | AG26: Min | AH26: Max | AI26: Black | AJ26: Red | AK26: Average | AL26: Min | AM26: Max | AN26: Black | AO26: Red | AP26: Average | AQ26: Min | AR26: Max | AS26: Black | AT26: Red | AU26: Average | AV26: Min | AW26: Max | AX26: Black | AY26: Red | AZ26: Average | BA26: Min | BB26: Max | BC26: Black | BD26: Red | BE26: Average | BF26: Min | BG26: Max | BI26: Y Average | BL26: All X | BM26: All Y | BO26: Displayed X | BP26: Displayed Y
C27: 1 | D27: =Data1!D12 -> Britannia | E27: =OFFSET(Data1!$D12,0,mySortCriteria) -> 46.5 | F27: =E27+$C27/1000000000 -> 46.5 | G27: =CHOOSE($E$8,LARGE($F$27:$F$126,$C27),SMALL($F$27:$F$126,$C27)) -> 49.00000001 | H27: =MATCH(G27,$F$27:$F$126,0) -> 6 | J27: =OFFSET(Data1!D$11,$H27,0) -> Amara Raja Batt | K27: =OFFSET(Data1!E$11,$H27,0) -> 49 | L27: =OFFSET(Data1!F$11,$H27,0) -> 0.2328847947 | M27: =OFFSET(Data1!G$11,$H27,0) -> 0.1679477325 | N27: =OFFSET(Data1!H$11,$H27,0) -> 0.2700787648 | O27: =OFFSET(Data1!I$11,$H27,0) -> 0.2719228628 | P27: =OFFSET(Data1!J$11,$H27,0) -> 0.1043433028 | Q27: =OFFSET(Data1!K$11,$H27,0) -> 0.2164454512 | R27: =OFFSET(Data1!L$11,$H27,0) -> 0.1514792416 | T27: =IF(Dashboard1!$E7>=Data1!$E$9,Dashboard1!$E7,NA()) -> 49 | U27: =IF(Dashboard1!$E7<Data1!$E$9,Dashboard1!$E7,NA()) ->  | V27: =AVERAGE(K27:K126) -> 28.23809524 | W27: =MIN(K27:K126) -> 0 | X27: =MAX(K27:K126) -> 49 | Y27: =IF(Dashboard1!$H7>=Data1!$F$9,Dashboard1!$H7,NA()) ->  | Z27: =IF(Dashboard1!$H7<Data1!$F$9,Dashboard1!$H7,NA()) -> 0.2328847947 | AA27: =AVERAGE(L27:L126) -> 0.2022365 | AB27: =MIN(L27:L126) -> 0 | AC27: =MAX(L27:L126) -> 0.5655095295 | AD27: =IF(Dashboard1!$K7>=Data1!$G$9,Dashboard1!$K7,NA()) ->  | AE27: =IF(Dashboard1!$K7<Data1!$G$9,Dashboard1!$K7,NA()) -> 0.1679477325 | AF27: =AVERAGE(M27:M126) -> 0.1133870662 | AG27: =MIN(M27:M126) -> 0 | AH27: =MAX(M27:M126) -> 0.2921410944 | AI27: =IF(Dashboard1!$N7>=Data1!$H$9,Dashboard1!$N7,NA()) -> 0.2700787648 | AJ27: =IF(Dashboard1!$N7<Data1!$H$9,Dashboard1!$N7,NA()) ->  | AK27: =AVERAGE(N27:N126) -> 0.1627916623 | AL27: =MIN(N27:N126) -> -0.07205646789 | AM27: =MAX(N27:N126) -> 0.8974642972 | AN27: =IF(Dashboard1!$Q7>=Data1!$I$9,Dashboard1!$Q7,NA()) ->  | AO27: =IF(Dashboard1!$Q7<Data1!$I$9,Dashboard1!$Q7,NA()) -> 0.2719228628 | AP27: =AVERAGE(O27:O126) -> 0.182654213 | AQ27: =MIN(O27:O126) -> 0 | AR27: =MAX(O27:O126) -> 0.6146440313 | AS27: =IF(Dashboard1!$T7>=Data1!$J$9,Dashboard1!$T7,NA()) ->  | AT27: =IF(Dashboard1!$T7<Data1!$J$9,Dashboard1!$T7,NA()) -> 0.1043433028 | AU27: =AVERAGE(P27:P126) -> 0.07340709169 | AV27: =MIN(P27:P126) -> 0 | AW27: =MAX(P27:P126) -> 0.1614613909 | AX27: =IF(Dashboard1!$W7>=Data1!$K$9,Dashboard1!$W7,NA()) -> 0.2164454512 | AY27: =IF(Dashboard1!$W7<Data1!$K$9,Dashboard1!$W7,NA()) ->  | AZ27: =AVERAGE(Q27:Q126) -> 0.1084543947 | BA27: =MIN(Q27:Q126) -> 0 | BB27: =MAX(Q27:Q126) -> 0.2940048571 | BC27: =IF(Dashboard1!$Z7>=Data1!$L$9,Dashboard1!$Z7,NA()) ->  | BD27: =IF(Dashboard1!$Z7<Data1!$L$9,Dashboard1!$Z7,NA()) -> 0.1514792416 | BE27: =AVERAGE(R27:R126) -> 0.5431156957 | BF27: =MIN(R27:R126) -> 0 | BG27: =MAX(R27:R126) -> 2.506203474 | BI27: 1 | BL27: =OFFSET(Data1!$D12,0,$E$20) -> 0.2419447567 | BM27: =OFFSET(Data1!$D12,0,$E$21) -> 0.4398597785 | BO27: =OFFSET($J26,$E$5,$E$20) -> 0.1679477325 | BP27: =OFFSET($J26,$E$5,$E$21) -> 0.2328847947
C28: =C27+1 -> 2 | D28: =Data1!D13 -> Marico | E28: =OFFSET(Data1!$D13,0,mySortCriteria) -> 46 | F28: 46 | G28: 48.00000001 | H28: 14 | J28: =OFFSET(Data1!D$11,$H28,0) -> Tasty Bite | K28: =OFFSET(Data1!E$11,$H28,0) -> 48 | L28: =OFFSET(Data1!F$11,$H28,0) -> 0.2675518672 | M28: =OFFSET(Data1!G$11,$H28,0) -> 0.1220102937 | N28: =OFFSET(Data1!H$11,$H28,0) -> 0.5352554461 | O28: =OFFSET(Data1!I$11,$H28,0) -> 0.3831578754 | P28: =OFFSET(Data1!J$11,$H28,0) -> 0.08228688106 | Q28: =OFFSET(Data1!K$11,$H28,0) -> 0.2054316492 | R28: =OFFSET(Data1!L$11,$H28,0) -> 2.506203474 | T28: =IF(Dashboard1!$E8>=Data1!$E$9,Dashboard1!$E8,NA()) -> 48 | U28: =IF(Dashboard1!$E8<Data1!$E$9,Dashboard1!$E8,NA()) ->  | V28: =V27 -> 28.23809524 | W28: =W27 -> 0 | X28: =X27 -> 49 | Y28: =IF(Dashboard1!$H8>=Data1!$F$9,Dashboard1!$H8,NA()) ->  | Z28: =IF(Dashboard1!$H8<Data1!$F$9,Dashboard1!$H8,NA()) -> 0.2675518672 | AA28: =AA27 -> 0.2022365 | AB28: =AB27 -> 0 | AC28: =AC27 -> 0.5655095295 | AD28: =IF(Dashboard1!$K8>=$AF28,Dashboard1!$K8,NA()) -> 0.1220102937 | AE28: =IF(Dashboard1!$K8<$AF28,Dashboard1!$K8,NA()) ->  | AF28: =AF27 -> 0.1133870662 | AG28: =AG27 -> 0 | AH28: =AH27 -> 0.2921410944 | AI28: =IF(Dashboard1!$N8>=Data1!$H$9,Dashboard1!$N8,NA()) -> 0.5352554461 | AJ28: =IF(Dashboard1!$N8<Data1!$H$9,Dashboard1!$N8,NA()) ->  | AK28: =AK27 -> 0.1627916623 | AL28: =AL27 -> -0.07205646789 | AM28: =AM27 -> 0.8974642972 | AN28: =IF(Dashboard1!$Q8>=Data1!$I$9,Dashboard1!$Q8,NA()) -> 0.3831578754 | AO28: =IF(Dashboard1!$Q8<Data1!$I$9,Dashboard1!$Q8,NA()) ->  | AP28: =AP27 -> 0.182654213 | AQ28: 0 | AR28: 0.6146440313 | AS28: =IF(Dashboard1!$T8>=Data1!$J$9,Dashboard1!$T8,NA()) ->  | AT28: =IF(Dashboard1!$T8<Data1!$J$9,Dashboard1!$T8,NA()) -> 0.08228688106 | AU28: =AU27 -> 0.07340709169 | AV28: =AV27 -> 0 | AW28: =AW27 -> 0.1614613909 | AX28: =IF(Dashboard1!$W8>=Data1!$K$9,Dashboard1!$W8,NA()) -> 0.2054316492 | AY28: =IF(Dashboard1!$W8<Data1!$K$9,Dashboard1!$W8,NA()) ->  | AZ28: =AZ27 -> 0.1084543947 | BA28: =BA27 -> 0 | BB28: =BB27 -> 0.2940048571 | BC28: =IF(Dashboard1!$Z8>=Data1!$L$9,Dashboard1!$Z8,NA()) -> 2.506203474 | BD28: =IF(Dashboard1!$Z8<Data1!$L$9,Dashboard1!$Z8,NA()) ->  | BE28: =BE27 -> 0.5431156957 | BF28: =BF27 -> 0 | BG28: =BG27 -> 2.506203474 | BI28: 2 | BL28: =OFFSET(Data1!$D13,0,$E$20) -> 0.2126317005 | BM28: =OFFSET(Data1!$D13,0,$E$21) -> 0.3513000515 | BO28: 0.1220102937 | BP28: 0.2675518672
C29: =C28+1 -> 3 | D29: =Data1!D14 -> Dabur India | E29: =OFFSET(Data1!$D14,0,mySortCriteria) -> 43.5 | F29: 43.5 | G29: 46.5 | H29: 1 | J29: =OFFSET(Data1!D$11,$H29,0) -> Britannia | K29: =OFFSET(Data1!E$11,$H29,0) -> 46.5 | L29: =OFFSET(Data1!F$11,$H29,0) -> 0.4398597785 | M29: =OFFSET(Data1!G$11,$H29,0) -> 0.2419447567 | N29: =OFFSET(Data1!H$11,$H29,0) -> 0.3870072681 | O29: =OFFSET(Data1!I$11,$H29,0) -> 0.239942963 | P29: =OFFSET(Data1!J$11,$H29,0) -> 0.09425005347 | Q29: =OFFSET(Data1!K$11,$H29,0) -> 0.1347901771 | R29: =OFFSET(Data1!L$11,$H29,0) -> 0.000907768092 | T29: =IF(Dashboard1!$E9>=Data1!$E$9,Dashboard1!$E9,NA()) -> 46.5 | U29: =IF(Dashboard1!$E9<Data1!$E$9,Dashboard1!$E9,NA()) ->  | V29: =V28 -> 28.23809524 | W29: 0 | X29: 49 | Y29: =IF(Dashboard1!$H9>=Data1!$F$9,Dashboard1!$H9,NA()) -> 0.4398597785 | Z29: =IF(Dashboard1!$H9<Data1!$F$9,Dashboard1!$H9,NA()) ->  | AA29: =AA28 -> 0.2022365 | AB29: 0 | AC29: 0.5655095295 | AD29: =IF(Dashboard1!$K9>=$AF29,Dashboard1!$K9,NA()) -> 0.2419447567 | AE29: =IF(Dashboard1!$K9<$AF29,Dashboard1!$K9,NA()) ->  | AF29: =AF28 -> 0.1133870662 | AG29: 0 | AH29: 0.2921410944 | AI29: =IF(Dashboard1!$N9>=Data1!$H$9,Dashboard1!$N9,NA()) -> 0.3870072681 | AJ29: =IF(Dashboard1!$N9<Data1!$H$9,Dashboard1!$N9,NA()) ->  | AK29: =AK28 -> 0.1627916623 | AL29: -0.07205646789 | AM29: 0.8974642972 | AN29: =IF(Dashboard1!$Q9>=Data1!$I$9,Dashboard1!$Q9,NA()) ->  | AO29: =IF(Dashboard1!$Q9<Data1!$I$9,Dashboard1!$Q9,NA()) -> 0.239942963 | AP29: 0.182654213 | AQ29: 0 | AR29: 0.6146440313 | AS29: =IF(Dashboard1!$T9>=Data1!$J$9,Dashboard1!$T9,NA()) ->  | AT29: =IF(Dashboard1!$T9<Data1!$J$9,Dashboard1!$T9,NA()) -> 0.09425005347 | AU29: =AU28 -> 0.07340709169 | AV29: 0 | AW29: 0.1614613909 | AX29: =IF(Dashboard1!$W9>=Data1!$K$9,Dashboard1!$W9,NA()) ->  | AY29: =IF(Dashboard1!$W9<Data1!$K$9,Dashboard1!$W9,NA()) -> 0.1347901771 | AZ29: =AZ28 -> 0.1084543947 | BA29: 0 | BB29: 0.2940048571 | BC29: =IF(Dashboard1!$Z9>=Data1!$L$9,Dashboard1!$Z9,NA()) ->  | BD29: =IF(Dashboard1!$Z9<Data1!$L$9,Dashboard1!$Z9,NA()) -> 0.000907768092 | BE29: =BE28 -> 0.5431156957 | BF29: 0 | BG29: 2.506203474 | BI29: 3 | BL29: =OFFSET(Data1!$D14,0,$E$20) -> 0.1755118075 | BM29: =OFFSET(Data1!$D14,0,$E$21) -> 0.3017857873 | BO29: 0.2419447567 | BP29: 0.4398597785
C30: 4 | D30: =Data1!D15 -> Mayur Uniquoter | E30: =OFFSET(Data1!$D15,0,mySortCriteria) -> 41 | F30: 41 | G30: 46 | H30: 2 | J30: =OFFSET(Data1!D$11,$H30,0) -> Marico | K30: =OFFSET(Data1!E$11,$H30,0) -> 46 | L30: =OFFSET(Data1!F$11,$H30,0) -> 0.3513000515 | M30: =OFFSET(Data1!G$11,$H30,0) -> 0.2126317005 | N30: =OFFSET(Data1!H$11,$H30,0) -> 0.1982395464 | O30: =OFFSET(Data1!I$11,$H30,0) -> 0.2256287838 | P30: =OFFSET(Data1!J$11,$H30,0) -> 0.120126418 | Q30: =OFFSET(Data1!K$11,$H30,0) -> 0.1435989919 | R30: =OFFSET(Data1!L$11,$H30,0) -> 0.4508023133 | T30: =IF(Dashboard1!$E10>=Data1!$E$9,Dashboard1!$E10,NA()) -> 46 | U30: =IF(Dashboard1!$E10<Data1!$E$9,Dashboard1!$E10,NA()) ->  | V30: 28.23809524 | W30: 0 | X30: 49 | Y30: =IF(Dashboard1!$H10>=Data1!$F$9,Dashboard1!$H10,NA()) -> 0.3513000515 | Z30: =IF(Dashboard1!$H10<Data1!$F$9,Dashboard1!$H10,NA()) ->  | AA30: 0.2022365 | AB30: 0 | AC30: 0.5655095295 | AD30: =IF(Dashboard1!$K10>=$AF30,Dashboard1!$K10,NA()) -> 0.2126317005 | AE30: =IF(Dashboard1!$K10<$AF30,Dashboard1!$K10,NA()) ->  | AF30: 0.1133870662 | AG30: 0 | AH30: 0.2921410944 | AI30: =IF(Dashboard1!$N10>=Data1!$H$9,Dashboard1!$N10,NA()) ->  | AJ30: =IF(Dashboard1!$N10<Data1!$H$9,Dashboard1!$N10,NA()) -> 0.1982395464 | AK30: 0.1627916623 | AL30: -0.07205646789 | AM30: 0.8974642972 | AN30: =IF(Dashboard1!$Q10>=Data1!$I$9,Dashboard1!$Q10,NA()) ->  | AO30: =IF(Dashboard1!$Q10<Data1!$I$9,Dashboard1!$Q10,NA()) -> 0.2256287838 | AP30: 0.182654213 | AQ30: 0 | AR30: 0.6146440313 | AS30: =IF(Dashboard1!$T10>=Data1!$J$9,Dashboard1!$T10,NA()) -> 0.120126418 | AT30: =IF(Dashboard1!$T10<Data1!$J$9,Dashboard1!$T10,NA()) ->  | AU30: 0.07340709169 | AV30: 0 | AW30: 0.1614613909 | AX30: =IF(Dashboard1!$W10>=Data1!$K$9,Dashboard1!$W10,NA()) ->  | AY30: =IF(Dashboard1!$W10<Data1!$K$9,Dashboard1!$W10,NA()) -> 0.1435989919 | AZ30: 0.1084543947 | BA30: 0 | BB30: 0.2940048571 | BC30: =IF(Dashboard1!$Z10>=Data1!$L$9,Dashboard1!$Z10,NA()) ->  | BD30: =IF(Dashboard1!$Z10<Data1!$L$9,Dashboard1!$Z10,NA()) -> 0.4508023133 | BE30: 0.5431156957 | BF30: 0 | BG30: 2.506203474 | BI30: 4 | BL30: =OFFSET(Data1!$D15,0,$E$20) -> 0.1865855589 | BM30: =OFFSET(Data1!$D15,0,$E$21) -> 0.2411797375 | BO30: 0.2126317005 | BP30: 0.3513000515
C31: 5 | D31: =Data1!D16 -> Titan Company | E31: =OFFSET(Data1!$D16,0,mySortCriteria) -> 42 | F31: 42 | G31: 44.50000001 | H31: 11 | J31: =OFFSET(Data1!D$11,$H31,0) -> Heritage Foods | K31: =OFFSET(Data1!E$11,$H31,0) -> 44.5 | L31: =OFFSET(Data1!F$11,$H31,0) -> 0.230967957 | M31: =OFFSET(Data1!G$11,$H31,0) -> 0.09557555693 | N31: =OFFSET(Data1!H$11,$H31,0) -> 0.8974642972 | O31: =OFFSET(Data1!I$11,$H31,0) -> 0.6146440313 | P31: =OFFSET(Data1!J$11,$H31,0) -> 0.02328424166 | Q31: =OFFSET(Data1!K$11,$H31,0) -> 0.1677968865 | R31: =OFFSET(Data1!L$11,$H31,0) -> 2.273678513 | T31: =IF(Dashboard1!$E11>=Data1!$E$9,Dashboard1!$E11,NA()) -> 44.5 | U31: =IF(Dashboard1!$E11<Data1!$E$9,Dashboard1!$E11,NA()) ->  | V31: 28.23809524 | W31: 0 | X31: 49 | Y31: =IF(Dashboard1!$H11>=Data1!$F$9,Dashboard1!$H11,NA()) ->  | Z31: =IF(Dashboard1!$H11<Data1!$F$9,Dashboard1!$H11,NA()) -> 0.230967957 | AA31: 0.2022365 | AB31: 0 | AC31: 0.5655095295 | AD31: =IF(Dashboard1!$K11>=$AF31,Dashboard1!$K11,NA()) ->  | AE31: =IF(Dashboard1!$K11<$AF31,Dashboard1!$K11,NA()) -> 0.09557555693 | AF31: 0.1133870662 | AG31: 0 | AH31: 0.2921410944 | AI31: =IF(Dashboard1!$N11>=Data1!$H$9,Dashboard1!$N11,NA()) -> 0.8974642972 | AJ31: =IF(Dashboard1!$N11<Data1!$H$9,Dashboard1!$N11,NA()) ->  | AK31: 0.1627916623 | AL31: -0.07205646789 | AM31: 0.8974642972 | AN31: =IF(Dashboard1!$Q11>=Data1!$I$9,Dashboard1!$Q11,NA()) -> 0.6146440313 | AO31: =IF(Dashboard1!$Q11<Data1!$I$9,Dashboard1!$Q11,NA()) ->  | AP31: 0.182654213 | AQ31: 0 | AR31: 0.6146440313 | AS31: =IF(Dashboard1!$T11>=Data1!$J$9,Dashboard1!$T11,NA()) ->  | AT31: =IF(Dashboard1!$T11<Data1!$J$9,Dashboard1!$T11,NA()) -> 0.02328424166 | AU31: 0.07340709169 | AV31: 0 | AW31: 0.1614613909 | AX31: =IF(Dashboard1!$W11>=Data1!$K$9,Dashboard1!$W11,NA()) -> 0.1677968865 | AY31: =IF(Dashboard1!$W11<Data1!$K$9,Dashboard1!$W11,NA()) ->  | AZ31: 0.1084543947 | BA31: 0 | BB31: 0.2940048571 | BC31: =IF(Dashboard1!$Z11>=Data1!$L$9,Dashboard1!$Z11,NA()) -> 2.273678513 | BD31: =IF(Dashboard1!$Z11<Data1!$L$9,Dashboard1!$Z11,NA()) ->  | BE31: 0.5431156957 | BF31: 0 | BG31: 2.506203474 | BI31: 5 | BL31: =OFFSET(Data1!$D16,0,$E$20) -> 0.1100708384 | BM31: =OFFSET(Data1!$D16,0,$E$21) -> 0.2008052125 | BO31: 0.09557555693 | BP31: 0.230967957
C32: 6 | D32: =Data1!D17 -> Amara Raja Batt | E32: =OFFSET(Data1!$D17,0,mySortCriteria) -> 49 | F32: 49.00000001 | G32: 44.00000001 | H32: 12 | J32: =OFFSET(Data1!D$11,$H32,0) -> Page Industries | K32: =OFFSET(Data1!E$11,$H32,0) -> 44 | L32: =OFFSET(Data1!F$11,$H32,0) -> 0.4605122521 | M32: =OFFSET(Data1!G$11,$H32,0) -> 0.2449181536 | N32: =OFFSET(Data1!H$11,$H32,0) -> 0.3177680234 | O32: =OFFSET(Data1!I$11,$H32,0) -> 0.337110973 | P32: =OFFSET(Data1!J$11,$H32,0) -> 0.1304564799 | Q32: =OFFSET(Data1!K$11,$H32,0) -> 0.2940048571 | R32: =OFFSET(Data1!L$11,$H32,0) -> 0.4078483624 | T32: =IF(Dashboard1!$E12>=Data1!$E$9,Dashboard1!$E12,NA()) -> 44 | U32: =IF(Dashboard1!$E12<Data1!$E$9,Dashboard1!$E12,NA()) ->  | V32: 28.23809524 | W32: 0 | X32: 49 | Y32: =IF(Dashboard1!$H12>=Data1!$F$9,Dashboard1!$H12,NA()) -> 0.4605122521 | Z32: =IF(Dashboard1!$H12<Data1!$F$9,Dashboard1!$H12,NA()) ->  | AA32: 0.2022365 | AB32: 0 | AC32: 0.5655095295 | AD32: =IF(Dashboard1!$K12>=$AF32,Dashboard1!$K12,NA()) -> 0.2449181536 | AE32: =IF(Dashboard1!$K12<$AF32,Dashboard1!$K12,NA()) ->  | AF32: 0.1133870662 | AG32: 0 | AH32: 0.2921410944 | AI32: =IF(Dashboard1!$N12>=Data1!$H$9,Dashboard1!$N12,NA()) -> 0.3177680234 | AJ32: =IF(Dashboard1!$N12<Data1!$H$9,Dashboard1!$N12,NA()) ->  | AK32: 0.1627916623 | AL32: -0.07205646789 | AM32: 0.8974642972 | AN32: =IF(Dashboard1!$Q12>=Data1!$I$9,Dashboard1!$Q12,NA()) -> 0.337110973 | AO32: =IF(Dashboard1!$Q12<Data1!$I$9,Dashboard1!$Q12,NA()) ->  | AP32: 0.182654213 | AQ32: 0 | AR32: 0.6146440313 | AS32: =IF(Dashboard1!$T12>=Data1!$J$9,Dashboard1!$T12,NA()) -> 0.1304564799 | AT32: =IF(Dashboard1!$T12<Data1!$J$9,Dashboard1!$T12,NA()) ->  | AU32: 0.07340709169 | AV32: 0 | AW32: 0.1614613909 | AX32: =IF(Dashboard1!$W12>=Data1!$K$9,Dashboard1!$W12,NA()) -> 0.2940048571 | AY32: =IF(Dashboard1!$W12<Data1!$K$9,Dashboard1!$W12,NA()) ->  | AZ32: 0.1084543947 | BA32: 0 | BB32: 0.2940048571 | BC32: =IF(Dashboard1!$Z12>=Data1!$L$9,Dashboard1!$Z12,NA()) ->  | BD32: =IF(Dashboard1!$Z12<Data1!$L$9,Dashboard1!$Z12,NA()) -> 0.4078483624 | BE32: 0.5431156957 | BF32: 0 | BG32: 2.506203474 | BI32: 6 | BL32: =OFFSET(Data1!$D17,0,$E$20) -> 0.1679477325 | BM32: =OFFSET(Data1!$D17,0,$E$21) -> 0.2328847947 | BO32: 0.2449181536 | BP32: 0.4605122521
C33: 7 | D33: =Data1!D18 -> Pidilite Ind | E33: =OFFSET(Data1!$D18,0,mySortCriteria) -> 44 | F33: 44.00000001 | G33: 44.00000001 | H33: 7 | J33: =OFFSET(Data1!D$11,$H33,0) -> Pidilite Ind | K33: =OFFSET(Data1!E$11,$H33,0) -> 44 | L33: =OFFSET(Data1!F$11,$H33,0) -> 0.2717946322 | M33: =OFFSET(Data1!G$11,$H33,0) -> 0.1925223797 | N33: =OFFSET(Data1!H$11,$H33,0) -> 0.1919307345 | O33: =OFFSET(Data1!I$11,$H33,0) -> 0.1434874726 | P33: =OFFSET(Data1!J$11,$H33,0) -> 0.1408673142 | Q33: =OFFSET(Data1!K$11,$H33,0) -> 0.1510700805 | R33: =OFFSET(Data1!L$11,$H33,0) -> 0.1120865174 | T33: =IF(Dashboard1!$E13>=Data1!$E$9,Dashboard1!$E13,NA()) -> 44 | U33: =IF(Dashboard1!$E13<Data1!$E$9,Dashboard1!$E13,NA()) ->  | V33: 28.23809524 | W33: 0 | X33: 49 | Y33: =IF(Dashboard1!$H13>=Data1!$F$9,Dashboard1!$H13,NA()) ->  | Z33: =IF(Dashboard1!$H13<Data1!$F$9,Dashboard1!$H13,NA()) -> 0.2717946322 | AA33: 0.2022365 | AB33: 0 | AC33: 0.5655095295 | AD33: =IF(Dashboard1!$K13>=$AF33,Dashboard1!$K13,NA()) -> 0.1925223797 | AE33: =IF(Dashboard1!$K13<$AF33,Dashboard1!$K13,NA()) ->  | AF33: 0.1133870662 | AG33: 0 | AH33: 0.2921410944 | AI33: =IF(Dashboard1!$N13>=Data1!$H$9,Dashboard1!$N13,NA()) ->  | AJ33: =IF(Dashboard1!$N13<Data1!$H$9,Dashboard1!$N13,NA()) -> 0.1919307345 | AK33: 0.1627916623 | AL33: -0.07205646789 | AM33: 0.8974642972 | AN33: =IF(Dashboard1!$Q13>=Data1!$I$9,Dashboard1!$Q13,NA()) ->  | AO33: =IF(Dashboard1!$Q13<Data1!$I$9,Dashboard1!$Q13,NA()) -> 0.1434874726 | AP33: 0.182654213 | AQ33: 0 | AR33: 0.6146440313 | AS33: =IF(Dashboard1!$T13>=Data1!$J$9,Dashboard1!$T13,NA()) -> 0.1408673142 | AT33: =IF(Dashboard1!$T13<Data1!$J$9,Dashboard1!$T13,NA()) ->  | AU33: 0.07340709169 | AV33: 0 | AW33: 0.1614613909 | AX33: =IF(Dashboard1!$W13>=Data1!$K$9,Dashboard1!$W13,NA()) ->  | AY33: =IF(Dashboard1!$W13<Data1!$K$9,Dashboard1!$W13,NA()) -> 0.1510700805 | AZ33: 0.1084543947 | BA33: 0 | BB33: 0.2940048571 | BC33: =IF(Dashboard1!$Z13>=Data1!$L$9,Dashboard1!$Z13,NA()) ->  | BD33: =IF(Dashboard1!$Z13<Data1!$L$9,Dashboard1!$Z13,NA()) -> 0.1120865174 | BE33: 0.5431156957 | BF33: 0 | BG33: 2.506203474 | BI33: 7 | BL33: =OFFSET(Data1!$D18,0,$E$20) -> 0.1925223797 | BM33: =OFFSET(Data1!$D18,0,$E$21) -> 0.2717946322 | BO33: 0.1925223797 | BP33: 0.2717946322
C34: 8 | D34: =Data1!D19 -> Colgate | E34: =OFFSET(Data1!$D19,0,mySortCriteria) -> 41 | F34: 41.00000001 | G34: 43.5 | H34: 3 | J34: =OFFSET(Data1!D$11,$H34,0) -> Dabur India | K34: =OFFSET(Data1!E$11,$H34,0) -> 43.5 | L34: =OFFSET(Data1!F$11,$H34,0) -> 0.3017857873 | M34: =OFFSET(Data1!G$11,$H34,0) -> 0.1755118075 | N34: =OFFSET(Data1!H$11,$H34,0) -> 0.1686895358 | O34: =OFFSET(Data1!I$11,$H34,0) -> 0.1777753572 | P34: =OFFSET(Data1!J$11,$H34,0) -> 0.1485033156 | Q34: =OFFSET(Data1!K$11,$H34,0) -> 0.1569706926 | R34: =OFFSET(Data1!L$11,$H34,0) -> 0.6302043092 | T34: =IF(Dashboard1!$E14>=Data1!$E$9,Dashboard1!$E14,NA()) -> 43.5 | U34: =IF(Dashboard1!$E14<Data1!$E$9,Dashboard1!$E14,NA()) ->  | V34: 28.23809524 | W34: 0 | X34: 49 | Y34: =IF(Dashboard1!$H14>=Data1!$F$9,Dashboard1!$H14,NA()) ->  | Z34: =IF(Dashboard1!$H14<Data1!$F$9,Dashboard1!$H14,NA()) -> 0.3017857873 | AA34: 0.2022365 | AB34: 0 | AC34: 0.5655095295 | AD34: =IF(Dashboard1!$K14>=$AF34,Dashboard1!$K14,NA()) -> 0.1755118075 | AE34: =IF(Dashboard1!$K14<$AF34,Dashboard1!$K14,NA()) ->  | AF34: 0.1133870662 | AG34: 0 | AH34: 0.2921410944 | AI34: =IF(Dashboard1!$N14>=Data1!$H$9,Dashboard1!$N14,NA()) ->  | AJ34: =IF(Dashboard1!$N14<Data1!$H$9,Dashboard1!$N14,NA()) -> 0.1686895358 | AK34: 0.1627916623 | AL34: -0.07205646789 | AM34: 0.8974642972 | AN34: =IF(Dashboard1!$Q14>=Data1!$I$9,Dashboard1!$Q14,NA()) ->  | AO34: =IF(Dashboard1!$Q14<Data1!$I$9,Dashboard1!$Q14,NA()) -> 0.1777753572 | AP34: 0.182654213 | AQ34: 0 | AR34: 0.6146440313 | AS34: =IF(Dashboard1!$T14>=Data1!$J$9,Dashboard1!$T14,NA()) -> 0.1485033156 | AT34: =IF(Dashboard1!$T14<Data1!$J$9,Dashboard1!$T14,NA()) ->  | AU34: 0.07340709169 | AV34: 0 | AW34: 0.1614613909 | AX34: =IF(Dashboard1!$W14>=Data1!$K$9,Dashboard1!$W14,NA()) ->  | AY34: =IF(Dashboard1!$W14<Data1!$K$9,Dashboard1!$W14,NA()) -> 0.1569706926 | AZ34: 0.1084543947 | BA34: 0 | BB34: 0.2940048571 | BC34: =IF(Dashboard1!$Z14>=Data1!$L$9,Dashboard1!$Z14,NA()) ->  | BD34: =IF(Dashboard1!$Z14<Data1!$L$9,Dashboard1!$Z14,NA()) -> 0.6302043092 | BE34: 0.5431156957 | BF34: 0 | BG34: 2.506203474 | BI34: 8 | BL34: =OFFSET(Data1!$D19,0,$E$20) -> 0.2921410944 | BM34: =OFFSET(Data1!$D19,0,$E$21) -> 0.5655095295 | BO34: 0.1755118075 | BP34: 0.3017857873
C35: 9 | D35: =Data1!D20 -> Emami | E35: =OFFSET(Data1!$D20,0,mySortCriteria) -> 32.5 | F35: 32.50000001 | G35: 42 | H35: 5 | J35: =OFFSET(Data1!D$11,$H35,0) -> Titan Company | K35: =OFFSET(Data1!E$11,$H35,0) -> 42 | L35: =OFFSET(Data1!F$11,$H35,0) -> 0.2008052125 | M35: =OFFSET(Data1!G$11,$H35,0) -> 0.1100708384 | N35: =OFFSET(Data1!H$11,$H35,0) -> 0.1039922209 | O35: =OFFSET(Data1!I$11,$H35,0) -> 0.2509086947 | P35: =OFFSET(Data1!J$11,$H35,0) -> 0.06265241426 | Q35: =OFFSET(Data1!K$11,$H35,0) -> 0.1155296221 | R35: =OFFSET(Data1!L$11,$H35,0) -> 0.1601842012 | T35: =IF(Dashboard1!$E15>=Data1!$E$9,Dashboard1!$E15,NA()) ->  | U35: =IF(Dashboard1!$E15<Data1!$E$9,Dashboard1!$E15,NA()) -> 42 | V35: 28.23809524 | W35: 0 | X35: 49 | Y35: =IF(Dashboard1!$H15>=Data1!$F$9,Dashboard1!$H15,NA()) ->  | Z35: =IF(Dashboard1!$H15<Data1!$F$9,Dashboard1!$H15,NA()) -> 0.2008052125 | AA35: 0.2022365 | AB35: 0 | AC35: 0.5655095295 | AD35: =IF(Dashboard1!$K15>=$AF35,Dashboard1!$K15,NA()) ->  | AE35: =IF(Dashboard1!$K15<$AF35,Dashboard1!$K15,NA()) -> 0.1100708384 | AF35: 0.1133870662 | AG35: 0 | AH35: 0.2921410944 | AI35: =IF(Dashboard1!$N15>=Data1!$H$9,Dashboard1!$N15,NA()) ->  | AJ35: =IF(Dashboard1!$N15<Data1!$H$9,Dashboard1!$N15,NA()) -> 0.1039922209 | AK35: 0.1627916623 | AL35: -0.07205646789 | AM35: 0.8974642972 | AN35: =IF(Dashboard1!$Q15>=Data1!$I$9,Dashboard1!$Q15,NA()) ->  | AO35: =IF(Dashboard1!$Q15<Data1!$I$9,Dashboard1!$Q15,NA()) -> 0.2509086947 | AP35: 0.182654213 | AQ35: 0 | AR35: 0.6146440313 | AS35: =IF(Dashboard1!$T15>=Data1!$J$9,Dashboard1!$T15,NA()) ->  | AT35: =IF(Dashboard1!$T15<Data1!$J$9,Dashboard1!$T15,NA()) -> 0.06265241426 | AU35: 0.07340709169 | AV35: 0 | AW35: 0.1614613909 | AX35: =IF(Dashboard1!$W15>=Data1!$K$9,Dashboard1!$W15,NA()) ->  | AY35: =IF(Dashboard1!$W15<Data1!$K$9,Dashboard1!$W15,NA()) -> 0.1155296221 | AZ35: 0.1084543947 | BA35: 0 | BB35: 0.2940048571 | BC35: =IF(Dashboard1!$Z15>=Data1!$L$9,Dashboard1!$Z15,NA()) ->  | BD35: =IF(Dashboard1!$Z15<Data1!$L$9,Dashboard1!$Z15,NA()) -> 0.1601842012 | BE35: 0.5431156957 | BF35: 0 | BG35: 2.506203474 | BI35: 9 | BL35: =OFFSET(Data1!$D20,0,$E$20) -> 0.1345736737 | BM35: =OFFSET(Data1!$D20,0,$E$21) -> 0.2555839047 | BO35: 0.1100708384 | BP35: 0.2008052125
C36: 10 | D36: =Data1!D21 -> Godrej Consumer | E36: =OFFSET(Data1!$D21,0,mySortCriteria) -> 38 | F36: 38.00000001 | G36: 41.00000001 | H36: 8 | J36: =OFFSET(Data1!D$11,$H36,0) -> Colgate | K36: =OFFSET(Data1!E$11,$H36,0) -> 41 | L36: =OFFSET(Data1!F$11,$H36,0) -> 0.5655095295 | M36: =OFFSET(Data1!G$11,$H36,0) -> 0.2921410944 | N36: =OFFSET(Data1!H$11,$H36,0) -> 0.07446167654 | O36: =OFFSET(Data1!I$11,$H36,0) -> 0.3933665269 | P36: =OFFSET(Data1!J$11,$H36,0) -> 0.1385102912 | Q36: =OFFSET(Data1!K$11,$H36,0) -> 0.1273185737 | R36: =OFFSET(Data1!L$11,$H36,0) -> 0 | T36: =IF(Dashboard1!$E16>=Data1!$E$9,Dashboard1!$E16,NA()) ->  | U36: =IF(Dashboard1!$E16<Data1!$E$9,Dashboard1!$E16,NA()) -> 41 | V36: 28.23809524 | W36: 0 | X36: 49 | Y36: =IF(Dashboard1!$H16>=Data1!$F$9,Dashboard1!$H16,NA()) -> 0.5655095295 | Z36: =IF(Dashboard1!$H16<Data1!$F$9,Dashboard1!$H16,NA()) ->  | AA36: 0.2022365 | AB36: 0 | AC36: 0.5655095295 | AD36: =IF(Dashboard1!$K16>=$AF36,Dashboard1!$K16,NA()) -> 0.2921410944 | AE36: =IF(Dashboard1!$K16<$AF36,Dashboard1!$K16,NA()) ->  | AF36: 0.1133870662 | AG36: 0 | AH36: 0.2921410944 | AI36: =IF(Dashboard1!$N16>=Data1!$H$9,Dashboard1!$N16,NA()) ->  | AJ36: =IF(Dashboard1!$N16<Data1!$H$9,Dashboard1!$N16,NA()) -> 0.07446167654 | AK36: 0.1627916623 | AL36: -0.07205646789 | AM36: 0.8974642972 | AN36: =IF(Dashboard1!$Q16>=Data1!$I$9,Dashboard1!$Q16,NA()) -> 0.3933665269 | AO36: =IF(Dashboard1!$Q16<Data1!$I$9,Dashboard1!$Q16,NA()) ->  | AP36: 0.182654213 | AQ36: 0 | AR36: 0.6146440313 | AS36: =IF(Dashboard1!$T16>=Data1!$J$9,Dashboard1!$T16,NA()) -> 0.1385102912 | AT36: =IF(Dashboard1!$T16<Data1!$J$9,Dashboard1!$T16,NA()) ->  | AU36: 0.07340709169 | AV36: 0 | AW36: 0.1614613909 | AX36: =IF(Dashboard1!$W16>=Data1!$K$9,Dashboard1!$W16,NA()) ->  | AY36: =IF(Dashboard1!$W16<Data1!$K$9,Dashboard1!$W16,NA()) -> 0.1273185737 | AZ36: 0.1084543947 | BA36: 0 | BB36: 0.2940048571 | BC36: =IF(Dashboard1!$Z16>=Data1!$L$9,Dashboard1!$Z16,NA()) ->  | BD36: =IF(Dashboard1!$Z16<Data1!$L$9,Dashboard1!$Z16,NA()) -> 0 | BE36: 0.5431156957 | BF36: 0 | BG36: 2.506203474 | BI36: 10 | BL36: =OFFSET(Data1!$D21,0,$E$20) -> 0.1137933811 | BM36: =OFFSET(Data1!$D21,0,$E$21) -> 0.2273367493 | BO36: 0.2921410944 | BP36: 0.5655095295
C37: 11 | D37: =Data1!D22 -> Heritage Foods | E37: =OFFSET(Data1!$D22,0,mySortCriteria) -> 44.5 | F37: 44.50000001 | G37: 41 | H37: 4 | J37: =OFFSET(Data1!D$11,$H37,0) -> Mayur Uniquoter | K37: =OFFSET(Data1!E$11,$H37,0) -> 41 | L37: =OFFSET(Data1!F$11,$H37,0) -> 0.2411797375 | M37: =OFFSET(Data1!G$11,$H37,0) -> 0.1865855589 | N37: =OFFSET(Data1!H$11,$H37,0) -> 0.1803944753 | O37: =OFFSET(Data1!I$11,$H37,0) -> 0.4047178891 | P37: =OFFSET(Data1!J$11,$H37,0) -> 0.1614613909 | Q37: =OFFSET(Data1!K$11,$H37,0) -> 0.1550514549 | R37: =OFFSET(Data1!L$11,$H37,0) -> 0.313537753 | T37: =IF(Dashboard1!$E17>=Data1!$E$9,Dashboard1!$E17,NA()) ->  | U37: =IF(Dashboard1!$E17<Data1!$E$9,Dashboard1!$E17,NA()) -> 41 | V37: 28.23809524 | W37: 0 | X37: 49 | Y37: =IF(Dashboard1!$H17>=Data1!$F$9,Dashboard1!$H17,NA()) ->  | Z37: =IF(Dashboard1!$H17<Data1!$F$9,Dashboard1!$H17,NA()) -> 0.2411797375 | AA37: 0.2022365 | AB37: 0 | AC37: 0.5655095295 | AD37: =IF(Dashboard1!$K17>=$AF37,Dashboard1!$K17,NA()) -> 0.1865855589 | AE37: =IF(Dashboard1!$K17<$AF37,Dashboard1!$K17,NA()) ->  | AF37: 0.1133870662 | AG37: 0 | AH37: 0.2921410944 | AI37: =IF(Dashboard1!$N17>=Data1!$H$9,Dashboard1!$N17,NA()) ->  | AJ37: =IF(Dashboard1!$N17<Data1!$H$9,Dashboard1!$N17,NA()) -> 0.1803944753 | AK37: 0.1627916623 | AL37: -0.07205646789 | AM37: 0.8974642972 | AN37: =IF(Dashboard1!$Q17>=Data1!$I$9,Dashboard1!$Q17,NA()) -> 0.4047178891 | AO37: =IF(Dashboard1!$Q17<Data1!$I$9,Dashboard1!$Q17,NA()) ->  | AP37: 0.182654213 | AQ37: 0 | AR37: 0.6146440313 | AS37: =IF(Dashboard1!$T17>=Data1!$J$9,Dashboard1!$T17,NA()) -> 0.1614613909 | AT37: =IF(Dashboard1!$T17<Data1!$J$9,Dashboard1!$T17,NA()) ->  | AU37: 0.07340709169 | AV37: 0 | AW37: 0.1614613909 | AX37: =IF(Dashboard1!$W17>=Data1!$K$9,Dashboard1!$W17,NA()) ->  | AY37: =IF(Dashboard1!$W17<Data1!$K$9,Dashboard1!$W17,NA()) -> 0.1550514549 | AZ37: 0.1084543947 | BA37: 0 | BB37: 0.2940048571 | BC37: =IF(Dashboard1!$Z17>=Data1!$L$9,Dashboard1!$Z17,NA()) ->  | BD37: =IF(Dashboard1!$Z17<Data1!$L$9,Dashboard1!$Z17,NA()) -> 0.313537753 | BE37: 0.5431156957 | BF37: 0 | BG37: 2.506203474 | BI37: 11 | BL37: =OFFSET(Data1!$D22,0,$E$20) -> 0.09557555693 | BM37: =OFFSET(Data1!$D22,0,$E$21) -> 0.230967957
C38: 12 | D38: =Data1!D23 -> Page Industries | E38: =OFFSET(Data1!$D23,0,mySortCriteria) -> 44 | F38: 44.00000001 | G38: 38.00000001 | H38: 10 | J38: =OFFSET(Data1!D$11,$H38,0) -> Godrej Consumer | K38: =OFFSET(Data1!E$11,$H38,0) -> 38 | L38: =OFFSET(Data1!F$11,$H38,0) -> 0.2273367493 | M38: =OFFSET(Data1!G$11,$H38,0) -> 0.1137933811 | N38: =OFFSET(Data1!H$11,$H38,0) -> 0.1562526395 | O38: =OFFSET(Data1!I$11,$H38,0) -> 0.1998507295 | P38: =OFFSET(Data1!J$11,$H38,0) -> 0.1292277602 | Q38: =OFFSET(Data1!K$11,$H38,0) -> 0.1941181717 | R38: =OFFSET(Data1!L$11,$H38,0) -> 2.494732028 | T38: =IF(Dashboard1!$E18>=Data1!$E$9,Dashboard1!$E18,NA()) ->  | U38: =IF(Dashboard1!$E18<Data1!$E$9,Dashboard1!$E18,NA()) -> 38 | V38: 28.23809524 | W38: 0 | X38: 49 | Y38: =IF(Dashboard1!$H18>=Data1!$F$9,Dashboard1!$H18,NA()) ->  | Z38: =IF(Dashboard1!$H18<Data1!$F$9,Dashboard1!$H18,NA()) -> 0.2273367493 | AA38: 0.2022365 | AB38: 0 | AC38: 0.5655095295 | AD38: =IF(Dashboard1!$K18>=$AF38,Dashboard1!$K18,NA()) -> 0.1137933811 | AE38: =IF(Dashboard1!$K18<$AF38,Dashboard1!$K18,NA()) ->  | AF38: 0.1133870662 | AG38: 0 | AH38: 0.2921410944 | AI38: =IF(Dashboard1!$N18>=Data1!$H$9,Dashboard1!$N18,NA()) ->  | AJ38: =IF(Dashboard1!$N18<Data1!$H$9,Dashboard1!$N18,NA()) -> 0.1562526395 | AK38: 0.1627916623 | AL38: -0.07205646789 | AM38: 0.8974642972 | AN38: =IF(Dashboard1!$Q18>=Data1!$I$9,Dashboard1!$Q18,NA()) ->  | AO38: =IF(Dashboard1!$Q18<Data1!$I$9,Dashboard1!$Q18,NA()) -> 0.1998507295 | AP38: 0.182654213 | AQ38: 0 | AR38: 0.6146440313 | AS38: =IF(Dashboard1!$T18>=Data1!$J$9,Dashboard1!$T18,NA()) -> 0.1292277602 | AT38: =IF(Dashboard1!$T18<Data1!$J$9,Dashboard1!$T18,NA()) ->  | AU38: 0.07340709169 | AV38: 0 | AW38: 0.1614613909 | AX38: =IF(Dashboard1!$W18>=Data1!$K$9,Dashboard1!$W18,NA()) -> 0.1941181717 | AY38: =IF(Dashboard1!$W18<Data1!$K$9,Dashboard1!$W18,NA()) ->  | AZ38: 0.1084543947 | BA38: 0 | BB38: 0.2940048571 | BC38: =IF(Dashboard1!$Z18>=Data1!$L$9,Dashboard1!$Z18,NA()) -> 2.494732028 | BD38: =IF(Dashboard1!$Z18<Data1!$L$9,Dashboard1!$Z18,NA()) ->  | BE38: 0.5431156957 | BF38: 0 | BG38: 2.506203474 | BI38: 12 | BL38: =OFFSET(Data1!$D23,0,$E$20) -> 0.2449181536 | BM38: =OFFSET(Data1!$D23,0,$E$21) -> 0.4605122521
C39: 13 | D39: =Data1!D24 -> Nestle | E39: =OFFSET(Data1!$D24,0,mySortCriteria) -> 33 | F39: =E39+$C39/1000000000 -> 33.00000001 | G39: 33.00000001 | H39: =MATCH(G39,$F$27:$F$126,0) -> 13 | J39: =OFFSET(Data1!D$11,$H39,0) -> Nestle | K39: =OFFSET(Data1!E$11,$H39,0) -> 33 | L39: =OFFSET(Data1!F$11,$H39,0) -> 0.1998942452 | M39: =OFFSET(Data1!G$11,$H39,0) -> 0.09090146196 | N39: =OFFSET(Data1!H$11,$H39,0) -> -0.07205646789 | O39: =OFFSET(Data1!I$11,$H39,0) -> 0.06666931531 | P39: =OFFSET(Data1!J$11,$H39,0) -> 0.06889891637 | Q39: =OFFSET(Data1!K$11,$H39,0) -> 0.05501587272 | R39: =OFFSET(Data1!L$11,$H39,0) -> 0.03147691161 | T39: =IF(Dashboard1!$E19>=Data1!$E$9,Dashboard1!$E19,NA()) ->  | U39: =IF(Dashboard1!$E19<Data1!$E$9,Dashboard1!$E19,NA()) -> 33 | V39: 28.23809524 | W39: 0 | X39: 49 | Y39: =IF(Dashboard1!$H19>=Data1!$F$9,Dashboard1!$H19,NA()) ->  | Z39: =IF(Dashboard1!$H19<Data1!$F$9,Dashboard1!$H19,NA()) -> 0.1998942452 | AA39: 0.2022365 | AB39: 0 | AC39: 0.5655095295 | AD39: =IF(Dashboard1!$K19>=$AF39,Dashboard1!$K19,NA()) ->  | AE39: =IF(Dashboard1!$K19<$AF39,Dashboard1!$K19,NA()) -> 0.09090146196 | AF39: 0.1133870662 | AG39: 0 | AH39: 0.2921410944 | AI39: =IF(Dashboard1!$N19>=Data1!$H$9,Dashboard1!$N19,NA()) ->  | AJ39: =IF(Dashboard1!$N19<Data1!$H$9,Dashboard1!$N19,NA()) -> -0.07205646789 | AK39: 0.1627916623 | AL39: -0.07205646789 | AM39: 0.8974642972 | AN39: =IF(Dashboard1!$Q19>=Data1!$I$9,Dashboard1!$Q19,NA()) ->  | AO39: =IF(Dashboard1!$Q19<Data1!$I$9,Dashboard1!$Q19,NA()) -> 0.06666931531 | AP39: 0.182654213 | AQ39: 0 | AR39: 0.6146440313 | AS39: =IF(Dashboard1!$T19>=Data1!$J$9,Dashboard1!$T19,NA()) ->  | AT39: =IF(Dashboard1!$T19<Data1!$J$9,Dashboard1!$T19,NA()) -> 0.06889891637 | AU39: 0.07340709169 | AV39: 0 | AW39: 0.1614613909 | AX39: =IF(Dashboard1!$W19>=Data1!$K$9,Dashboard1!$W19,NA()) ->  | AY39: =IF(Dashboard1!$W19<Data1!$K$9,Dashboard1!$W19,NA()) -> 0.05501587272 | AZ39: 0.1084543947 | BA39: 0 | BB39: 0.2940048571 | BC39: =IF(Dashboard1!$Z19>=Data1!$L$9,Dashboard1!$Z19,NA()) ->  | BD39: =IF(Dashboard1!$Z19<Data1!$L$9,Dashboard1!$Z19,NA()) -> 0.03147691161 | BE39: 0.5431156957 | BF39: 0 | BG39: 2.506203474 | BI39: 13 | BL39: =OFFSET(Data1!$D24,0,$E$20) -> 0.09090146196 | BM39: =OFFSET(Data1!$D24,0,$E$21) -> 0.1998942452
C40: 14 | D40: =Data1!D25 -> Tasty Bite | E40: =OFFSET(Data1!$D25,0,mySortCriteria) -> 48 | F40: =E40+$C40/1000000000 -> 48.00000001 | G40: 32.50000001 | H40: =MATCH(G40,$F$27:$F$126,0) -> 9 | J40: =OFFSET(Data1!D$11,$H40,0) -> Emami | K40: =OFFSET(Data1!E$11,$H40,0) -> 32.5 | L40: =OFFSET(Data1!F$11,$H40,0) -> 0.2555839047 | M40: =OFFSET(Data1!G$11,$H40,0) -> 0.1345736737 | N40: =OFFSET(Data1!H$11,$H40,0) -> 0.009146748019 | O40: =OFFSET(Data1!I$11,$H40,0) -> 0.1265549993 | P40: =OFFSET(Data1!J$11,$H40,0) -> 0.1366801459 | Q40: =OFFSET(Data1!K$11,$H40,0) -> 0.1603998077 | R40: =OFFSET(Data1!L$11,$H40,0) -> 1.872288216 | T40: =IF(Dashboard1!$E20>=Data1!$E$9,Dashboard1!$E20,NA()) ->  | U40: =IF(Dashboard1!$E20<Data1!$E$9,Dashboard1!$E20,NA()) -> 32.5 | V40: 28.23809524 | W40: 0 | X40: 49 | Y40: =IF(Dashboard1!$H20>=Data1!$F$9,Dashboard1!$H20,NA()) ->  | Z40: =IF(Dashboard1!$H20<Data1!$F$9,Dashboard1!$H20,NA()) -> 0.2555839047 | AA40: 0.2022365 | AB40: 0 | AC40: 0.5655095295 | AD40: =IF(Dashboard1!$K20>=$AF40,Dashboard1!$K20,NA()) -> 0.1345736737 | AE40: =IF(Dashboard1!$K20<$AF40,Dashboard1!$K20,NA()) ->  | AF40: 0.1133870662 | AG40: 0 | AH40: 0.2921410944 | AI40: =IF(Dashboard1!$N20>=Data1!$H$9,Dashboard1!$N20,NA()) ->  | AJ40: =IF(Dashboard1!$N20<Data1!$H$9,Dashboard1!$N20,NA()) -> 0.009146748019 | AK40: 0.1627916623 | AL40: -0.07205646789 | AM40: 0.8974642972 | AN40: =IF(Dashboard1!$Q20>=Data1!$I$9,Dashboard1!$Q20,NA()) ->  | AO40: =IF(Dashboard1!$Q20<Data1!$I$9,Dashboard1!$Q20,NA()) -> 0.1265549993 | AP40: 0.182654213 | AQ40: 0 | AR40: 0.6146440313 | AS40: =IF(Dashboard1!$T20>=Data1!$J$9,Dashboard1!$T20,NA()) -> 0.1366801459 | AT40: =IF(Dashboard1!$T20<Data1!$J$9,Dashboard1!$T20,NA()) ->  | AU40: 0.07340709169 | AV40: 0 | AW40: 0.1614613909 | AX40: =IF(Dashboard1!$W20>=Data1!$K$9,Dashboard1!$W20,NA()) ->  | AY40: =IF(Dashboard1!$W20<Data1!$K$9,Dashboard1!$W20,NA()) -> 0.1603998077 | AZ40: 0.1084543947 | BA40: 0 | BB40: 0.2940048571 | BC40: =IF(Dashboard1!$Z20>=Data1!$L$9,Dashboard1!$Z20,NA()) -> 1.872288216 | BD40: =IF(Dashboard1!$Z20<Data1!$L$9,Dashboard1!$Z20,NA()) ->  | BE40: 0.5431156957 | BF40: 0 | BG40: 2.506203474 | BI40: 14 | BL40: =OFFSET(Data1!$D25,0,$E$20) -> 0.1220102937 | BM40: =OFFSET(Data1!$D25,0,$E$21) -> 0.2675518672
C41: 15 | D41: =Data1!D26 -> 0 | E41: =OFFSET(Data1!$D26,0,mySortCriteria) -> 0 | F41: =E41+$C41/1000000000 -> 1.5e-08 | G41: 2.1e-08 | H41: =MATCH(G41,$F$27:$F$126,0) -> 21 | J41: =OFFSET(Data1!D$11,$H41,0) -> 0 | K41: =OFFSET(Data1!E$11,$H41,0) -> 0 | L41: =OFFSET(Data1!F$11,$H41,0) -> 0 | M41: =OFFSET(Data1!G$11,$H41,0) -> 0 | N41: =OFFSET(Data1!H$11,$H41,0) -> 0 | O41: =OFFSET(Data1!I$11,$H41,0) -> 0 | P41: =OFFSET(Data1!J$11,$H41,0) -> 0 | Q41: =OFFSET(Data1!K$11,$H41,0) -> 0 | R41: =OFFSET(Data1!L$11,$H41,0) -> 0 | T41: =IF(Dashboard1!$E21>=Data1!$E$9,Dashboard1!$E21,NA()) ->  | U41: =IF(Dashboard1!$E21<Data1!$E$9,Dashboard1!$E21,NA()) -> 0 | V41: =V40 -> 28.23809524 | W41: 0 | X41: 49 | Y41: =IF(Dashboard1!$H21>=Data1!$F$9,Dashboard1!$H21,NA()) ->  | Z41: =IF(Dashboard1!$H21<Data1!$F$9,Dashboard1!$H21,NA()) -> 0 | AA41: =AA40 -> 0.2022365 | AB41: 0 | AC41: 0.5655095295 | AD41: =IF(Dashboard1!$K21>=$AF41,Dashboard1!$K21,NA()) ->  | AE41: =IF(Dashboard1!$K21<$AF41,Dashboard1!$K21,NA()) -> 0 | AF41: =AF40 -> 0.1133870662 | AG41: 0 | AH41: 0.2921410944 | AI41: =IF(Dashboard1!$N21>=Data1!$H$9,Dashboard1!$N21,NA()) ->  | AJ41: =IF(Dashboard1!$N21<Data1!$H$9,Dashboard1!$N21,NA()) -> 0 | AK41: =AK40 -> 0.1627916623 | AL41: -0.07205646789 | AM41: 0.8974642972 | AN41: =IF(Dashboard1!$Q21>=Data1!$I$9,Dashboard1!$Q21,NA()) ->  | AO41: =IF(Dashboard1!$Q21<Data1!$I$9,Dashboard1!$Q21,NA()) -> 0 | AP41: =AP40 -> 0.182654213 | AQ41: 0 | AR41: 0.6146440313 | AS41: =IF(Dashboard1!$T21>=Data1!$J$9,Dashboard1!$T21,NA()) ->  | AT41: =IF(Dashboard1!$T21<Data1!$J$9,Dashboard1!$T21,NA()) -> 0 | AU41: 0.07340709169 | AV41: 0 | AW41: 0.1614613909 | AX41: =IF(Dashboard1!$W21>=Data1!$K$9,Dashboard1!$W21,NA()) ->  | AY41: =IF(Dashboard1!$W21<Data1!$K$9,Dashboard1!$W21,NA()) -> 0 | AZ41: 0.1084543947 | BA41: 0 | BB41: 0.2940048571 | BC41: =IF(Dashboard1!$Z21>=Data1!$L$9,Dashboard1!$Z21,NA()) ->  | BD41: =IF(Dashboard1!$Z21<Data1!$L$9,Dashboard1!$Z21,NA()) -> 0 | BE41: 0.5431156957 | BF41: 0 | BG41: 2.506203474 | BI41: 15 | BL41: =OFFSET(Data1!$D26,0,$E$20) -> 0 | BM41: =OFFSET(Data1!$D26,0,$E$21) -> 0
C42: 16 | D42: =Data1!D27 -> 0 | E42: =OFFSET(Data1!$D27,0,mySortCriteria) -> 0 | F42: 1.6e-08 | G42: 2e-08 | H42: 20 | J42: =OFFSET(Data1!D$11,$H42,0) -> 0 | K42: =OFFSET(Data1!E$11,$H42,0) -> 0 | L42: =OFFSET(Data1!F$11,$H42,0) -> 0 | M42: =OFFSET(Data1!G$11,$H42,0) -> 0 | N42: =OFFSET(Data1!H$11,$H42,0) -> 0 | O42: =OFFSET(Data1!I$11,$H42,0) -> 0 | P42: =OFFSET(Data1!J$11,$H42,0) -> 0 | Q42: =OFFSET(Data1!K$11,$H42,0) -> 0 | R42: =OFFSET(Data1!L$11,$H42,0) -> 0 | T42: =IF(Dashboard1!$E22>=Data1!$E$9,Dashboard1!$E22,NA()) ->  | U42: =IF(Dashboard1!$E22<Data1!$E$9,Dashboard1!$E22,NA()) -> 0 | V42: =V41 -> 28.23809524 | W42: 0 | X42: 49 | Y42: =IF(Dashboard1!$H22>=Data1!$F$9,Dashboard1!$H22,NA()) ->  | Z42: =IF(Dashboard1!$H22<Data1!$F$9,Dashboard1!$H22,NA()) -> 0 | AA42: =AA41 -> 0.2022365 | AB42: 0 | AC42: 0.5655095295 | AD42: =IF(Dashboard1!$K22>=$AF42,Dashboard1!$K22,NA()) ->  | AE42: =IF(Dashboard1!$K22<$AF42,Dashboard1!$K22,NA()) -> 0 | AF42: =AF41 -> 0.1133870662 | AG42: 0 | AH42: 0.2921410944 | AI42: =IF(Dashboard1!$N22>=Data1!$H$9,Dashboard1!$N22,NA()) ->  | AJ42: =IF(Dashboard1!$N22<Data1!$H$9,Dashboard1!$N22,NA()) -> 0 | AK42: =AK41 -> 0.1627916623 | AL42: -0.07205646789 | AM42: 0.8974642972 | AN42: =IF(Dashboard1!$Q22>=Data1!$I$9,Dashboard1!$Q22,NA()) ->  | AO42: =IF(Dashboard1!$Q22<Data1!$I$9,Dashboard1!$Q22,NA()) -> 0 | AP42: =AP41 -> 0.182654213 | AQ42: 0 | AR42: 0.6146440313 | AS42: =IF(Dashboard1!$T22>=Data1!$J$9,Dashboard1!$T22,NA()) ->  | AT42: =IF(Dashboard1!$T22<Data1!$J$9,Dashboard1!$T22,NA()) -> 0 | AU42: 0.07340709169 | AV42: 0 | AW42: 0.1614613909 | AX42: =IF(Dashboard1!$W22>=Data1!$K$9,Dashboard1!$W22,NA()) ->  | AY42: =IF(Dashboard1!$W22<Data1!$K$9,Dashboard1!$W22,NA()) -> 0 | AZ42: 0.1084543947 | BA42: 0 | BB42: 0.2940048571 | BC42: =IF(Dashboard1!$Z22>=Data1!$L$9,Dashboard1!$Z22,NA()) ->  | BD42: =IF(Dashboard1!$Z22<Data1!$L$9,Dashboard1!$Z22,NA()) -> 0 | BE42: 0.5431156957 | BF42: 0 | BG42: 2.506203474 | BI42: 16 | BL42: =OFFSET(Data1!$D27,0,$E$20) -> 0 | BM42: =OFFSET(Data1!$D27,0,$E$21) -> 0
C43: 17 | D43: =Data1!D28 -> 0 | E43: =OFFSET(Data1!$D28,0,mySortCriteria) -> 0 | F43: 1.7e-08 | G43: 1.9e-08 | H43: 19 | J43: =OFFSET(Data1!D$11,$H43,0) -> 0 | K43: =OFFSET(Data1!E$11,$H43,0) -> 0 | L43: =OFFSET(Data1!F$11,$H43,0) -> 0 | M43: =OFFSET(Data1!G$11,$H43,0) -> 0 | N43: =OFFSET(Data1!H$11,$H43,0) -> 0 | O43: =OFFSET(Data1!I$11,$H43,0) -> 0 | P43: =OFFSET(Data1!J$11,$H43,0) -> 0 | Q43: =OFFSET(Data1!K$11,$H43,0) -> 0 | R43: =OFFSET(Data1!L$11,$H43,0) -> 0 | T43: =IF(Dashboard1!$E23>=Data1!$E$9,Dashboard1!$E23,NA()) ->  | U43: =IF(Dashboard1!$E23<Data1!$E$9,Dashboard1!$E23,NA()) -> 0 | V43: =V42 -> 28.23809524 | W43: 0 | X43: 49 | Y43: =IF(Dashboard1!$H23>=Data1!$F$9,Dashboard1!$H23,NA()) ->  | Z43: =IF(Dashboard1!$H23<Data1!$F$9,Dashboard1!$H23,NA()) -> 0 | AA43: =AA42 -> 0.2022365 | AB43: 0 | AC43: 0.5655095295 | AD43: =IF(Dashboard1!$K23>=$AF43,Dashboard1!$K23,NA()) ->  | AE43: =IF(Dashboard1!$K23<$AF43,Dashboard1!$K23,NA()) -> 0 | AF43: =AF42 -> 0.1133870662 | AG43: 0 | AH43: 0.2921410944 | AI43: =IF(Dashboard1!$N23>=Data1!$H$9,Dashboard1!$N23,NA()) ->  | AJ43: =IF(Dashboard1!$N23<Data1!$H$9,Dashboard1!$N23,NA()) -> 0 | AK43: =AK42 -> 0.1627916623 | AL43: -0.07205646789 | AM43: 0.8974642972 | AN43: =IF(Dashboard1!$Q23>=Data1!$I$9,Dashboard1!$Q23,NA()) ->  | AO43: =IF(Dashboard1!$Q23<Data1!$I$9,Dashboard1!$Q23,NA()) -> 0 | AP43: =AP42 -> 0.182654213 | AQ43: 0 | AR43: 0.6146440313 | AS43: =IF(Dashboard1!$T23>=Data1!$J$9,Dashboard1!$T23,NA()) ->  | AT43: =IF(Dashboard1!$T23<Data1!$J$9,Dashboard1!$T23,NA()) -> 0 | AU43: 0.07340709169 | AV43: 0 | AW43: 0.1614613909 | AX43: =IF(Dashboard1!$W23>=Data1!$K$9,Dashboard1!$W23,NA()) ->  | AY43: =IF(Dashboard1!$W23<Data1!$K$9,Dashboard1!$W23,NA()) -> 0 | AZ43: 0.1084543947 | BA43: 0 | BB43: 0.2940048571 | BC43: =IF(Dashboard1!$Z23>=Data1!$L$9,Dashboard1!$Z23,NA()) ->  | BD43: =IF(Dashboard1!$Z23<Data1!$L$9,Dashboard1!$Z23,NA()) -> 0 | BE43: 0.5431156957 | BF43: 0 | BG43: 2.506203474 | BI43: 17 | BL43: =OFFSET(Data1!$D28,0,$E$20) -> 0 | BM43: =OFFSET(Data1!$D28,0,$E$21) -> 0
C44: 18 | D44: =Data1!D29 -> 0 | E44: =OFFSET(Data1!$D29,0,mySortCriteria) -> 0 | F44: 1.8e-08 | G44: 1.8e-08 | H44: 18 | J44: =OFFSET(Data1!D$11,$H44,0) -> 0 | K44: =OFFSET(Data1!E$11,$H44,0) -> 0 | L44: =OFFSET(Data1!F$11,$H44,0) -> 0 | M44: =OFFSET(Data1!G$11,$H44,0) -> 0 | N44: =OFFSET(Data1!H$11,$H44,0) -> 0 | O44: =OFFSET(Data1!I$11,$H44,0) -> 0 | P44: =OFFSET(Data1!J$11,$H44,0) -> 0 | Q44: =OFFSET(Data1!K$11,$H44,0) -> 0 | R44: =OFFSET(Data1!L$11,$H44,0) -> 0 | T44: =IF(Dashboard1!$E24>=Data1!$E$9,Dashboard1!$E24,NA()) ->  | U44: =IF(Dashboard1!$E24<Data1!$E$9,Dashboard1!$E24,NA()) -> 0 | V44: =V43 -> 28.23809524 | W44: 0 | X44: 49 | Y44: =IF(Dashboard1!$H24>=Data1!$F$9,Dashboard1!$H24,NA()) ->  | Z44: =IF(Dashboard1!$H24<Data1!$F$9,Dashboard1!$H24,NA()) -> 0 | AA44: =AA43 -> 0.2022365 | AB44: 0 | AC44: 0.5655095295 | AD44: =IF(Dashboard1!$K24>=$AF44,Dashboard1!$K24,NA()) ->  | AE44: =IF(Dashboard1!$K24<$AF44,Dashboard1!$K24,NA()) -> 0 | AF44: =AF43 -> 0.1133870662 | AG44: 0 | AH44: 0.2921410944 | AI44: =IF(Dashboard1!$N24>=Data1!$H$9,Dashboard1!$N24,NA()) ->  | AJ44: =IF(Dashboard1!$N24<Data1!$H$9,Dashboard1!$N24,NA()) -> 0 | AK44: =AK43 -> 0.1627916623 | AL44: -0.07205646789 | AM44: 0.8974642972 | AN44: =IF(Dashboard1!$Q24>=Data1!$I$9,Dashboard1!$Q24,NA()) ->  | AO44: =IF(Dashboard1!$Q24<Data1!$I$9,Dashboard1!$Q24,NA()) -> 0 | AP44: =AP43 -> 0.182654213 | AQ44: 0 | AR44: 0.6146440313 | AS44: =IF(Dashboard1!$T24>=Data1!$J$9,Dashboard1!$T24,NA()) ->  | AT44: =IF(Dashboard1!$T24<Data1!$J$9,Dashboard1!$T24,NA()) -> 0 | AU44: 0.07340709169 | AV44: 0 | AW44: 0.1614613909 | AX44: =IF(Dashboard1!$W24>=Data1!$K$9,Dashboard1!$W24,NA()) ->  | AY44: =IF(Dashboard1!$W24<Data1!$K$9,Dashboard1!$W24,NA()) -> 0 | AZ44: 0.1084543947 | BA44: 0 | BB44: 0.2940048571 | BC44: =IF(Dashboard1!$Z24>=Data1!$L$9,Dashboard1!$Z24,NA()) ->  | BD44: =IF(Dashboard1!$Z24<Data1!$L$9,Dashboard1!$Z24,NA()) -> 0 | BE44: 0.5431156957 | BF44: 0 | BG44: 2.506203474 | BI44: 18 | BL44: =OFFSET(Data1!$D29,0,$E$20) -> 0 | BM44: =OFFSET(Data1!$D29,0,$E$21) -> 0
C45: 19 | D45: =Data1!D30 -> 0 | E45: =OFFSET(Data1!$D30,0,mySortCriteria) -> 0 | F45: 1.9e-08 | G45: 1.7e-08 | H45: 17 | J45: =OFFSET(Data1!D$11,$H45,0) -> 0 | K45: =OFFSET(Data1!E$11,$H45,0) -> 0 | L45: =OFFSET(Data1!F$11,$H45,0) -> 0 | M45: =OFFSET(Data1!G$11,$H45,0) -> 0 | N45: =OFFSET(Data1!H$11,$H45,0) -> 0 | O45: =OFFSET(Data1!I$11,$H45,0) -> 0 | P45: =OFFSET(Data1!J$11,$H45,0) -> 0 | Q45: =OFFSET(Data1!K$11,$H45,0) -> 0 | R45: =OFFSET(Data1!L$11,$H45,0) -> 0 | T45: =IF(Dashboard1!$E25>=Data1!$E$9,Dashboard1!$E25,NA()) ->  | U45: =IF(Dashboard1!$E25<Data1!$E$9,Dashboard1!$E25,NA()) -> 0 | V45: =V44 -> 28.23809524 | W45: 0 | X45: 49 | Y45: =IF(Dashboard1!$H25>=Data1!$F$9,Dashboard1!$H25,NA()) ->  | Z45: =IF(Dashboard1!$H25<Data1!$F$9,Dashboard1!$H25,NA()) -> 0 | AA45: =AA44 -> 0.2022365 | AB45: 0 | AC45: 0.5655095295 | AD45: =IF(Dashboard1!$K25>=$AF45,Dashboard1!$K25,NA()) ->  | AE45: =IF(Dashboard1!$K25<$AF45,Dashboard1!$K25,NA()) -> 0 | AF45: =AF44 -> 0.1133870662 | AG45: 0 | AH45: 0.2921410944 | AI45: =IF(Dashboard1!$N25>=Data1!$H$9,Dashboard1!$N25,NA()) ->  | AJ45: =IF(Dashboard1!$N25<Data1!$H$9,Dashboard1!$N25,NA()) -> 0 | AK45: =AK44 -> 0.1627916623 | AL45: -0.07205646789 | AM45: 0.8974642972 | AN45: =IF(Dashboard1!$Q25>=Data1!$I$9,Dashboard1!$Q25,NA()) ->  | AO45: =IF(Dashboard1!$Q25<Data1!$I$9,Dashboard1!$Q25,NA()) -> 0 | AP45: =AP44 -> 0.182654213 | AQ45: 0 | AR45: 0.6146440313 | AS45: =IF(Dashboard1!$T25>=Data1!$J$9,Dashboard1!$T25,NA()) ->  | AT45: =IF(Dashboard1!$T25<Data1!$J$9,Dashboard1!$T25,NA()) -> 0 | AU45: =AU44 -> 0.07340709169 | AV45: 0 | AW45: 0.1614613909 | AX45: =IF(Dashboard1!$W25>=Data1!$K$9,Dashboard1!$W25,NA()) ->  | AY45: =IF(Dashboard1!$W25<Data1!$K$9,Dashboard1!$W25,NA()) -> 0 | AZ45: =AZ44 -> 0.1084543947 | BA45: 0 | BB45: 0.2940048571 | BC45: =IF(Dashboard1!$Z25>=Data1!$L$9,Dashboard1!$Z25,NA()) ->  | BD45: =IF(Dashboard1!$Z25<Data1!$L$9,Dashboard1!$Z25,NA()) -> 0 | BE45: =BE44 -> 0.5431156957 | BF45: 0 | BG45: 2.506203474 | BI45: 19 | BL45: =OFFSET(Data1!$D30,0,$E$20) -> 0 | BM45: =OFFSET(Data1!$D30,0,$E$21) -> 0
C46: 20 | D46: =Data1!D31 -> 0 | E46: =OFFSET(Data1!$D31,0,mySortCriteria) -> 0 | F46: 2e-08 | G46: 1.6e-08 | H46: 16 | J46: =OFFSET(Data1!D$11,$H46,0) -> 0 | K46: =OFFSET(Data1!E$11,$H46,0) -> 0 | L46: =OFFSET(Data1!F$11,$H46,0) -> 0 | M46: =OFFSET(Data1!G$11,$H46,0) -> 0 | N46: =OFFSET(Data1!H$11,$H46,0) -> 0 | O46: =OFFSET(Data1!I$11,$H46,0) -> 0 | P46: =OFFSET(Data1!J$11,$H46,0) -> 0 | Q46: =OFFSET(Data1!K$11,$H46,0) -> 0 | R46: =OFFSET(Data1!L$11,$H46,0) -> 0 | T46: =IF(Dashboard1!$E26>=Data1!$E$9,Dashboard1!$E26,NA()) ->  | U46: =IF(Dashboard1!$E26<Data1!$E$9,Dashboard1!$E26,NA()) -> 0 | V46: =V45 -> 28.23809524 | W46: 0 | X46: 49 | Y46: =IF(Dashboard1!$H26>=Data1!$F$9,Dashboard1!$H26,NA()) ->  | Z46: =IF(Dashboard1!$H26<Data1!$F$9,Dashboard1!$H26,NA()) -> 0 | AA46: =AA45 -> 0.2022365 | AB46: 0 | AC46: 0.5655095295 | AD46: =IF(Dashboard1!$K26>=$AF46,Dashboard1!$K26,NA()) ->  | AE46: =IF(Dashboard1!$K26<$AF46,Dashboard1!$K26,NA()) -> 0 | AF46: =AF45 -> 0.1133870662 | AG46: 0 | AH46: 0.2921410944 | AI46: =IF(Dashboard1!$N26>=Data1!$H$9,Dashboard1!$N26,NA()) ->  | AJ46: =IF(Dashboard1!$N26<Data1!$H$9,Dashboard1!$N26,NA()) -> 0 | AK46: =AK45 -> 0.1627916623 | AL46: -0.07205646789 | AM46: 0.8974642972 | AN46: =IF(Dashboard1!$Q26>=Data1!$I$9,Dashboard1!$Q26,NA()) ->  | AO46: =IF(Dashboard1!$Q26<Data1!$I$9,Dashboard1!$Q26,NA()) -> 0 | AP46: =AP45 -> 0.182654213 | AQ46: 0 | AR46: 0.6146440313 | AS46: =IF(Dashboard1!$T26>=Data1!$J$9,Dashboard1!$T26,NA()) ->  | AT46: =IF(Dashboard1!$T26<Data1!$J$9,Dashboard1!$T26,NA()) -> 0 | AU46: 0.07340709169 | AV46: 0 | AW46: 0.1614613909 | AX46: =IF(Dashboard1!$W26>=Data1!$K$9,Dashboard1!$W26,NA()) ->  | AY46: =IF(Dashboard1!$W26<Data1!$K$9,Dashboard1!$W26,NA()) -> 0 | AZ46: 0.1084543947 | BA46: 0 | BB46: 0.2940048571 | BC46: =IF(Dashboard1!$Z26>=Data1!$L$9,Dashboard1!$Z26,NA()) ->  | BD46: =IF(Dashboard1!$Z26<Data1!$L$9,Dashboard1!$Z26,NA()) -> 0 | BE46: 0.5431156957 | BF46: 0 | BG46: 2.506203474 | BI46: 20 | BL46: =OFFSET(Data1!$D31,0,$E$20) -> 0 | BM46: =OFFSET(Data1!$D31,0,$E$21) -> 0
C47: 21 | D47: =Data1!D32 -> 0 | E47: =OFFSET(Data1!$D32,0,mySortCriteria) -> 0 | F47: =E47+$C47/1000000000 -> 2.1e-08 | G47: 1.5e-08 | H47: =MATCH(G47,$F$27:$F$126,0) -> 15 | J47: =OFFSET(Data1!D$11,$H47,0) -> 0 | K47: =OFFSET(Data1!E$11,$H47,0) -> 0 | L47: =OFFSET(Data1!F$11,$H47,0) -> 0 | M47: =OFFSET(Data1!G$11,$H47,0) -> 0 | N47: =OFFSET(Data1!H$11,$H47,0) -> 0 | O47: =OFFSET(Data1!I$11,$H47,0) -> 0 | P47: =OFFSET(Data1!J$11,$H47,0) -> 0 | Q47: =OFFSET(Data1!K$11,$H47,0) -> 0 | R47: =OFFSET(Data1!L$11,$H47,0) -> 0 | T47: =IF(Dashboard1!$E27>=Data1!$E$9,Dashboard1!$E27,NA()) ->  | U47: =IF(Dashboard1!$E27<Data1!$E$9,Dashboard1!$E27,NA()) -> 0 | V47: =V46 -> 28.23809524 | W47: 0 | X47: 49 | Y47: =IF(Dashboard1!$H27>=Data1!$F$9,Dashboard1!$H27,NA()) ->  | Z47: =IF(Dashboard1!$H27<Data1!$F$9,Dashboard1!$H27,NA()) -> 0 | AA47: =AA46 -> 0.2022365 | AB47: 0 | AC47: 0.5655095295 | AD47: =IF(Dashboard1!$K27>=$AF47,Dashboard1!$K27,NA()) ->  | AE47: =IF(Dashboard1!$K27<$AF47,Dashboard1!$K27,NA()) -> 0 | AF47: =AF46 -> 0.1133870662 | AG47: 0 | AH47: 0.2921410944 | AI47: =IF(Dashboard1!$N27>=Data1!$H$9,Dashboard1!$N27,NA()) ->  | AJ47: =IF(Dashboard1!$N27<Data1!$H$9,Dashboard1!$N27,NA()) -> 0 | AK47: =AK46 -> 0.1627916623 | AL47: -0.07205646789 | AM47: 0.8974642972 | AN47: =IF(Dashboard1!$Q27>=Data1!$I$9,Dashboard1!$Q27,NA()) ->  | AO47: =IF(Dashboard1!$Q27<Data1!$I$9,Dashboard1!$Q27,NA()) -> 0 | AP47: =AP46 -> 0.182654213 | AQ47: 0 | AR47: 0.6146440313 | AS47: =IF(Dashboard1!$T27>=Data1!$J$9,Dashboard1!$T27,NA()) ->  | AT47: =IF(Dashboard1!$T27<Data1!$J$9,Dashboard1!$T27,NA()) -> 0 | AU47: 0.07340709169 | AV47: 0 | AW47: 0.1614613909 | AX47: =IF(Dashboard1!$W27>=Data1!$K$9,Dashboard1!$W27,NA()) ->  | AY47: =IF(Dashboard1!$W27<Data1!$K$9,Dashboard1!$W27,NA()) -> 0 | AZ47: 0.1084543947 | BA47: 0 | BB47: 0.2940048571 | BC47: =IF(Dashboard1!$Z27>=Data1!$L$9,Dashboard1!$Z27,NA()) ->  | BD47: =IF(Dashboard1!$Z27<Data1!$L$9,Dashboard1!$Z27,NA()) -> 0 | BE47: 0.5431156957 | BF47: 0 | BG47: 2.506203474 | BI47: 21 | BL47: =OFFSET(Data1!$D32,0,$E$20) -> 0 | BM47: =OFFSET(Data1!$D32,0,$E$21) -> 0
BL48: =OFFSET(Data1!$D33,0,$E$20) -> 0 | BM48: =OFFSET(Data1!$D33,0,$E$21) -> 0
BL49: =OFFSET(Data1!$D34,0,$E$20) -> 0 | BM49: =OFFSET(Data1!$D34,0,$E$21) -> 0
BL50: =OFFSET(Data1!$D35,0,$E$20) -> 0 | BM50: =OFFSET(Data1!$D35,0,$E$21) -> 0
BL51: =OFFSET(Data1!$D36,0,$E$20) -> 0 | BM51: =OFFSET(Data1!$D36,0,$E$21) -> 0
BL52: =OFFSET(Data1!$D37,0,$E$20) -> 0 | BM52: =OFFSET(Data1!$D37,0,$E$21) -> 0
BL53: =OFFSET(Data1!$D38,0,$E$20) -> 0 | BM53: =OFFSET(Data1!$D38,0,$E$21) -> 0
BL54: =OFFSET(Data1!$D39,0,$E$20) -> 0 | BM54: =OFFSET(Data1!$D39,0,$E$21) -> 0
BL55: =OFFSET(Data1!$D40,0,$E$20) -> 0 | BM55: =OFFSET(Data1!$D40,0,$E$21) -> 0
BL56: =OFFSET(Data1!$D41,0,$E$20) -> 0 | BM56: =OFFSET(Data1!$D41,0,$E$21) -> 0
BL57: =OFFSET(Data1!$D42,0,$E$20) -> 0 | BM57: =OFFSET(Data1!$D42,0,$E$21) -> 0
BL58: =OFFSET(Data1!$D43,0,$E$20) -> 0 | BM58: =OFFSET(Data1!$D43,0,$E$21) -> 0
BL59: =OFFSET(Data1!$D44,0,$E$20) -> 0 | BM59: =OFFSET(Data1!$D44,0,$E$21) -> 0
BL60: =OFFSET(Data1!$D45,0,$E$20) -> 0 | BM60: =OFFSET(Data1!$D45,0,$E$21) -> 0
BL61: =OFFSET(Data1!$D46,0,$E$20) -> 0 | BM61: =OFFSET(Data1!$D46,0,$E$21) -> 0
BL62: =OFFSET(Data1!$D47,0,$E$20) -> 0 | BM62: =OFFSET(Data1!$D47,0,$E$21) -> 0
BL63: =OFFSET(Data1!$D48,0,$E$20) -> 0 | BM63: =OFFSET(Data1!$D48,0,$E$21) -> 0
BL64: =OFFSET(Data1!$D49,0,$E$20) -> 0 | BM64: =OFFSET(Data1!$D49,0,$E$21) -> 0
BL65: =OFFSET(Data1!$D50,0,$E$20) -> 0 | BM65: =OFFSET(Data1!$D50,0,$E$21) -> 0
BL66: =OFFSET(Data1!$D51,0,$E$20) -> 0 | BM66: =OFFSET(Data1!$D51,0,$E$21) -> 0
BL67: =OFFSET(Data1!$D52,0,$E$20) -> 0 | BM67: =OFFSET(Data1!$D52,0,$E$21) -> 0
BL68: =OFFSET(Data1!$D53,0,$E$20) -> 0 | BM68: =OFFSET(Data1!$D53,0,$E$21) -> 0
BL69: =OFFSET(Data1!$D54,0,$E$20) -> 0 | BM69: =OFFSET(Data1!$D54,0,$E$21) -> 0
BL70: =OFFSET(Data1!$D55,0,$E$20) -> 0 | BM70: =OFFSET(Data1!$D55,0,$E$21) -> 0
BL71: =OFFSET(Data1!$D56,0,$E$20) -> 0 | BM71: =OFFSET(Data1!$D56,0,$E$21) -> 0
BL72: =OFFSET(Data1!$D57,0,$E$20) -> 0 | BM72: =OFFSET(Data1!$D57,0,$E$21) -> 0
BL73: =OFFSET(Data1!$D58,0,$E$20) -> 0 | BM73: =OFFSET(Data1!$D58,0,$E$21) -> 0
BL74: =OFFSET(Data1!$D59,0,$E$20) -> 0 | BM74: =OFFSET(Data1!$D59,0,$E$21) -> 0
BL75: =OFFSET(Data1!$D60,0,$E$20) -> 0 | BM75: =OFFSET(Data1!$D60,0,$E$21) -> 0
BL76: =OFFSET(Data1!$D61,0,$E$20) -> 0 | BM76: =OFFSET(Data1!$D61,0,$E$21) -> 0
BL77: =OFFSET(Data1!$D62,0,$E$20) -> 0 | BM77: =OFFSET(Data1!$D62,0,$E$21) -> 0
BL78: =OFFSET(Data1!$D63,0,$E$20) -> 0 | BM78: =OFFSET(Data1!$D63,0,$E$21) -> 0
BL79: =OFFSET(Data1!$D64,0,$E$20) -> 0 | BM79: =OFFSET(Data1!$D64,0,$E$21) -> 0
BL80: =OFFSET(Data1!$D65,0,$E$20) -> 0 | BM80: =OFFSET(Data1!$D65,0,$E$21) -> 0
BL81: =OFFSET(Data1!$D66,0,$E$20) -> 0 | BM81: =OFFSET(Data1!$D66,0,$E$21) -> 0
BL82: =OFFSET(Data1!$D67,0,$E$20) -> 0 | BM82: =OFFSET(Data1!$D67,0,$E$21) -> 0
BL83: =OFFSET(Data1!$D68,0,$E$20) -> 0 | BM83: =OFFSET(Data1!$D68,0,$E$21) -> 0
BL84: =OFFSET(Data1!$D69,0,$E$20) -> 0 | BM84: =OFFSET(Data1!$D69,0,$E$21) -> 0
BL85: =OFFSET(Data1!$D70,0,$E$20) -> 0 | BM85: =OFFSET(Data1!$D70,0,$E$21) -> 0
BL86: =OFFSET(Data1!$D71,0,$E$20) -> 0 | BM86: =OFFSET(Data1!$D71,0,$E$21) -> 0
BL87: =OFFSET(Data1!$D72,0,$E$20) -> 0 | BM87: =OFFSET(Data1!$D72,0,$E$21) -> 0
BL88: =OFFSET(Data1!$D73,0,$E$20) -> 0 | BM88: =OFFSET(Data1!$D73,0,$E$21) -> 0
BL89: =OFFSET(Data1!$D74,0,$E$20) -> 0 | BM89: =OFFSET(Data1!$D74,0,$E$21) -> 0
BL90: =OFFSET(Data1!$D75,0,$E$20) -> 0 | BM90: =OFFSET(Data1!$D75,0,$E$21) -> 0
BL91: =OFFSET(Data1!$D76,0,$E$20) -> 0 | BM91: =OFFSET(Data1!$D76,0,$E$21) -> 0
BL92: =OFFSET(Data1!$D77,0,$E$20) -> 0 | BM92: =OFFSET(Data1!$D77,0,$E$21) -> 0
BL93: =OFFSET(Data1!$D78,0,$E$20) -> 0 | BM93: =OFFSET(Data1!$D78,0,$E$21) -> 0
BL94: =OFFSET(Data1!$D79,0,$E$20) -> 0 | BM94: =OFFSET(Data1!$D79,0,$E$21) -> 0
BL95: =OFFSET(Data1!$D80,0,$E$20) -> 0 | BM95: =OFFSET(Data1!$D80,0,$E$21) -> 0
BL96: =OFFSET(Data1!$D81,0,$E$20) -> 0 | BM96: =OFFSET(Data1!$D81,0,$E$21) -> 0
BL97: =OFFSET(Data1!$D82,0,$E$20) -> 0 | BM97: =OFFSET(Data1!$D82,0,$E$21) -> 0
BL98: =OFFSET(Data1!$D83,0,$E$20) -> 0 | BM98: =OFFSET(Data1!$D83,0,$E$21) -> 0
BL99: =OFFSET(Data1!$D84,0,$E$20) -> 0 | BM99: =OFFSET(Data1!$D84,0,$E$21) -> 0
BL100: =OFFSET(Data1!$D85,0,$E$20) -> 0 | BM100: =OFFSET(Data1!$D85,0,$E$21) -> 0
BL101: =OFFSET(Data1!$D86,0,$E$20) -> 0 | BM101: =OFFSET(Data1!$D86,0,$E$21) -> 0
BL102: =OFFSET(Data1!$D87,0,$E$20) -> 0 | BM102: =OFFSET(Data1!$D87,0,$E$21) -> 0
BL103: =OFFSET(Data1!$D88,0,$E$20) -> 0 | BM103: =OFFSET(Data1!$D88,0,$E$21) -> 0
BL104: =OFFSET(Data1!$D89,0,$E$20) -> 0 | BM104: =OFFSET(Data1!$D89,0,$E$21) -> 0
BL105: =OFFSET(Data1!$D90,0,$E$20) -> 0 | BM105: =OFFSET(Data1!$D90,0,$E$21) -> 0
BL106: =OFFSET(Data1!$D91,0,$E$20) -> 0 | BM106: =OFFSET(Data1!$D91,0,$E$21) -> 0
BL107: =OFFSET(Data1!$D92,0,$E$20) -> 0 | BM107: =OFFSET(Data1!$D92,0,$E$21) -> 0
BL108: =OFFSET(Data1!$D93,0,$E$20) -> 0 | BM108: =OFFSET(Data1!$D93,0,$E$21) -> 0
BL109: =OFFSET(Data1!$D94,0,$E$20) -> 0 | BM109: =OFFSET(Data1!$D94,0,$E$21) -> 0
BL110: =OFFSET(Data1!$D95,0,$E$20) -> 0 | BM110: =OFFSET(Data1!$D95,0,$E$21) -> 0
BL111: =OFFSET(Data1!$D96,0,$E$20) -> 0 | BM111: =OFFSET(Data1!$D96,0,$E$21) -> 0
BL112: =OFFSET(Data1!$D97,0,$E$20) -> 0 | BM112: =OFFSET(Data1!$D97,0,$E$21) -> 0
BL113: =OFFSET(Data1!$D98,0,$E$20) -> 0 | BM113: =OFFSET(Data1!$D98,0,$E$21) -> 0
BL114: =OFFSET(Data1!$D99,0,$E$20) -> 0 | BM114: =OFFSET(Data1!$D99,0,$E$21) -> 0
BL115: =OFFSET(Data1!$D100,0,$E$20) -> 0 | BM115: =OFFSET(Data1!$D100,0,$E$21) -> 0
BL116: =OFFSET(Data1!$D101,0,$E$20) -> 0 | BM116: =OFFSET(Data1!$D101,0,$E$21) -> 0
BL117: =OFFSET(Data1!$D102,0,$E$20) -> 0 | BM117: =OFFSET(Data1!$D102,0,$E$21) -> 0
BL118: =OFFSET(Data1!$D103,0,$E$20) -> 0 | BM118: =OFFSET(Data1!$D103,0,$E$21) -> 0
BL119: =OFFSET(Data1!$D104,0,$E$20) -> 0 | BM119: =OFFSET(Data1!$D104,0,$E$21) -> 0
BL120: =OFFSET(Data1!$D105,0,$E$20) -> 0 | BM120: =OFFSET(Data1!$D105,0,$E$21) -> 0
BL121: =OFFSET(Data1!$D106,0,$E$20) -> 0 | BM121: =OFFSET(Data1!$D106,0,$E$21) -> 0
BL122: =OFFSET(Data1!$D107,0,$E$20) -> 0 | BM122: =OFFSET(Data1!$D107,0,$E$21) -> 0
BL123: =OFFSET(Data1!$D108,0,$E$20) -> 0 | BM123: =OFFSET(Data1!$D108,0,$E$21) -> 0
BL124: =OFFSET(Data1!$D109,0,$E$20) -> 0 | BM124: =OFFSET(Data1!$D109,0,$E$21) -> 0
BL125: =OFFSET(Data1!$D110,0,$E$20) -> 0 | BM125: =OFFSET(Data1!$D110,0,$E$21) -> 0
BL126: =OFFSET(Data1!$D111,0,$E$20) -> 0 | BM126: =OFFSET(Data1!$D111,0,$E$21) -> 0

Sheet Data1
C3: Data
D5: Quantile for highlighting green | E5: 0.9
D6: Quantile for highlighting red | E6: 0.1
E8: Financial Score | F8: ROE | G8: ROA | H8: EPS growth 5 Yr. | I8: EPS growth 10 Yr. | J8: NP margin | K8: Sales growth 5 Yr. | L8: Debt/Net Profit
D9: Targets | E9: =AVERAGE(E12:E10000) -> 42.35714286 | F9: =AVERAGE(F12:F10000) -> 0.3033547499 | G9: =AVERAGE(G12:G10000) -> 0.1700805992 | H9: =AVERAGE(H12:H10000) -> 0.2441874935 | I9: =AVERAGE(I12:I10000) -> 0.2739813196 | J9: 0.1101106375 | K9: 0.1626815921 | L9: 0.8146735435
C11: No. | D11: Sherwood Segment | E11: =E8 -> Financial Score | F11: =F8 -> ROE | G11: ROA | H11: EPS growth 5 Yr. | I11: EPS growth 10 Yr. | J11: NP margin | K11: Sales growth 5 Yr. | L11: Debt/Net Profit
C12: 1 | D12: =[1]Qualitative!$D$2 -> Britannia | E12: =[1]Scorecard!$C$5 -> 46.5 | F12: =[1]Analysis!$M$4 -> 0.4398597785 | G12: =[1]Analysis!$O$4 -> 0.2419447567 | H12: =[1]Analysis!$I$13 -> 0.3870072681 | I12: =[1]Analysis!$I$12 -> 0.239942963 | J12: =[1]Analysis!$F$4 -> 0.09425005347 | K12: =[1]Analysis!$E$13 -> 0.1347901771 | L12: =[1]Analysis!$L$4 -> 0.000907768092
C13: =C12+1 -> 2 | D13: =[2]Qualitative!$D$2 -> Marico | E13: =[2]Scorecard!$C$5 -> 46 | F13: =[2]Analysis!$M$4 -> 0.3513000515 | G13: =[2]Analysis!$O$4 -> 0.2126317005 | H13: =[2]Analysis!$I$13 -> 0.1982395464 | I13: =[2]Analysis!$I$12 -> 0.2256287838 | J13: =[2]Analysis!$F$4 -> 0.120126418 | K13: =[2]Analysis!$E$13 -> 0.1435989919 | L13: =[2]Analysis!$L$4 -> 0.4508023133
C14: =C13+1 -> 3 | D14: =[3]Qualitative!$D$2 -> Dabur India | E14: =[3]Scorecard!$C$5 -> 43.5 | F14: =[3]Analysis!$M$4 -> 0.3017857873 | G14: =[3]Analysis!$O$4 -> 0.1755118075 | H14: =[3]Analysis!$I$13 -> 0.1686895358 | I14: =[3]Analysis!$I$12 -> 0.1777753572 | J14: =[3]Analysis!$F$4 -> 0.1485033156 | K14: =[3]Analysis!$E$13 -> 0.1569706926 | L14: =[3]Analysis!$L$4 -> 0.6302043092
C15: 4 | D15: =[4]Qualitative!$D$2 -> Mayur Uniquoter | E15: =[4]Scorecard!$C$5 -> 41 | F15: =[4]Analysis!$M$4 -> 0.2411797375 | G15: =[4]Analysis!$O$4 -> 0.1865855589 | H15: =[4]Analysis!$I$13 -> 0.1803944753 | I15: =[4]Analysis!$I$12 -> 0.4047178891 | J15: =[4]Analysis!$F$4 -> 0.1614613909 | K15: =[4]Analysis!$E$13 -> 0.1550514549 | L15: =[4]Analysis!$L$4 -> 0.313537753
C16: 5 | D16: =[5]Qualitative!$D$2 -> Titan Company | E16: =[5]Scorecard!$C$5 -> 42 | F16: =[5]Analysis!$M$4 -> 0.2008052125 | G16: =[5]Analysis!$O$4 -> 0.1100708384 | H16: =[5]Analysis!$I$13 -> 0.1039922209 | I16: =[5]Analysis!$I$12 -> 0.2509086947 | J16: =[5]Analysis!$F$4 -> 0.06265241426 | K16: =[5]Analysis!$E$13 -> 0.1155296221 | L16: =[5]Analysis!$L$4 -> 0.1601842012
C17: 6 | D17: =[6]Qualitative!$D$2 -> Amara Raja Batt | E17: =[6]Scorecard!$C$5 -> 49 | F17: =[6]Analysis!$M$4 -> 0.2328847947 | G17: =[6]Analysis!$O$4 -> 0.1679477325 | H17: =[6]Analysis!$I$13 -> 0.2700787648 | I17: =[6]Analysis!$I$12 -> 0.2719228628 | J17: =[6]Analysis!$F$4 -> 0.1043433028 | K17: =[6]Analysis!$E$13 -> 0.2164454512 | L17: =[6]Analysis!$L$4 -> 0.1514792416
C18: 7 | D18: =[7]Qualitative!$D$2 -> Pidilite Ind | E18: =[7]Scorecard!$C$5 -> 44 | F18: =[7]Analysis!$M$4 -> 0.2717946322 | G18: =[7]Analysis!$O$4 -> 0.1925223797 | H18: =[7]Analysis!$I$13 -> 0.1919307345 | I18: =[7]Analysis!$I$12 -> 0.1434874726 | J18: =[7]Analysis!$F$4 -> 0.1408673142 | K18: =[7]Analysis!$E$13 -> 0.1510700805 | L18: =[7]Analysis!$L$4 -> 0.1120865174
C19: 8 | D19: =[8]Qualitative!$D$2 -> Colgate | E19: =[8]Scorecard!$C$5 -> 41 | F19: =[8]Analysis!$M$4 -> 0.5655095295 | G19: =[8]Analysis!$O$4 -> 0.2921410944 | H19: =[8]Analysis!$I$13 -> 0.07446167654 | I19: =[8]Analysis!$I$12 -> 0.3933665269 | J19: =[8]Analysis!$F$4 -> 0.1385102912 | K19: =[8]Analysis!$E$13 -> 0.1273185737 | L19: =[8]Analysis!$L$4 -> 0
C20: 9 | D20: =[9]Qualitative!$D$2 -> Emami | E20: =[9]Scorecard!$C$5 -> 32.5 | F20: =[9]Analysis!$M$4 -> 0.2555839047 | G20: =[9]Analysis!$O$4 -> 0.1345736737 | H20: =[9]Analysis!$I$13 -> 0.009146748019 | I20: =[9]Analysis!$I$12 -> 0.1265549993 | J20: =[9]Analysis!$F$4 -> 0.1366801459 | K20: =[9]Analysis!$E$13 -> 0.1603998077 | L20: =[9]Analysis!$L$4 -> 1.872288216
C21: 10 | D21: =[10]Qualitative!$D$2 -> Godrej Consumer | E21: =[10]Scorecard!$C$5 -> 38 | F21: =[10]Analysis!$M$4 -> 0.2273367493 | G21: =[10]Analysis!$O$4 -> 0.1137933811 | H21: =[10]Analysis!$I$13 -> 0.1562526395 | I21: =[10]Analysis!$I$12 -> 0.1998507295 | J21: =[10]Analysis!$F$4 -> 0.1292277602 | K21: =[10]Analysis!$E$13 -> 0.1941181717 | L21: =[10]Analysis!$L$4 -> 2.494732028
C22: 11 | D22: =[11]Qualitative!$D$2 -> Heritage Foods | E22: =[11]Scorecard!$C$5 -> 44.5 | F22: =[11]Analysis!$M$4 -> 0.230967957 | G22: =[11]Analysis!$O$4 -> 0.09557555693 | H22: =[11]Analysis!$I$13 -> 0.8974642972 | I22: =[11]Analysis!$I$12 -> 0.6146440313 | J22: =[11]Analysis!$F$4 -> 0.02328424166 | K22: =[11]Analysis!$E$13 -> 0.1677968865 | L22: =[11]Analysis!$L$4 -> 2.273678513
C23: 12 | D23: =[12]Qualitative!$D$2 -> Page Industries | E23: =[12]Scorecard!$C$5 -> 44 | F23: =[12]Analysis!$M$4 -> 0.4605122521 | G23: =[12]Analysis!$O$4 -> 0.2449181536 | H23: =[12]Analysis!$I$13 -> 0.3177680234 | I23: =[12]Analysis!$I$12 -> 0.337110973 | J23: =[12]Analysis!$F$4 -> 0.1304564799 | K23: =[12]Analysis!$E$13 -> 0.2940048571 | L23: =[12]Analysis!$L$4 -> 0.4078483624
C24: 13 | D24: =[13]Qualitative!$D$2 -> Nestle | E24: =[13]Scorecard!$C$5 -> 33 | F24: =[13]Analysis!$M$4 -> 0.1998942452 | G24: =[13]Analysis!$O$4 -> 0.09090146196 | H24: =[13]Analysis!$I$13 -> -0.07205646789 | I24: =[13]Analysis!$I$12 -> 0.06666931531 | J24: =[13]Analysis!$F$4 -> 0.06889891637 | K24: =[13]Analysis!$E$13 -> 0.05501587272 | L24: =[13]Analysis!$L$4 -> 0.03147691161
C25: 14 | D25: =[14]Qualitative!$D$2 -> Tasty Bite | E25: =[14]Scorecard!$C$5 -> 48 | F25: =[14]Analysis!$M$4 -> 0.2675518672 | G25: =[14]Analysis!$O$4 -> 0.1220102937 | H25: =[14]Analysis!$I$13 -> 0.5352554461 | I25: =[14]Analysis!$I$12 -> 0.3831578754 | J25: =[14]Analysis!$F$4 -> 0.08228688106 | K25: =[14]Analysis!$E$13 -> 0.2054316492 | L25: =[14]Analysis!$L$4 -> 2.506203474
C26: 15
C27: 16
C28: 17
C29: 18
C30: 19
C31: 20
C32: 21

Sheet Data2
C3: Data
D5: Quantile for highlighting green | E5: 0.9
D6: Quantile for highlighting red | E6: 0.1
E8: Total Score | F8: Promoter Pledge% | G8: Promoter Holding 5 Yr. | H8: CFO/PAT 5 Yr. | I8: Current ratio | J8: Current Cash flow | K8: BVPS 5 Yr. | L8: =[1]Analysis!$H$2 -> Receivables/ Sales
D9: Targets | E9: =AVERAGE(E12:E10000) -> 80.28571429 | F9: =AVERAGE(F12:F10000) -> 0.01514285714 | G9: =AVERAGE(G12:G10000) -> -0.007745081085 | H9: =AVERAGE(H12:H10000) -> 1.139383913 | I9: =AVERAGE(I12:I10000) -> 1.576978847 | J9: 1 | K9: 0.2264914578 | L9: 0.07639015154
C11: No. | D11: Sherwood Segment | E11: =E8 -> Total Score | F11: =F8 -> Promoter Pledge% | G11: Promoter Holding 5 Yr. | H11: CFO/PAT 5 Yr. | I11: Current ratio | J11: Current Cash flow | K11: BVPS 5 Yr. | L11: Receivables/ Sales
C12: 1 | D12: =[1]Qualitative!$D$2 -> Britannia | E12: =[1]Scorecard!$C$4 -> 84.5 | F12: =[1]Analysis!$F$16 -> 0 | G12: =[1]Analysis!$M$13 -> -0.001081029539 | H12: =[1]Analysis!$H$8 -> 1.151835851 | I12: =[1]Analysis!$J$4 -> 1.068176269 | J12: =IF([1]Analysis!$E$9>0, 1, 0) -> 1 | K12: =[1]Analysis!$J$13 -> 0.3030766559 | L12: =[1]Analysis!$H$4 -> 0.01342492986
C13: =C12+1 -> 2 | D13: =[2]Qualitative!$D$2 -> Marico | E13: =[2]Scorecard!$C$4 -> 84 | F13: =[2]Analysis!$F$16 -> 0 | G13: =[2]Analysis!$M$13 -> -0.01106216917 | H13: =[2]Analysis!$H$8 -> 1.169780876 | I13: =[2]Analysis!$J$4 -> 1.900143907 | J13: =IF([2]Analysis!$E$9>0,1,0) -> 1 | K13: =[2]Analysis!$J$13 -> 0.1746065765 | L13: =[2]Analysis!$H$4 -> 0.04116411504
C14: =C13+1 -> 3 | D14: =[3]Qualitative!$D$2 -> Dabur India | E14: =[3]Scorecard!$C$4 -> 81.5 | F14: =[3]Analysis!$F$16 -> 0 | G14: =[3]Analysis!$M$13 -> -0.002302184059 | H14: =[3]Analysis!$H$8 -> 1.009524178 | I14: =[3]Analysis!$J$4 -> 1.196532868 | J14: =IF([3]Analysis!$E$9>0,1,0) -> 1 | K14: =[3]Analysis!$J$13 -> 0.2423205464 | L14: =[3]Analysis!$H$4 -> 0.09577692033
C15: 4 | D15: =[4]Qualitative!$D$2 -> Mayur Uniquoter | E15: =[4]Scorecard!$C$4 -> 79 | F15: =[4]Analysis!$F$16 -> 0 | G15: =[4]Analysis!$M$13 -> -0.04974876672 | H15: =[4]Analysis!$H$8 -> 0.7936142315 | I15: =[4]Analysis!$J$4 -> 2.730163007 | J15: =IF([4]Analysis!$E$9>0,1,0) -> 1 | K15: =[4]Analysis!$J$13 -> 0.3152243716 | L15: =[4]Analysis!$H$4 -> 0.2422997143
C16: 5 | D16: =[5]Qualitative!$D$2 -> Titan Company | E16: =[5]Scorecard!$C$4 -> 80 | F16: =[5]Analysis!$F$16 -> 0 | G16: =[5]Analysis!$M$13 -> 0 | H16: =[5]Analysis!$H$8 -> 0.3529662386 | I16: =[5]Analysis!$J$4 -> 1.962246734 | J16: =IF([5]Analysis!$E$9>0,1,0) -> 1 | K16: =[5]Analysis!$J$13 -> 0.2793760383 | L16: =[5]Analysis!$H$4 -> 0.0173225159
C17: 6 | D17: =[6]Qualitative!$D$2 -> Amara Raja Batt | E17: =[6]Scorecard!$C$4 -> 87 | F17: =[6]Analysis!$F$16 -> 0 | G17: =[6]Analysis!$M$13 -> 0 | H17: =[6]Analysis!$H$8 -> 1.07196961 | I17: =[6]Analysis!$J$4 -> 1.979687458 | J17: =IF([6]Analysis!$E$9>0,1,0) -> 1 | K17: =[6]Analysis!$J$13 -> 0.2661191397 | L17: =[6]Analysis!$H$4 -> 0.1262399615
C18: 7 | D18: =[7]Qualitative!$D$2 -> Pidilite Ind | E18: =[7]Scorecard!$C$4 -> 82 | F18: =[7]Analysis!$F$16 -> 0 | G18: =[7]Analysis!$M$13 -> -0.004124385679 | H18: =[7]Analysis!$H$8 -> 1.078453165 | I18: =[7]Analysis!$J$4 -> 1.647742908 | J18: =IF([7]Analysis!$E$9>0,1,0) -> 1 | K18: =[7]Analysis!$J$13 -> 0.2042665621 | L18: =[7]Analysis!$H$4 -> 0.135842591
C19: 8 | D19: =[8]Qualitative!$D$2 -> Colgate | E19: =[8]Scorecard!$C$4 -> 79 | F19: =[8]Analysis!$F$16 -> 0 | G19: =[8]Analysis!$M$13 -> 0 | H19: =[8]Analysis!$H$8 -> 1.064003666 | I19: =[8]Analysis!$J$4 -> 0.8981403832 | J19: =IF([8]Analysis!$E$9>0,1,0) -> 1 | K19: =[8]Analysis!$J$13 -> 0.215618599 | L19: =[8]Analysis!$H$4 -> 0.02439522474
C20: 9 | D20: =[9]Qualitative!$D$2 -> Emami | E20: =[9]Scorecard!$C$4 -> 71.5 | F20: =[9]Analysis!$F$16 -> 0.21 | G20: =[9]Analysis!$M$13 -> 0 | H20: =[9]Analysis!$H$8 -> 1.193278096 | I20: =[9]Analysis!$J$4 -> 1.023802263 | J20: =IF([9]Analysis!$E$9>0,1,0) -> 1 | K20: =[9]Analysis!$J$13 -> 0.06279870254 | L20: =[9]Analysis!$H$4 -> 0.0496000061
C21: 10 | D21: =[10]Qualitative!$D$2 -> Godrej Consumer | E21: =[10]Scorecard!$C$4 -> 76 | F21: =[10]Analysis!$F$16 -> 0.002 | G21: =[10]Analysis!$M$13 -> -0.002707552949 | H21: =[10]Analysis!$H$8 -> 1.076688148 | I21: =[10]Analysis!$J$4 -> 1.659308724 | J21: =IF([10]Analysis!$E$9>0,1,0) -> 1 | K21: =[10]Analysis!$J$13 -> 0.2293514558 | L21: =[10]Analysis!$H$4 -> 0.1246692336
C22: 11 | D22: =[11]Qualitative!$D$2 -> Heritage Foods | E22: =[11]Scorecard!$C$4 -> 79.5 | F22: =[11]Analysis!$F$16 -> 0 | G22: =[11]Analysis!$M$13 -> 0 | H22: =[11]Analysis!$H$8 -> 2.171111347 | I22: =[11]Analysis!$J$4 -> 1.202954099 | J22: =IF([11]Analysis!$E$9>0,1,0) -> 1 | K22: =[11]Analysis!$J$13 -> 0.06626092183 | L22: =[11]Analysis!$H$4 -> 0.01209369145
C23: 12 | D23: =[12]Qualitative!$D$2 -> Page Industries | E23: =[12]Scorecard!$C$4 -> 82 | F23: =[12]Analysis!$F$16 -> 0 | G23: =[12]Analysis!$M$13 -> -0.03911850395 | H23: =[12]Analysis!$H$8 -> 0.8508789809 | I23: =[12]Analysis!$J$4 -> 2.104962268 | J23: =IF([12]Analysis!$E$9>0,1,0) -> 1 | K23: =[12]Analysis!$J$13 -> 0.3248692757 | L23: =[12]Analysis!$H$4 -> 0.05800059436
C24: 13 | D24: =[13]Qualitative!$D$2 -> Nestle | E24: =[13]Scorecard!$C$4 -> 71 | F24: =[13]Analysis!$F$16 -> 0 | G24: =[13]Analysis!$M$13 -> 0 | H24: =[13]Analysis!$H$8 -> 1.509850712 | I24: =[13]Analysis!$J$4 -> 0.5185871726 | J24: =IF([13]Analysis!$E$9>0,1,0) -> 1 | K24: =[13]Analysis!$J$13 -> 0.2692506251 | L24: =[13]Analysis!$H$4 -> 0.009592296806
C25: 14 | D25: =[14]Qualitative!$D$2 -> Tasty Bite | E25: =[14]Scorecard!$C$4 -> 87 | F25: =[14]Analysis!$F$16 -> 0 | G25: =[14]Analysis!$M$13 -> 0.00171345687 | H25: =[14]Analysis!$H$8 -> 1.457419684 | I25: =[14]Analysis!$J$4 -> 2.185255799 | J25: =IF([14]Analysis!$E$9>0,1,0) -> 1 | K25: =[14]Analysis!$J$13 -> 0.2177409387 | L25: =[14]Analysis!$H$4 -> 0.1190403267
C26: 15
C27: 16
C28: 17
C29: 18
C30: 19
C31: 20
C32: 21

Sheet Valuation
C2: No. | D2: Sherwood Segment | E2: Distance Covered | F2: Distance Left
C3: 1 | D3: =[1]Qualitative!$D$2 -> Britannia | E3: =[1]Dashboard!$K$6 -> 0.4574925733 | F3: =[1]Dashboard!$K$7 -> 0.122388427
C4: =C3+1 -> 2 | D4: =[2]Qualitative!$D$2 -> Marico | E4: =[2]Dashboard!$K$6 -> 0.29263598 | F4: =[2]Dashboard!$K$7 -> 0.1485183411
C5: =C4+1 -> 3 | D5: =[3]Qualitative!$D$2 -> Dabur India | E5: =[3]Dashboard!$K$6 -> 0.06554170877 | F5: =[3]Dashboard!$K$7 -> 0.1637616573
C6: 4 | D6: =[4]Qualitative!$D$2 -> Mayur Uniquoter | E6: =[4]Dashboard!$K$6 -> 0.3769349018 | F6: =[4]Dashboard!$K$7 -> 0.1367259263
C7: 5 | D7: =[5]Qualitative!$D$2 -> Titan Company | E7: =[5]Dashboard!$K$6 -> 0.4188351403 | F7: =[5]Dashboard!$K$7 -> 0.0361981329
C8: 6 | D8: =[6]Qualitative!$D$2 -> Amara Raja Batt | E8: =[6]Dashboard!$K$6 -> 0.5625668116 | F8: =[6]Dashboard!$K$7 -> 0.1031177155
C9: 7 | D9: =[7]Qualitative!$D$2 -> Pidilite Ind | E9: =[7]Dashboard!$K$6 -> 0.1952750964 | F9: =[7]Dashboard!$K$7 -> 0.1571679641
C10: 8 | D10: =[8]Qualitative!$D$2 -> Colgate | E10: =[8]Dashboard!$K$6 -> 0.1570512273 | F10: =[8]Dashboard!$K$7 -> 0.0598526161
C11: 9 | D11: =[9]Qualitative!$D$2 -> Emami | E11: =[9]Dashboard!$K$6 -> 1.34827544 | F11: =[9]Dashboard!$K$7 -> 0.02112786204
C12: 10 | D12: =[10]Qualitative!$D$2 -> Godrej Consumer | E12: =[10]Dashboard!$K$6 -> 0.3321052951 | F12: =[10]Dashboard!$K$7 -> 0.1382193859
C13: 11 | D13: =[11]Qualitative!$D$2 -> Heritage Foods | E13: =[11]Dashboard!$K$6 -> 1.197979743 | F13: =[11]Dashboard!$K$7 -> 0.03373578679
C14: 12 | D14: =[12]Qualitative!$D$2 -> Page Industries | E14: =[12]Dashboard!$K$6 -> 0.440828262 | F14: =[12]Dashboard!$K$7 -> 0.1230909069
C15: 13 | D15: =[13]Qualitative!$D$2 -> Nestle | E15: =[13]Dashboard!$K$6 -> 0.4352689737 | F15: =[13]Dashboard!$K$7 -> 0.1248604153
C16: 14 | D16: =[14]Qualitative!$D$2 -> Tasty Bite | E16: =[14]Dashboard!$K$6 -> 2.111093799 | F16: =[14]Dashboard!$K$7 -> 0.03844994735
C17: 15
C18: 16
C19: 17
C20: 18
C21: 19
C22: 20
C23: 21
